{"text_format":"1","workbook":"xlsx","n_sheets":7,"sheets":["Dépôts","Déposants","Imprimeurs","Genres","Pays","Langues","Traductions"],"not_rendered":{"charts":0,"images":0,"macros":0,"external_links":0,"defined_names":1,"comments":0,"pivot_tables":0},"unopened":[],"bounds":{"document_bytes":16777216,"sheet_cells":100000,"rows_first":2000,"rows_last":500,"rows_between":2000,"halvings":0,"cell_chars":16384,"cell_head_chars":4096},"cells_cut":0,"cells_raw":0,"read":"whole","date_system":"1900"}

{"sheet":"Dépôts","index":0,"n_rows":14,"n_cols":4,"rows_kept":14,"cut":false,"hidden":false,"merged":[]}
["Nombre de livres reçus par dépôt légal",2016,2017,2018]
[null,77986,81263,82313]
[]
[]
["Tirage initial médian",2016,2017,2018]
[null,1200,1200,1200]
[]
[]
["Prix moyen des ouvrages déposés",2016,2017,2018]
[null,22.76,21.75,22.99]
[]
[]
[]
["Source : Entrées dépôt légal livres imprimés"]

{"sheet":"Déposants","index":1,"n_rows":196,"n_cols":13,"rows_kept":196,"cut":false,"hidden":false,"merged":[[107,1,111,1],[112,1,117,1],[14,1,25,1],[26,1,33,1],[38,1,43,1],[55,1,59,1],[60,1,67,1],[73,1,84,1]]}
["Nombre de dépôts et déposants répartis selon le nombre de dépôts annuels par déposant"]
["Livres",2016,null,2017,null,2018]
["Tranches de dépôts par an","Nb dépôts","Nb déposants","Nb dépôts","Nb déposants","Nb dépôts","Nb déposants"]
["1 dépôt",3990,3990,4077,4077,4223,4223]
["2 à 10 dépôts",12566,3160,12876,3301,13268,3421]
["11 à 100 dépôts",26900,963,26982,1001,26755,961]
["101 à 1000 dépôts",27349,108,28550,118,26980,114]
["> 1000 dépôts",7181,3,8778,4,11087,5]
["Total Livres",{"$f":"SUM(B4:B8)","v":77986},8224,81263,8501,82313,8724]
["Source : Entrées dépôt légal livres imprimés"]
[]
["Nombre de dépôts et déposants par département et région déposant"]
["Livres",null,null,null,2016,null,null,2017,null,null,2018]
["Pays déposant","Région","Code département","Département","Nb déposants","Nb nouveaux déposants","Nb dépôts","Nb déposants","Nb nouveaux déposants","Nb dépôts","Nb déposants","Nb nouveaux déposants","Nb dépôts"]
["France","Auvergne - Rhône Alpes","01","Ain",39,19,128,35,14,97,31,11,80]
[null,null,"03","Allier",38,15,127,39,14,118,37,15,161]
[null,null,"07","Ardèche",35,14,85,43,20,138,51,22,118]
[null,null,15,"Cantal",17,6,48,17,9,60,13,1,52]
[null,null,26,"Drome",69,22,223,70,19,202,78,29,260]
[null,null,38,"Isère",135,49,1117,123,45,980,126,53,1191]
[null,null,42,"Loire",54,23,161,66,26,236,63,24,208]
[null,null,43,"Haute-Loire",24,7,84,30,10,86,33,15,96]
[null,null,63,"Puy-de-Dôme",89,23,520,82,27,657,75,17,544]
[null,null,69,"Rhône",231,81,1265,225,90,1169,245,78,1216]
[null,null,73,"Savoie",42,19,115,35,18,101,38,18,114]
[null,null,74,"Haute-Savoie",73,24,388,76,24,342,67,26,399]
[null,"Bourgogne - Franche-Comté",21,"Cote d'Or",79,22,384,77,27,324,67,18,317]
[null,null,25,"Doubs",62,21,222,68,23,311,64,22,198]
[null,null,39,"Jura",25,9,70,26,8,69,33,11,82]
[null,null,58,"Nièvre",24,10,54,23,7,57,28,11,75]
[null,null,70,"Haute-Saône",14,5,37,14,5,31,20,10,75]
[null,null,71,"Saône-et-Loire",85,34,312,89,34,425,76,29,392]
[null,null,89,"Yonne",49,20,123,43,14,160,39,13,109]
[null,null,90,"Territoire de Belfort",14,9,23,14,2,22,9,2,12]
[null,"Bretagne",22,"Côtes-d'Armor",63,26,238,67,23,263,66,16,222]
[null,null,29,"Finistère",116,34,609,114,29,659,107,33,507]
[null,null,35,"Ille-et-Vilaine",111,39,811,122,41,756,116,43,715]
[null,null,56,"Morbihan",71,30,235,61,26,248,70,27,256]
[null,"Centre - Val-de-Loire",18,"Cher",20,8,77,29,14,169,21,5,58]
[null,null,28,"Eure-et-Loir",36,13,154,29,13,152,35,12,142]
[null,null,36,"Indre",35,14,130,36,10,110,32,10,83]
[null,null,37,"Indre-et-Loire",69,36,290,72,22,328,72,25,361]
[null,null,41,"Loir-et-Cher",40,14,214,30,11,150,38,14,164]
[null,null,45,"Loiret",55,28,149,53,14,111,56,15,129]
[null,"Corse",20,"Corse",28,6,127,33,9,120,32,9,147]
[null,"Grand-Est","08","Ardennes",12,3,73,12,6,117,14,2,53]
[null,null,10,"Aube",19,6,48,22,6,77,25,10,227]
[null,null,51,"Marne",42,13,134,44,16,107,29,10,84]
[null,null,52,"Haute-Marne",14,8,69,14,4,72,23,12,89]
[null,null,54,"Meurthe-et-Moselle",66,19,243,65,21,219,76,21,274]
[null,null,55,"Meuse",13,6,25,11,3,14,15,7,33]
[null,null,57,"Moselle",68,32,267,65,17,230,62,21,235]
[null,null,67,"Bas-Rhin",113,51,451,116,48,396,118,37,387]
[null,null,68,"Haut-Rhin",60,26,216,57,13,191,63,24,161]
[null,null,88,"Vosges",26,10,102,23,8,132,43,15,186]
[null,"Hauts-de-France","02","Aisne",19,10,106,40,15,160,29,12,87]
[null,null,59,"Nord",178,67,670,187,59,719,187,74,657]
[null,null,60,"Oise",46,13,122,40,19,82,47,14,89]
[null,null,62,"Pas-de-Calais",51,24,160,52,16,143,66,23,197]
[null,null,80,"Somme",31,13,70,35,13,162,35,11,125]
[null,"Ile-de-France",75,"Paris",1717,428,37077,1760,393,37134,1751,373,36373]
[null,null,77,"Seine-et-Marne",108,45,412,106,29,528,113,42,494]
[null,null,78,"Yvelines",141,64,610,148,65,738,138,47,876]
[null,null,91,"Essonne",100,39,521,101,34,1038,109,43,671]
[null,null,92,"Hauts-de-Seine",245,75,5719,250,72,6004,248,68,6643]
[null,null,93,"Seine-Saint-Denis",122,37,3840,149,58,5399,139,41,6574]
[null,null,94,"Val-de-Marne",187,62,1405,191,59,1159,194,72,1199]
[null,null,95,"Val-d'Oise",68,30,230,64,30,132,77,30,137]
[null,"Normandie",14,"Calvados",76,28,298,62,13,290,70,29,286]
[null,null,27,"Eure",53,21,344,45,13,344,48,15,441]
[null,null,50,"Manche",32,15,82,33,11,71,43,18,97]
[null,null,61,"Orne",23,7,63,25,7,68,23,6,51]
[null,null,76,"Seine-Maritime",91,34,312,93,28,358,76,24,283]
[null,"Nouvelle-Aquitaine",16,"Charente",38,15,131,42,13,132,45,18,112]
[null,null,17,"Charente-Maritime",74,37,455,73,31,474,63,16,516]
[null,null,19,"Corrèze",21,4,90,32,11,110,25,6,75]
[null,null,23,"Creuse",11,1,32,9,3,40,15,8,33]
[null,null,24,"Dordogne",55,22,165,53,22,179,52,23,151]
[null,null,33,"Gironde",218,96,843,209,79,844,205,71,873]
[null,null,40,"Landes",49,17,136,39,9,112,35,15,119]
[null,null,47,"Lot-et-Garonne",21,10,61,25,12,114,26,11,133]
[null,null,64,"Pyrénées-Atlantiques",82,23,423,74,20,327,82,28,400]
[null,null,79,"Deux-Sèvres",25,5,248,21,8,240,24,5,221]
[null,null,86,"Vienne",43,16,180,42,10,211,40,14,171]
[null,null,87,"Haute-Vienne",49,9,334,51,11,348,54,15,298]
[null,"Occitanie",9,"Ariège",16,5,66,23,7,115,24,12,88]
[null,null,11,"Aude",43,8,176,52,13,160,54,25,171]
[null,null,12,"Aveyron",29,12,145,36,8,156,41,18,97]
[null,null,30,"Gard",100,32,686,102,25,726,113,42,779]
[null,null,31,"Haute-Garonne",177,52,1531,207,67,1555,203,62,1454]
[null,null,32,"Gers",18,8,36,21,9,70,21,7,40]
[null,null,34,"Hérault",162,66,676,154,52,582,152,51,593]
[null,null,46,"Lot",24,7,80,27,7,99,36,17,124]
[null,null,48,"Lozère",7,4,10,14,6,39,18,4,49]
[null,null,65,"Hautes-Pyrénées",20,3,71,19,6,41,19,6,45]
[null,null,66,"Pyrénées-Orientales",57,16,366,58,15,402,68,18,425]
[null,null,81,"Tarn",54,19,152,57,19,169,53,16,184]
[null,null,82,"Tarn-et-Garonne",20,9,48,32,13,73,33,13,70]
[null,"Outre-mer",970,"St-Barthélémy/st-Martin",0,0,0,1,1,1,0,0,0]
[null,null,971,"Guadeloupe",20,5,69,28,12,97,32,12,69]
[null,null,972,"Martinique",14,7,52,20,13,76,22,10,63]
[null,null,973,"Guyane",7,3,28,13,8,41,10,4,22]
[null,null,974,"Réunion",46,13,143,47,12,150,54,19,155]
[null,null,975,"Saint-Pierre-et-Miquelon",3,1,3,1,0,1,0,0,0]
[null,null,976,"Mayotte",6,2,6,2,1,7,4,1,5]
[null,null,987,"Polynésie Française",3,2,3,7,5,8,3,0,10]
[null,null,988,"Nouvelle-Calédonie",23,5,57,48,11,125,23,7,43]
[null,"Pays de la Loire",44,"Loire-Atlantique",125,53,888,117,46,906,126,53,856]
[null,null,49,"Maine-et-Loire",75,27,263,82,24,249,72,20,281]
[null,null,53,"Mayenne",26,10,154,21,4,55,24,7,62]
[null,null,72,"Sarthe",39,15,244,47,17,263,47,16,245]
[null,null,85,"Vendée",52,18,145,54,20,165,53,23,138]
[null,"Provence-Alpes-Côte d'Azur","04","Alpes-de-Haute-Provence",24,9,49,35,14,81,33,13,79]
[null,null,"05","Hautes-Alpes",30,12,151,27,9,118,27,12,113]
[null,null,"06","Alpes-Maritimes",116,37,802,122,41,934,136,59,933]
[null,null,13,"Bouches-du-Rhône",209,73,1609,229,59,1623,232,86,1639]
[null,null,83,"Var",123,48,961,111,37,917,116,45,894]
[null,null,84,"Vaucluse",58,23,264,63,24,276,77,30,332]
["Autre pays ou inconnu",null,null,null,249,106,2765,303,152,3117,433,299,3661]
["Total France",null,null,null,{"$f":"SUM(E15:E119)","v":8224},2831,77986,8501,2710,81263,{"$f":"SUM(K15:K119)","v":8724},{"$f":"SUM(L15:L119)","v":2972},{"$f":"SUM(M15:M119)","v":82313}]
["Source : Entrées dépôt légal livres imprimés"]
[]
["Nombre de dépôts et déposants par catégorie de déposants"]
["Livres",2016,null,null,2017,null,null,2018]
["Catégorie déposant","Nb déposants","Nb nouveaux déposants","Nb dépôts","Nb déposants","Nb nouveaux déposants","Nb dépôts","Nb déposants","Nb nouveaux déposants","Nb dépôts"]
["Administration centrale",31,4,435,34,7,434,37,7,351]
["Associations et assimilés",1239,463,3338,1339,446,3498,1290,444,3362]
["Auteurs auto-édités",2383,1335,4339,2299,1210,4466,2488,1347,4765]
["Autres",39,11,136,0,0,0,0,0,0]
["Club de livres",2,0,1856,2,0,1394,2,0,1038]
["Collectivité locale",157,68,273,201,64,361,160,56,280]
["Collectivités publiques",217,31,1675,249,42,1613,223,31,1649]
["Diffuseur",125,38,1213,153,43,1627,142,38,1560]
["Editeurs étrangers",207,83,2247,258,127,2420,411,290,3120]
["Editeurs professionnels",3506,670,60999,3611,634,64138,3650,631,64935]
["Galerie",56,29,178,65,30,156,64,26,141]
["Imprimeurs professionnels",29,10,90,26,7,107,21,7,114]
["Recherche",85,12,595,101,14,570,80,14,466]
["Sociétés commerciales et assimilées",148,77,612,163,86,479,156,76,532]
["Total Livres",{"$f":"SUM(B126:B139)","v":8224},2831,77986,{"$f":"SUM(E126:E139)","v":8501},{"$f":"SUM(F126:F139)","v":2710},{"$f":"SUM(G126:G139)","v":81263},{"$f":"SUM(H126:H139)","v":8724},{"$f":"SUM(I126:I139)","v":2967},82313]
["Source : Entrées dépôt légal livres imprimés"]
[]
["Liste des 50 principaux déposants par année de dépôt"]
["Livres","Déposant",2016,null,null,"Livres","Déposant",2017,null,null,"Livres","Déposant",2018]
[null,"EDILIVRE",3144,null,null,null,"EDILIVRE",3452,null,null,null,"EDILIVRE",4725]
[null,"HARMATTAN (L')",2603,null,null,null,"HARMATTAN (L')",2482,null,null,null,"HARMATTAN (L')",2406]
[null,"HACHETTE",1479,null,null,null,"HACHETTE",1714,null,null,null,"HACHETTE",1692]
[null,"Grand Livre du Mois (Le)",978,null,null,null,"GALLIMARD (EDITIONS)",1186,null,null,null,"GALLIMARD (EDITIONS)",1256]
[null,"France Loisirs",878,null,null,null,"BOOKS ON DEMAND",954,null,null,null,"BOOKS ON DEMAND",1171]
[null,"PUBLIBOOK",770,null,null,null,"France Loisirs",749,null,null,null,"NET (EDITIONS DU)",651]
[null,"GALLIMARD (EDITIONS)",752,null,null,null,"Grand Livre du Mois (Le)",645,null,null,null,"Larousse (Editions)",600]
[null,"BOOKS ON DEMAND",709,null,null,null,"NET (EDITIONS DU)",617,null,null,null,"Flammarion",591]
[null,"DUNOD",588,null,null,null,"POCKET",580,null,null,null,"HARLEQUIN",586]
[null,"POCKET",580,null,null,null,"Larousse (Editions)",545,null,null,null,"France Loisirs",577]
[null,"GLENAT (EDITIONS)",543,null,null,null,"ELLIPSES EDITION MARKETING",534,null,null,null,"POCKET",541]
[null,"ACTES SUD",532,null,null,null,"GLENAT (EDITIONS)",525,null,null,null,"CLASSIQUES GARNIER",536]
[null,"ELLIPSES EDITION MARKETING",526,null,null,null,"Flammarion",520,null,null,null,"J'AI LU (EDITIONS)",533]
[null,"NET (EDITIONS DU)",516,null,null,null,"DUNOD",513,null,null,null,"DUNOD",529]
[null,"Flammarion",512,null,null,null,"ACTES SUD",497,null,null,null,"CREATESPACE",519]
[null,"HARLEQUIN",510,null,null,null,"EDITEURS DIVERS (NUMERO COLLECTIF AFNIL)",495,null,null,null,"GLENAT (EDITIONS)",509]
[null,"EYROLLES (EDITIONS)",488,null,null,null,"HARLEQUIN",486,null,null,null,"Hachette Collections",506]
[null,"AUZOU (EDITIONS PHILIPPE)",473,null,null,null,"CREATESPACE",471,null,null,null,"ELLIPSES EDITION MARKETING",506]
[null,"ALBIN MICHEL (EDITIONS)",451,null,null,null,"J'AI LU (EDITIONS)",456,null,null,null,"ACTES SUD",490]
[null,"J'AI LU (EDITIONS)",428,null,null,null,"MARABOUT",452,null,null,null,"EDITEURS DIVERS (NUMERO COLLECTIF AFNIL)",481]
[null,"LIBRAIRIE GENERALE FRANCAISE",412,null,null,null,"BAYARD EDITIONS",446,null,null,null,"Grand Livre du Mois (Le)",461]
[null,"BAYARD EDITIONS",392,null,null,null,"PICCOLIA",445,null,null,null,"ALBIN MICHEL (EDITIONS)",424]
[null,"DELCOURT",392,null,null,null,"Hachette Collections",427,null,null,null,"MARABOUT",419]
[null,"FIRST EDITIONS",371,null,null,null,"FLEURUS (EDITIONS)",421,null,null,null,"NATHAN",418]
[null,"CLASSIQUES GARNIER (EDITIONS)",360,null,null,null,"ALBIN MICHEL (EDITIONS)",413,null,null,null,"LIBRAIRIE GENERALE FRANCAISE",412]
[null,"NOUVELLES EDITIONS DE L'UNIVERSITE",342,null,null,null,"LIBRAIRIE GENERALE FRANCAISE",413,null,null,null,"DELCOURT",409]
[null,"MARABOUT",340,null,null,null,"FIRST (EDITIONS)",399,null,null,null,"PRESSES UNIVERSITAIRES DE FRANCE",373]
[null,"POINTS",330,null,null,null,"PUBLIBOOK",396,null,null,null,"PUBLIBOOK",368]
[null,"PIKA (EDITION)",325,null,null,null,"NOUVELLES EDITIONS DE L'UNIVERSITE",374,null,null,null,"EYROLLES (EDITIONS)",364]
[null,"NATHAN",325,null,null,null,"DELCOURT",354,null,null,null,"DG Diffusion",355]
[null,"CREATESPACE",323,null,null,null,"EYROLLES (EDITIONS)",351,null,null,null,"BAYARD JEUNESSE",338]
[null,"EDITEURS DIVERS (NUMERO COLLECTIF AFNIL)",298,null,null,null,"CLASSIQUES GARNIER",345,null,null,null,"POINTS",331]
[null,"Panini France",296,null,null,null,"Panini France",336,null,null,null,"SYDNEY LAURENT (LES EDITIONS)",315]
[null,"AMALTHEE (EDITIONS)",291,null,null,null,"POINTS",327,null,null,null,"NOUVELLES EDITIONS DE L'UNIVERSITE",315]
[null,"MILAN (EDITIONS)",290,null,null,null,"DG Diffusion",312,null,null,null,"FIRST (EDITIONS)",315]
[null,"Hachette Collections",278,null,null,null,"CERF (EDITIONS DU)",294,null,null,null,"KOMIKKU (EDITIONS)",305]
[null,"CHAMBRE DES COMMISSAIRES PRISEURS",269,null,null,null,"CASTERMAN (EDITIONS)",293,null,null,null,"MILAN (EDITIONS)",302]
[null,"LA MARTINIERE (EDITIONS DE)",265,null,null,null,"PRESSES UNIVERSITAIRES DE FRANCE",293,null,null,null,"Panini France",292]
[null,"PRESSES UNIVERSITAIRES DE FRANCE",261,null,null,null,"DALLOZ  - SIREY - DELMAS - JURIS - ELS",279,null,null,null,"HUGO ET CIE",287]
[null,"STUDYRAMA",258,null,null,null,"MC Productions",274,null,null,null,"CASTERMAN (EDITIONS)",283]
[null,"TAIFU COMICS",251,null,null,null,"MILAN (EDITIONS)",273,null,null,null,"DALLOZ  - SIREY - DELMAS - JURIS - ELS",281]
[null,"MC Productions",248,null,null,null,"MILADY",263,null,null,null,"SAINT HONORE (EDITIONS)",270]
[null,"BAUDELAIRE (LES EDITIONS)",243,null,null,null,"PAROLE ET SILENCE (EDITIONS)",261,null,null,null,"BOOKELIS",264]
[null,"DG Diffusion",242,null,null,null,"NATHAN",255,null,null,null,"PIKA (EDITION)",257]
[null,"PERSEE (EDITIONS)",237,null,null,null,"BOOKELIS",250,null,null,null,"FLEURUS (EDITIONS)",257]
[null,"PRESSES UNIVERSITAIRES DE RENNES",232,null,null,null,"PIKA (EDITION)",246,null,null,null,"LACOUR (EDITIONS)",256]
[null,"GUALINO",227,null,null,null,"AMALTHEE (EDITIONS)",235,null,null,null,"MC Productions",251]
[null,"MILADY",225,null,null,null,"ECOLE DES LOISIRS (EDITIONS DE L')",235,null,null,null,"AUTO-EDITION",250]
[null,"AUTO-EDITION",221,null,null,null,"GUALINO",233,null,null,null,"CERF (EDITIONS DU)",246]
[null,"DALLOZ  - SIREY - DELMAS - JURIS",219,null,null,null,"AUTO-EDITION",232,null,null,null,"EVIDENCE (EDITIONS)",232]
["Total Livres",null,{"$f":"SUM(C145:C194)","v":26223},null,null,"Total Livres",null,{"$f":"SUM(H145:H194)","v":27548},null,null,"Total Livres",null,{"$f":"SUM(M145:M194)","v":29055}]
["Source : Entrées dépôt légal livres imprimés"]

{"sheet":"Imprimeurs","index":2,"n_rows":237,"n_cols":6,"rows_kept":237,"cut":false,"hidden":false,"merged":[[26,0,37,0],[38,0,45,0],[46,0,49,0],[50,0,55,0],[57,0,66,0],[111,0,115,0],[116,0,121,0],[67,0,71,0],[72,0,79,0],[80,0,84,0],[85,0,96,0],[97,0,109,0]]}
["Nombre de dépôts répartis par tranches de tirage initial"]
[null,2016,2017,2018]
["T1 - 0 à 100",9766,9249,9700]
["T2 - 101 à 300",10923,11478,12810]
["T3 - 301 à 500",4823,4474,4321]
["T4 - 501 à 5000",33547,34692,34172]
["T5 - 5001 à 10000",5380,5432,6055]
["T6 - 10001 à 50000",3617,3376,2845]
["T7 - 50001 à 100000",174,172,213]
["T8 - 100001 et plus",130,118,102]
["Récapitulatif",{"$f":"SUM(B3:B10)","v":68360},{"$f":"SUM(C3:C10)","v":68991},{"$f":"SUM(D3:D10)","v":70218}]
["Source : Entrées dépôt légal livres imprimés"]
[]
["Lieu d'impression - synthèse"]
["Pays",2016,2017,2018]
["France",46768,45036,46751]
["Europe (hors France)",20068,21080,22906]
["Asie",3337,3472,3673]
["Amérique",1105,1138,1137]
["Afrique",41,37,67]
["Océanie",1,0,3]
["Total",{"$f":"SUM(B16:B21)","v":71320},{"$f":"SUM(C16:C21)","v":70763},{"$f":"SUM(D16:D21)","v":74537}]
["Source : Bibliographie nationale française - Livres"]
[]
["Lieu d'impression - détail France"]
["Nouvelles régions","Code département","Département",2016,2017,2018]
["Auvergne - Rhône Alpes","01","Ain",1627,1574,1947]
[null,"03","Allier",45,84,30]
[null,"07","Ardèche",103,104,143]
[null,15,"Cantal",17,33,25]
[null,26,"Drome",121,130,154]
[null,38,"Isère",294,178,234]
[null,42,"Loire",1012,1105,1056]
[null,43,"Haute-Loire",40,39,44]
[null,63,"Puy-de-Dôme",650,616,622]
[null,69,"Rhône",200,210,211]
[null,73,"Savoie",30,12,7]
[null,74,"Haute-Savoie",78,67,43]
["Bourgogne - Franche-Comté",21,"Cote d'Or",270,195,193]
[null,25,"Doubs",354,314,355]
[null,39,"Jura",17,25,22]
[null,58,"Nièvre",1816,2035,2614]
[null,70,"Haute-Saône",5,9,4]
[null,71,"Saône-et-Loire",143,101,78]
[null,89,"Yonne",57,35,56]
[null,90,"Territoire de Belfort",25,25,33]
["Bretagne",22,"Côtes-d'Armor",354,559,602]
[null,29,"Finistère",500,561,468]
[null,35,"Ille-et-Vilaine",291,561,301]
[null,56,"Morbihan",50,58,50]
["Centre - Val-de-Loire",18,"Cher",1121,977,1113]
[null,28,"Eure-et-Loir",45,7,50]
[null,36,"Indre",45,43,31]
[null,37,"Indre-et-Loire",1197,1046,1217]
[null,41,"Loir-et-Cher",21,22,18]
[null,45,"Loiret",614,644,695]
["Corse",20,"Corse",9,10,18]
["Grand-Est","08","Ardennes",11,62,17]
[null,10,"Aube",26,33,31]
[null,51,"Marne",67,40,30]
[null,52,"Haute-Marne",696,864,821]
[null,54,"Meurthe-et-Moselle",180,261,177]
[null,55,"Meuse",9,6,7]
[null,57,"Moselle",60,56,66]
[null,67,"Bas-Rhin",114,91,117]
[null,68,"Haut-Rhin",70,65,52]
[null,88,"Vosges",23,23,63]
["Hauts-de-France","02","Aisne",74,57,165]
[null,59,"Nord",4238,4158,5316]
[null,60,"Oise",66,20,44]
[null,62,"Pas-de-Calais",149,140,131]
[null,80,"Somme",98,134,128]
["Ile-de-France",75,"Paris",2544,2129,{"$f":"SUM(K73:L73)","v":0}]
[null,77,"Seine-et-Marne",121,86,99]
[null,78,"Yvelines",993,930,981]
[null,91,"Essonne",864,812,1005]
[null,92,"Hauts-de-Seine",1078,667,464]
[null,93,"Seine-Saint-Denis",984,1331,1398]
[null,94,"Val-de-Marne",145,155,144]
[null,95,"Val-d'Oise",1371,748,943]
["Normandie",14,"Calvados",5381,4877,5289]
[null,27,"Eure",1561,1532,1274]
[null,50,"Manche",29,26,26]
[null,61,"Orne",1943,1839,1991]
[null,76,"Seine-Maritime",55,63,50]
["Nouvelle-Aquitaine",16,"Charente",87,105,77]
[null,17,"Charente-Maritime",166,139,164]
[null,19,"Corrèze",156,78,113]
[null,23,"Creuse",3,3,2]
[null,24,"Dordogne",64,121,63]
[null,33,"Gironde",1014,1079,1233]
[null,40,"Landes",4,16,5]
[null,47,"Lot-et-Garonne",39,50,118]
[null,64,"Pyrénées-Atlantiques",689,705,925]
[null,79,"Deux-Sèvres",18,116,62]
[null,86,"Vienne",782,717,979]
[null,87,"Haute-Vienne",81,120,139]
["Occitanie","09","Ariège",23,34,39]
[null,11,"Aude",29,23,24]
[null,12,"Aveyron",407,369,331]
[null,30,"Gard",416,511,493]
[null,31,"Haute-Garonne",460,535,540]
[null,32,"Gers",8,11,13]
[null,34,"Hérault",314,252,237]
[null,46,"Lot",719,484,218]
[null,48,"Lozère",3,17,20]
[null,65,"Hautes-Pyrénées",36,16,6]
[null,66,"Pyrénées-Orientales",144,153,116]
[null,81,"Tarn",231,242,259]
[null,82,"Tarn-et-Garonne",9,9,13]
["Outre-mer",null,null,107,104,159]
["Pays de la Loire",44,"Loire-Atlantique",108,100,99]
[null,49,"Maine-et-Loire",159,121,175]
[null,53,"Mayenne",2414,2341,2441]
[null,72,"Sarthe",656,586,595]
[null,85,"Vendée",1668,1713,1843]
["Provence-Alpes-Côte d'Azur","04","Alpes-de-Haute-Provence",63,34,38]
[null,"05","Hautes-Alpes",69,62,62]
[null,"06","Alpes-Maritimes",187,187,234]
[null,13,"Bouches-du-Rhône",1087,1067,1438]
[null,83,"Var",180,149,139]
[null,84,"Vaucluse",38,70,66]
["Département inconnu",null,null,29,13,10]
["Total",null,null,{"$f":"SUM(D27:D123)","v":46768},{"$f":"SUM(E27:E123)","v":45036},{"$f":"SUM(F27:F123)","v":46751}]
["Source : Bibliographie nationale française - Livres"]
[]
["Lieu d'impression - détail par pays"]
["Zone géoographique","Pays",2016,2017,2018]
["France",null,46768,45036,46751]
["Europe (hors France)","Albanie",1]
[null,"Allemagne",1685,1847,2032]
[null,"Andorre",1]
[null,"Angleterre",18,null,12]
[null,"Autriche",10,17,10]
[null,"Belgique",1506,1439,1548]
[null,"Biélorussie",null,1,2]
[null,"Bosnie-Herzégovine",29,23,45]
[null,"Bulgarie",600,780,1012]
[null,"Chypre"]
[null,"Croatie",20,29,51]
[null,"Danemark",15,33,30]
[null,"Espagne",5194,5761,6342]
[null,"Estonie",7,19,8]
[null,"Europe",792]
[null,"Finlande",1,2]
[null,"Géorgie"]
[null,"Grande-Bretagne",160]
[null,"Grèce",23,13,12]
[null,"Hongrie",9,14,16]
[null,"Irlande",3,22,2]
[null,"Italie",5290,5368,5286]
[null,"Lettonie",152,151,205]
[null,"Lituanie",261,267,318]
[null,"Luxembourg",17,16,19]
[null,"Macédoine",null,2,7]
[null,"Malte",4,4]
[null,"Moldavie"]
[null,"Monaco",3,3,7]
[null,"Monténégro"]
[null,"Norvège"]
[null,"Pays basque"]
[null,"Pays-Bas",104,113,123]
[null,"Pologne",1092,1217,1845]
[null,"Portugal",136,136,237]
[null,"République tchèque",627,760,743]
[null,"Roumanie",543,435,444]
[null,"Royaume-Uni",75,342,275]
[null,"Russie",2,2,5]
[null,"Serbie",111,85,96]
[null,"Slovaquie",423,365,319]
[null,"Slovénie",545,628,675]
[null,"Suède",2]
[null,"Suisse",223,324,211]
[null,"Ukraine",2,12,12]
[null,"Union européenne",382,850,957]
["Asie","Asie",13,28,16]
[null,"Cambodge",1,null,1]
[null,"Chine",2890,3099,3308]
[null,"Corée",3]
[null,"Corée du Sud",14,13,6]
[null,"Émirats arabes unis",5,2,19]
[null,"Hong Kong",null,5,2]
[null,"Inde",38,60,54]
[null,"Indonésie",3]
[null,"Iran",null,2]
[null,"Israël",18,4,5]
[null,"Japon",2,null,1]
[null,"Jordanie"]
[null,"Laos"]
[null,"Liban",72,73,44]
[null,"Malaisie",205,125,163]
[null,"Moyen-Orient",10]
[null,"Népal",null,2]
[null,"Philippines",1]
[null,"Qatar"]
[null,"Singapour",null,14,10]
[null,"Sri Lanka",2]
[null,"Syrie"]
[null,"Taïwan",2]
[null,"Thaïlande",4,2,3]
[null,"Turquie",51,42,40]
[null,"Viêt-Nam",3,1,1]
["Amérique","Argentine",null,2,1]
[null,"Brésil",11,null,2]
[null,"Canada",524,502,594]
[null,"Chili",1]
[null,"Colombie",1,3]
[null,"Costa-Rica",null,null,1]
[null,"Équateur",1]
[null,"États-Unis",559,624,521]
[null,"Guatemala",null,null,2]
[null,"Mexique",4,2]
[null,"Nicaragua"]
[null,"Paraguay"]
[null,"Pérou",null,1]
[null,"Québec",4,4,16]
[null,"Uruguay"]
[null,"Venezuela"]
["Afrique","Algérie",1,2,6]
[null,"Afrique du Sud",null,1]
[null,"Bénin",null,null,1]
[null,"Côte d'Ivoire"]
[null,"Égypte",15,4,18]
[null,"Éthiopie"]
[null,"Mali",null,null,2]
[null,"Ile Maurice",14,25,10]
[null,"Kénya"]
[null,"Madagascar"]
[null,"Maroc",3,2,15]
[null,"République du Congo",2,3,2]
[null,"Sénégal",4,null,1]
[null,"Tanzanie"]
[null,"Tunisie",2,null,12]
["Océanie","Australie",null,null,1]
[null,"Nouvelle-Zélande",1,null,2]
["Total",null,{"$f":"SUM(C129:C235)","v":71320},{"$f":"SUM(D129:D235)","v":70763},{"$f":"SUM(E129:E235)","v":74537}]
["Source : Bibliographie nationale française - Livres"]

{"sheet":"Genres","index":3,"n_rows":376,"n_cols":8,"rows_kept":376,"cut":false,"hidden":false,"merged":[]}
["Nombre de livres signalés dans la Bibliographie nationale française - répartition par classe thématique"]
[null,2016,2017,2018]
["0 Généralités"]
["000. Généralités",59,46,70]
["004. Informatique",349,309,351]
["010. Bibliographie",4,8,3]
["020. Sciences de l'information",75,62,58]
["030. Encyclopédies générales",37,68,61]
["060. Organisations à vocation savante",9,19,26]
["070. Presse et édition",67,97,98]
["090. Bibliophilie",93,21,24]
["1 Philosophie et psychologie"]
["100. Philosophie",1000,1012,1120]
["130. Esotérisme, phénomènes paranormaux",931,871,973]
["150. Psychologie, psychanalyse",1171,1230,1466]
["2 Religion et théologie"]
["200. Religion (ouvrages généraux et comparatifs)",200,169,196]
["220. Bible, judaïsme, christianisme",2289,2224,2045]
["290. Islam, religions orientales et anciennes, autres religions",513,459,548]
["3 Sciences sociales"]
["300. Sciences sociales",1282,1430,1437]
["320. Sciences politiques",1264,1573,1264]
["330. Economie",1219,1266,1234]
["340. Droit",1768,2044,1975]
["350. Administration publique",474,383,482]
["355. Art et science militaires",151,224,199]
["360. Problèmes et services sociaux",971,985,1040]
["370. Education et enseignement",716,775,885]
["380. Commerce, communication, transports",197,228,244]
["390. Ethnologie, anthropologie, folklore",207,203,222]
["4 Langues et linguistique"]
["400. Langues et linguistique",802,927,902]
["5 Sciences pures"]
["500. Sciences (généralités)",118,114,145]
["510. Mathématiques",265,241,277]
["520. Astronomie",81,82,91]
["530. Physique",157,143,153]
["540. Chimie, minéralogie, cristallographie",43,55,45]
["550. Sciences de la Terre",113,89,121]
["560. Paléontologie",44,41,56]
["570. Sciences de la vie",159,235,252]
["580. Botanique",108,130,158]
["590. Zoologie",254,309,372]
["6 Sciences appliquées"]
["600. Sciences appliquées",15,27,27]
["610. Sciences médicales et paramédicales",2094,1935,2446]
["620. Sciences de l'ingénieur",702,569,737]
["630. Agriculture, élevage",428,574,601]
["640. Economie domestique, hôtellerie",1374,1825,1815]
["650. Gestion et organisation de l'entreprise",1207,1187,1162]
["660. Génie chimique et technologies connexes",62,50,71]
["670. Industries",25,18,20]
["680. Métiers divers",43,32,34]
["690. Bâtiment",79,60,84]
["7 Arts, jeux, sports"]
["700. Arts",1441,1117,1153]
["710. Urbanisme",114,121,94]
["720. Architecture",497,518,514]
["730. Arts plastiques, sculpture",313,310,266]
["740. Dessin, arts décoratifs, artisanat d'art",1172,1206,1299]
["750. Peinture",712,731,765]
["760. Arts graphiques",84,80,67]
["770. Photographie",843,848,804]
["780. Musique",371,392,433]
["790. Spectacles et loisirs (généralités)",38,34,38]
["791. Audiovisuel",482,508,481]
["792. Représentations scéniques",125,134,158]
["793. Jeux",613,686,802]
["796. Sports",446,425,615]
["8 Littérature et techniques d'écriture"]
["800. Histoire et critique littéraires",1311,1137,1088]
["801. Poésie",3387,3341,3808]
["802. Théâtre",890,935,846]
["803. Romans et fiction romanesque",16155,15274,17761]
["804. Essais littéraires et écrits divers",2099,1875,2120]
["805. Bandes dessinées",4912,4164,4792]
["809. Littérature pour la jeunesse",7276,7346,7748]
["9 Histoire, géographie et biographies"]
["900. Histoire et géographie (généralités)",180,157,175]
["910. Géographie, tourisme (guides) et voyages",1381,1466,1493]
["920. Biographies et généalogie",5209,5172,6386]
["930. Préhistoire et histoire ancienne",381,339,321]
["940. Histoire médiévale, moderne et contemporaine (sauf la France)",914,970,997]
["944. Histoire de la France (depuis 486)",1365,1336,1422]
["Total général",{"$f":"SUM(B4:B84)","v":75930},{"$f":"SUM(C4:C84)","v":74971},{"$f":"SUM(D4:D84)","v":82036}]
["Source : Bibliographie nationale française - Livres"]
[]
[]
["Nombre de livres par genres (documentaires et fictions)"]
["Genres ",2016,2017,2018]
["Autres",491,325,331]
["Documentaires",42552,43274,46326]
["Fiction",32421,30892,34846]
["Mixte",466,480,533]
["Total",{"$f":"SUM(B91:B94)","v":75930},74971,{"$f":"SUM(D91:D94)","v":82036}]
["Source : Bibliographie nationale française - Livres"]
["La catégorie « Autres » réunit les textes sacrés, les textes classiques, les correspondances et les mémoires. Dans la catégorie mixte, on classe notamment les ouvrages qui contiennent un texte de fiction et une documentation très développée autour de ce texte. "]
[]
["Nombre de publications officielles (PO) - répartion par classe thématique"]
[null,2016,2017,2018]
["Indice","PO","PO","PO"]
["0 Généralités"]
["000. Généralités",7,4,6]
["004. Informatique",4,3,3]
["010. Bibliographie",4,2]
["020. Sciences de l'information",50,26,17]
["030. Encyclopédies générales",2,null,1]
["060. Organisations à vocation savante",3,10,14]
["070. Presse et édition",9,16,15]
["090. Bibliophilie",9,7,11]
["1 Philosophie et psychologie"]
["100. Philosophie",43,54,38]
["130. Esotérisme, phénomènes paranormaux",2,null,2]
["150. Psychologie, psychanalyse",9,8,8]
["2 Religion et théologie"]
["200. Religion (ouvrages généraux et comparatifs)",19,9,9]
["220. Bible, judaïsme, christianisme",63,27,51]
["290. Islam, religions orientales et anciennes, autres religions",23,10,13]
["3 Sciences sociales"]
["300. Sciences sociales",161,217,154]
["320. Sciences politiques",76,77,82]
["330. Economie",215,168,221]
["340. Droit",171,177,150]
["350. Administration publique",220,115,246]
["355. Art et science militaires",18,48,35]
["360. Problèmes et services sociaux",132,121,141]
["370. Education et enseignement",89,97,119]
["380. Commerce, communication, transports",23,31,45]
["390. Ethnologie, anthropologie, folklore",25,13,17]
["4 Langues et linguistique"]
["400. Langues et linguistique",54,48,54]
["5 Sciences pures"]
["500. Sciences (généralités)",15,11,15]
["510. Mathématiques",15,13,24]
["520. Astronomie",2,8,4]
["530. Physique",7,10,3]
["540. Chimie, minéralogie, cristallographie",2,1,3]
["550. Sciences de la Terre",15,11,22]
["560. Paléontologie",2,null,6]
["570. Sciences de la vie",14,17,54]
["580. Botanique",10,10,11]
["590. Zoologie",13,6,24]
["6 Sciences appliquées"]
["600. Sciences appliquées",1,1,5]
["610. Sciences médicales et paramédicales",32,31,36]
["620. Sciences de l'ingénieur",57,65,112]
["630. Agriculture, élevage",22,30,28]
["640. Economie domestique, hôtellerie",6,13,4]
["650. Gestion et organisation de l'entreprise",35,19,27]
["660. Génie chimique et technologies connexes",5,4,4]
["670. Industries",2,null,1]
["680. Métiers divers",4,null,3]
["690. Bâtiment",12,14,8]
["7 Arts, jeux, sports"]
["700. Arts",273,290,310]
["710. Urbanisme",38,23,21]
["720. Architecture",109,109,108]
["730. Arts plastiques, sculpture",49,81,61]
["740. Dessin, arts décoratifs, artisanat d'art",55,110,83]
["750. Peinture",104,111,144]
["760. Arts graphiques",21,25,20]
["770. Photographie",81,92,74]
["780. Musique",39,43,28]
["790. Spectacles et loisirs (généralités)",3,4,5]
["791. Audiovisuel",135,51,39]
["792. Représentations scéniques",30,27,27]
["793. Jeux",6,4,5]
["796. Sports",12,14,26]
["8 Littérature et techniques d'écriture"]
["800. Histoire et critique littéraires",195,172,149]
["801. Poésie",11,8,11]
["802. Théâtre",6,3,14]
["803. Romans et fiction romanesque",12,5,15]
["804. Essais littéraires et écrits divers",19,12,16]
["805. Bandes dessinées",4,null,10]
["809. Littérature pour la jeunesse",18,10,26]
["9 Histoire, géographie et biographies"]
["900. Histoire et géographie (généralités)",13,12,8]
["910. Géographie, tourisme (guides) et voyages",21,24,15]
["920. Biographies et généalogie",111,102,100]
["930. Préhistoire et histoire ancienne",155,106,93]
["940. Histoire médiévale, moderne et contemporaine (sauf la France)",141,151,127]
["944. Histoire de la France (depuis 486)",137,133,117]
["Total",3500,{"$f":"SUM(C102:C183)","v":3274},{"$f":"SUM(D103:D183)","v":3498}]
["Source : Bibliographie nationale française - Livres"]
[]
["Nombre de publications jeunesse - répartition par classe thématique"]
[null,2016,2017,2018]
["Classes"]
["0 Généralités"]
["000. Généralités",4,3,4]
["004. Informatique",21,16,8]
["010. Bibliographie"]
["020. Sciences de l'information",null,1]
["030. Encyclopédies générales",12,38,32]
["060. Organisations à vocation savante"]
["070. Presse et édition",null,null,1]
["090. Bibliophilie"]
["1 Philosophie et psychologie"]
["100. Philosophie",8,8,13]
["130. Esotérisme, phénomènes paranormaux",5,12,4]
["150. Psychologie, psychanalyse",24,44,52]
["2 Religion et théologie"]
["200. Religion (ouvrages généraux et comparatifs)",14,4,8]
["220. Bible, judaïsme, christianisme",147,159,98]
["290. Islam, religions orientales et anciennes, autres religions",22,38,54]
["3 Sciences sociales"]
["300. Sciences sociales",15,13,28]
["320. Sciences politiques",4,12,8]
["330. Economie",5,9,6]
["340. Droit",6,5,5]
["350. Administration publique",2,1,2]
["355. Art et science militaires",3,7,3]
["360. Problèmes et services sociaux",21,19,25]
["370. Education et enseignement",34,38,89]
["380. Commerce, communication, transports",7,6,8]
["390. Ethnologie, anthropologie, folklore",12,8,14]
["4 Langues et linguistique"]
["400. Langues et linguistique",59,81,68]
["5 Sciences pures"]
["500. Sciences (généralités)",18,26,28]
["510. Mathématiques",9,4,5]
["520. Astronomie",18,26,29]
["530. Physique",2,3,6]
["540. Chimie, minéralogie, cristallographie",1,1,1]
["550. Sciences de la Terre",23,23,30]
["560. Paléontologie",25,29,34]
["570. Sciences de la vie",19,35,47]
["580. Botanique",7,11,17]
["590. Zoologie",121,134,127]
["6 Sciences appliquées"]
["600. Sciences appliquées",6,10,9]
["610. Sciences médicales et paramédicales",48,63,73]
["620. Sciences de l'ingénieur",28,40,37]
["630. Agriculture, élevage",36,43,33]
["640. Economie domestique, hôtellerie",47,48,57]
["650. Gestion et organisation de l'entreprise"]
["660. Génie chimique et technologies connexes",1,1]
["670. Industries"]
["680. Métiers divers",null,1,2]
["690. Bâtiment",3,4,7]
["7 Arts, jeux, sports"]
["700. Arts",26,27,40]
["710. Urbanisme",1,1]
["720. Architecture",7,11,5]
["730. Arts plastiques, sculpture",7,9,4]
["740. Dessin, arts décoratifs, artisanat d'art",102,102,122]
["750. Peinture",26,25,21]
["760. Arts graphiques",1,2,1]
["770. Photographie",6,3,2]
["780. Musique",10,12,36]
["790. Spectacles et loisirs (généralités)",6,4,5]
["791. Audiovisuel",8,43,34]
["792. Représentations scéniques",2,6,9]
["793. Jeux",425,461,554]
["796. Sports",55,27,59]
["8 Littérature et techniques d'écriture"]
["800. Histoire et critique littéraires",5,5,7]
["801. Poésie",71,60,62]
["802. Théâtre",59,55,55]
["803. Romans et fiction romanesque",52,48,88]
["804. Essais littéraires et écrits divers",22,25,31]
["805. Bandes dessinées",458,423,404]
["809. Littérature pour la jeunesse",7276,7346,7739]
["9 Histoire, géographie et biographies"]
["900. Histoire et géographie (généralités)",27,15,18]
["910. Géographie, tourisme (guides) et voyages",42,71,51]
["920. Biographies et généalogie",129,140,172]
["930. Préhistoire et histoire ancienne",33,26,28]
["940. Histoire médiévale, moderne et contemporaine (sauf la France)",39,52,38]
["944. Histoire de la France (depuis 486)",37,33,32]
["Total",9769,{"$f":"SUM(C190:C271)","v":10056},{"$f":"SUM(D191:D271)","v":10689}]
["Source : Bibliographie nationale française - Livres"]
[]
["Nombre de notices de nouvelles collections éditoriales parues dans la Bibliographie nationale française - publications en série et répartition par classe thématique"]
["Classes ","Indices",2016,2017,2018]
["0XX","000",59,56,47,null,"000. Généralités, collections encyclopédiques ",47]
[null,"001",3,3,2,null,"001. culture générale ",2]
[null,"004",4,3,"4",null,"004. informatique ","4"]
[null,"010",1,0,"0",null,"010. bibliographie, catalogues ","0"]
[null,"020",2,0,"0",null,"020. sciences de l'information, lecture ","0"]
[null,"060",1,1,"0",null,"060. instituts de recherche, archives, musées ","0"]
[null,"070",4,2,"1",null,"070. édition, médias, librairie ","1"]
[null,"073",22,17,"5",null,"071. magazines généraux ","0"]
["1XX","100",31,15,"19",null,"072. publications féminines, publications masculines ","1"]
[null,"130",20,11,"9",null,"073. presse et collections documentaires pour enfants et adolescents ","5"]
[null,"150",37,40,"34",null,"074. presse nationale et locale d'information ","0"]
["2XX","200",15,10,"8",null,"075. presse parallèle, fanzines ","0"]
[null,"280",34,32,"26",null,"076. journaux internes d’entreprise ","0"]
[null,"294",4,4,"1",null,"077. journaux d'annonces ","0"]
[null,"296",1,2,"1",null,"090. bibliophilie ","0"]
[null,"297",7,5,"3",null,"100. philosophie ","19"]
[null,"299",1,0,"1",null,"130. esotérisme et sciences occultes ","9"]
["3XX","300",88,73,"60",null,"150. psychologie et psychanalyse ","34"]
[null,"320",21,19,"21",null,"200. religion ","8"]
[null,323,null,1,"1",null,"280. églises chrétiennes ","26"]
[null,"324",null,1,"1",null,"294. hindouisme, bouddhisme ","1"]
[null,"327",null,1,"3",null,"296. judaïsme ","1"]
[null,"330",15,11,"12",null,"297. islam ","3"]
[null,"331",2,1,"1",null,"299. autres religions ","1"]
[null,"332",1,4,"1",null,"300. sciences sociales, sociologie ","60"]
[null,"333",1,0,"2",null,"320. sciences politiques et gouvernement ","21"]
[null,"338",1,1,"3",null,"323. droits civils et politiques, citoyenneté, minorités ","1"]
[null,"340",43,41,"34",null,"324. partis et mouvements politiques ","1"]
[null,"350",5,2,"1",null,"327. politique internationale ","3"]
[null,"352",1,1,"1",null,"330. économie ","12"]
[null,"355",2,8,"6",null,"331. économie du travail, syndicats ","1"]
[null,"362",11,11,"7",null,"332. économie financière ","1"]
[null,"363",7,14,"3",null,"333. économie du foncier et de l’énergie ","2"]
[null,"366",6,1,"3",null,"338. économie de la production et de la consommation ","3"]
[null,"368",null,0,"2",null,"340. droit ","34"]
[null,"370",24,13,"10",null,"350. administration publique ","1"]
[null,"371",2,3,"1",null,"352. administration territoriale ","1"]
[null,"373",4,4,"3",null,"355. armée, défense ","6"]
[null,"374",1,3,"0",null,"362. problèmes et services sociaux ","7"]
[null,"378",9,2,"6",null,"363. protection de l'environnement ","3"]
[null,"380",2,4,"0",null,"366. associations, cercles et clubs divers ","3"]
[null,"385",null,0,"0",null,"368. assurances, sécurité sociale, retraites ","2"]
[null,"390",2,5,"0",null,"370. éducation, enseignement ","10"]
["4XX","400",23,24,"5",null,"371. organisation scolaire, pédagogie, parents d'élèves ","1"]
["5XX","500",13,18,null,null,"373. enseignement primaire, enseignement secondaire général et technique, journaux scolaires ","3"]
[null,"510",10,2,null,null,"374. formation professionnelle et continue ","0"]
[null,"520",null,0,null,null,"378. enseignement supérieur ","6"]
[null,"530",2,1,null,null,"380. commerce ","0"]
[null,"540",null,0,null,null,"383. moyens de communication ","0"]
[null,"550",2,2,null,null,"385. transports ","0"]
[null,560,null,1,null,null,"390. ethnologie, anthropologie, folklore ","5"]
[null,"570",3,17,null,null,"400. linguistique ","20"]
[null,"580",5,2,null,null,"500. sciences ","4"]
[null,"590",4,3,null,null,"510. mathématiques ","3"]
["6XX","600",2,6,null,null,"520. astronomie ","0"]
[null,"610",64,40,null,null,"530. physique ","0"]
[null,"620",13,3,null,null,"540. chimie, minéralogie ","0"]
[null,"630",20,15,null,null,"550. sciences de la terre ","0"]
[null,"640",48,47,null,null,"560. paléontologie ","0"]
[null,"650",31,20,null,null,"570. sciences de la vie ","6"]
[null,660,1,0,null,null,"580. botanique ","1"]
[null,"670",1,1,null,null,"590. zoologie ","4"]
[null,"690",1,2,null,null,"600. sciences appliquées, technologie ","0"]
["7XX","700",52,39,null,null,"610. médecine, santé ","43"]
[null,"710",5,4,null,null,"620. sciences de l’ingénieur ","4"]
[null,"720",11,14,null,null,"630. agriculture, élevage ","10"]
[null,"730",1,4,null,null,"640. économie domestique/vie pratique, hôtellerie ","33"]
[null,"740",27,31,null,null,"650. gestion et organisation des entreprises, publicité ","19"]
[null,"750",6,5,null,null,"660. génie chimique et technologies connexes ","1"]
[null,"770",19,15,null,null,"670. industries et métiers divers ","0"]
[null,778,null,0,null,null,"690. bâtiment ","0"]
[null,"780",18,11,null,null,"700. arts ","49"]
[null,"790",4,2,null,null,"710. urbanisme, aménagement du territoire ","5"]
[null,"791",9,14,null,null,"720. architecture ","10"]
[null,"792",6,1,null,null,"730. arts plastiques, sculpture ","5"]
[null,"793",15,13,null,null,"740. dessin, arts décoratifs, artisanat d’art, bandes dessinées ","20"]
[null,"796",13,6,null,null,"750. peinture, arts graphiques ","4"]
["8XX","800",74,54,null,null,"770. photographie ","7"]
[null,"801",64,39,null,null,"778. érotisme, pornographie ","0"]
[null,"802",14,10,null,null,"780. musique ","8"]
[null,"803",212,168,null,null,"790. spectacles ","1"]
[null,"804",63,45,null,null,"791. audiovisuel ","15"]
[null,"805",21,22,null,null,"792. représentations scéniques ","5"]
[null,"809",151,110,null,null,"793. jeux et divertissements d’intérieur ","6"]
["9XX","900",11,7,null,null,"796. sports, Activités de plein air ","9"]
[null,"910",30,18,null,null,"800. littérature générale, histoire et critique littéraires, revues littéraires ",42]
[null,"920",45,40,null,null,"801. poésie ",35]
[null,"929",4,1,null,null,"802. théâtre ",6]
[null,"930",10,13,null,null,"803. roman et fiction romanesque ",179]
[null,"940",26,39,null,null,"804. essais littéraires et écrits divers ",34]
[null,"944",35,27,null,null,"805. bandes dessinées ",33]
["Total",null,{"$f":"SUM(C277:C367)","v":1683},{"$f":"SUM(D277:D367)","v":1381},null,null,"809. littérature pour la jeunesse ",83]
["Source : Bibliographie nationale française - Publications en série",null,null,null,null,null,"900. histoire et géographie ",12]
[null,null,null,null,null,null,"910. géographie, voyages, tourisme ",16]
[null,null,null,null,null,null,"920. biographies ",35]
[null,null,null,null,null,null,"929. généalogie ",2]
[null,null,null,null,null,null,"930. histoire ancienne, archéologie, préhistoire ",6]
[null,null,null,null,null,null,"940. histoire médiévale, moderne et contemporaine ",20]
[null,null,null,null,null,null,"944. histoire de France, histoire locale ",30]
[null,null,null,null,null,null,"Total ",1174]

{"sheet":"Pays","index":4,"n_rows":274,"n_cols":47,"rows_kept":274,"cut":false,"hidden":false,"merged":[]}
["Répartition par pays de publication - synthèse"]
[]
["Année","Cadre","France","Belgique","Canada","Coédition","Suisse","Autres","Allemagne","Monaco","Grande-Bretagne","Italie","Espagne","Etats-Unis"]
[2016,"0XX",682,1,null,6,2,null,1,1]
[null,"1XX",2795,35,168,21,67,4,null,8,null,3,1]
[null,"2XX",2776,42,19,62,55,35,3,1,null,9]
[null,"3XX",7834,245,32,53,49,15,1,16,null,4]
[null,"4XX",758,15,1,14,3,6,3,1,null,null,1]
[null,"5XX",1280,22,10,5,15,3,5,null,2]
[null,"6XX",5807,49,49,17,45,4,30,23,3,1,null,1]
[null,"7XX",6645,117,11,141,72,25,201,7,9,21,null,2]
[null,"8XX",34689,733,226,100,145,79,16,30,6,3,1,2]
[null,"9XX",9117,34,37,60,42,43,13,26,13,27,18]
["Total 2016",null,72383,1293,553,479,495,214,273,113,33,68,21,5]
[]
["Année","Cadre","France","Belgique","Canada","Coédition","Suisse","Autres","Allemagne","Monaco","Grande-Bretagne","Italie","Espagne","Etats-Unis"]
[2017,"0XX",614,3,2,4,1,3,1,null,1,null,1]
[null,"1XX",2823,35,174,14,54,8,1,2,null,2]
[null,"2XX",2395,58,26,50,272,44,1,4,null,2]
[null,"3XX",8558,288,36,120,49,36,3,15,1,2,2,1]
[null,"4XX",880,7,2,29,1,3,null,null,5]
[null,"5XX",1378,18,13,1,19,1,8,null,1]
[null,"6XX",5955,59,50,28,75,4,76,20,8,null,2]
[null,"7XX",6559,111,7,155,74,20,96,8,25,49,1,5]
[null,"8XX",32759,707,208,113,159,38,15,27,3,3,40,1]
[null,"9XX",9118,67,25,54,77,24,20,21,2,19,12,1]
["Total 2017",null,{"$f":"SUM(C17:C26)","v":71039},1353,543,568,781,181,221,97,46,77,58,8]
[]
["Année","Cadre","France","Belgique","Canada","Coédition","Suisse","Autres","Allemagne","Monaco","Grande-Bretagne","Italie","Espagne","Etats-Unis"]
[2018,"0XX",675,6,null,6,2,0,null,null,null,null,null,2,{"$f":"SUM(C30:N30)","v":691}]
[null,"1XX",3157,33,160,16,171,11,2,2,null,6,1,null,{"$f":"SUM(C31:N31)","v":3559}]
[null,"2XX",2450,45,22,43,143,17,null,2,1,6,60,null,2789]
[null,"3XX",8303,396,66,95,29,68,4,10,2,3,2,4,8982]
[null,"4XX",826,18,null,45,3,1,1,6,1,null,1,null,902]
[null,"5XX",1609,11,7,3,17,3,4,1,11,1,3,null,1670]
[null,"6XX",6701,50,45,14,129,4,29,10,12,1,2,null,6997]
[null,"7XX",6994,142,10,162,38,28,20,7,29,47,5,7,7489]
[null,"8XX",36569,779,315,145,143,37,9,30,106,null,30,null,38163]
[null,"9XX",10445,81,36,49,68,38,15,22,7,14,18,1,10794]
["Total 2018",null,77729,1561,661,578,743,207,84,90,169,78,122,14,82036]
["Source : Bibliographie nationale française - Livres"]
[]
["Répartition par pays de publication - détail par année"]
[]
[null,null,2018]
["Cadre","Indice","France","Algérie","Allemagne","Belgique","Bénin","Brésil","Cameroun","Canada","Comores","Croatie","Égypte","Espagne","États-Unis","Finlande","Grande-Bretagne","Grèce","Guadeloupe","Hongrie","Inconnu","Inde","Irlande","Israël","Italie","Japon","Liban","Luxembourg","Mali","Maroc","Martinique","Monaco","Coédition","Nouvelle-Calédonie","Pays-Bas","Pologne","Polynésie française","Portugal","République démocratique du Congo","République du Congo","République tchèque","Réunion","Sénégal","Serbie","Suisse","Tunisie","Total général"]
["0XX","000. Généralités",68,null,null,null,null,null,null,null,null,null,null,null,2,null,null,null,null,null,null,null,null,null,null,null,null,null,null,null,null,null,null,null,null,null,null,null,null,null,null,null,null,null,null,null,70]
[null,"004. Informatique",350,null,null,1,null,null,null,null,null,null,null,null,null,null,null,null,null,null,null,null,null,null,null,null,null,null,null,null,null,null,null,null,null,null,null,null,null,null,null,null,null,null,null,null,351]
[null,"010. Bibliographie",3,null,null,null,null,null,null,null,null,null,null,null,null,null,null,null,null,null,null,null,null,null,null,null,null,null,null,null,null,null,null,null,null,null,null,null,null,null,null,null,null,null,null,null,3]
[null,"020. Sciences de l'information",55,null,null,1,null,null,null,null,null,null,null,null,null,null,null,null,null,null,null,null,null,null,null,null,null,null,null,null,null,null,1,null,null,null,null,null,null,null,null,null,null,null,1,null,58]
[null,"030. Encyclopédies générales",60,null,null,null,null,null,null,null,null,null,null,null,null,null,null,null,null,null,null,null,null,null,null,null,null,null,null,null,null,null,1,null,null,null,null,null,null,null,null,null,null,null,null,null,61]
[null,"060. Organisations à vocation savante",26,null,null,null,null,null,null,null,null,null,null,null,null,null,null,null,null,null,null,null,null,null,null,null,null,null,null,null,null,null,null,null,null,null,null,null,null,null,null,null,null,null,null,null,26]
[null,"070. Presse et édition",92,null,null,2,null,null,null,null,null,null,null,null,null,null,null,null,null,null,null,null,null,null,null,null,null,null,null,null,null,null,3,null,null,null,null,null,null,null,null,null,null,null,1,null,98]
[null,"090. Bibliophilie",21,null,null,2,null,null,null,null,null,null,null,null,null,null,null,null,null,null,null,null,null,null,null,null,null,null,null,null,null,null,1,null,null,null,null,null,null,null,null,null,null,null,null,null,24]
["1XX","100. Philosophie",1084,null,null,9,null,null,null,6,null,null,null,null,null,null,null,null,null,null,null,null,null,null,4,null,null,null,null,null,null,null,10,null,null,null,null,null,null,null,null,null,2,null,5,null,1120]
[null,"130. Esotérisme, phénomènes paranormaux",795,null,2,null,null,null,null,87,null,null,null,1,null,null,null,null,null,null,null,null,null,null,null,4,null,null,null,null,null,1,1,null,null,null,null,1,null,null,null,null,1,3,77,null,973]
[null,"150. Psychologie, psychanalyse",1278,null,null,24,null,null,null,67,null,null,null,null,null,null,null,null,null,null,null,null,null,null,2,null,null,null,null,null,null,1,5,null,null,null,null,null,null,null,null,null,null,null,89,null,1466]
["2XX","200. Religion (ouvrages généraux et comparatifs)",175,null,null,1,null,null,null,7,null,null,null,null,null,null,1,null,null,null,null,null,null,null,null,1,null,null,null,null,null,1,4,null,null,null,null,null,null,null,null,null,null,null,6,null,196]
[null,"220. Bible, judaïsme, christianisme",1833,null,null,34,null,1,null,9,null,1,null,1,null,null,null,null,null,null,null,null,1,1,5,null,null,null,null,null,null,null,31,null,null,null,null,null,null,null,null,null,1,null,127,null,2045]
[null,"290. Islam, religions orientales et anciennes, autres religions",442,null,null,10,null,null,null,6,null,null,1,59,null,null,null,null,null,null,null,null,null,null,1,null,2,null,1,null,null,1,8,null,null,null,null,null,null,null,null,null,7,null,10,null,548]
["3XX","300. Sciences sociales",1333,null,4,37,null,null,null,17,1,null,null,1,null,null,1,null,1,null,null,null,null,null,null,null,null,null,null,null,null,null,23,null,null,null,null,null,null,null,null,null,9,null,10,null,1437]
[null,"320. Sciences politiques",1175,null,null,28,null,null,null,15,null,null,null,null,null,null,null,null,null,null,null,null,2,null,null,null,null,null,null,null,null,2,21,null,null,null,null,null,null,2,null,null,11,null,8,null,1264]
[null,"330. Economie",1182,null,null,13,null,null,null,10,null,null,null,null,1,null,null,null,null,null,null,null,null,null,null,null,null,null,null,null,null,1,13,2,null,null,null,null,null,null,null,null,6,null,6,null,1234]
[null,"340. Droit",1655,null,null,286,null,null,null,null,null,null,null,null,null,null,null,null,null,null,null,null,null,null,null,null,1,7,null,null,null,null,12,1,null,null,null,null,null,null,null,null,11,null,1,1,1975]
[null,"350. Administration publique",471,null,null,4,null,null,null,null,null,null,null,null,null,null,null,null,1,null,null,null,null,null,null,null,null,null,null,null,null,null,4,1,null,null,null,null,null,null,null,null,1,null,null,null,482]
[null,"355. Art et science militaires",193,null,null,1,null,null,null,2,null,null,null,null,null,null,null,null,null,null,null,null,null,null,null,null,null,null,null,null,null,1,2,null,null,null,null,null,null,null,null,null,null,null,null,null,199]
[null,"360. Problèmes et services sociaux",1008,null,null,7,null,null,null,11,null,null,null,null,null,null,null,null,null,null,null,null,null,null,1,null,null,null,null,null,null,4,7,2,null,null,null,null,null,null,null,null,null,null,null,null,1040]
[null,"370. Education et enseignement",841,null,null,15,null,null,null,9,null,null,null,1,3,null,null,null,null,null,null,null,null,null,1,null,null,null,null,null,null,null,11,null,null,null,2,null,null,null,null,null,1,null,1,null,885]
[null,"380. Commerce, communication, transports",239,null,null,null,null,null,null,null,null,null,null,null,null,null,1,null,null,null,null,null,null,null,null,null,null,null,null,null,null,1,null,1,null,null,null,null,null,null,null,null,null,null,2,null,244]
[null,"390. Ethnologie, anthropologie, folklore",206,null,null,5,1,null,null,2,null,null,null,null,null,null,null,null,null,null,null,1,null,null,1,null,null,null,null,null,null,1,2,null,null,null,2,null,null,null,null,null,null,null,1,null,222]
["4XX","400. Langues et linguistique",826,null,1,18,null,null,null,null,null,null,1,1,null,null,1,null,null,null,null,null,null,null,null,null,null,null,null,null,null,6,45,null,null,null,null,null,null,null,null,null,null,null,3,null,902]
["5XX","500. Sciences (généralités)",139,null,null,3,null,null,null,1,null,null,null,1,null,null,null,null,null,null,null,null,null,null,null,null,null,null,null,null,null,null,1,null,null,null,null,null,null,null,null,null,null,null,null,null,145]
[null,"510. Mathématiques",271,null,null,1,null,null,null,1,null,null,null,null,null,null,1,null,null,null,null,null,null,null,null,null,null,null,null,null,null,null,null,null,null,null,null,null,null,null,null,null,1,null,2,null,277]
[null,"520. Astronomie",86,null,1,null,null,null,null,null,null,null,null,null,null,null,3,null,null,null,null,null,null,null,null,null,null,null,null,null,null,null,1,null,null,null,null,null,null,null,null,null,null,null,null,null,91]
[null,"530. Physique",150,null,null,1,null,null,null,null,null,null,null,null,null,null,1,null,null,null,null,null,null,null,null,null,null,null,null,null,null,null,null,null,null,null,null,null,null,null,null,null,null,null,1,null,153]
[null,"540. Chimie, minéralogie, cristallographie",43,null,null,1,null,null,null,null,null,null,null,null,null,null,null,null,null,null,null,null,null,null,null,null,null,null,null,null,null,null,1,null,null,null,null,null,null,null,null,null,null,null,null,null,45]
[null,"550. Sciences de la Terre",120,null,1,null,null,null,null,null,null,null,null,null,null,null,null,null,null,null,null,null,null,null,null,null,null,null,null,null,null,null,null,null,null,null,null,null,null,null,null,null,null,null,null,null,121]
[null,"560. Paléontologie",54,null,null,null,null,null,null,null,null,null,null,null,null,null,1,null,null,null,null,null,null,null,null,null,null,null,null,null,null,1,null,null,null,null,null,null,null,null,null,null,null,null,null,null,56]
[null,"570. Sciences de la vie",238,null,null,2,null,null,null,1,null,null,null,1,null,null,2,null,null,null,null,null,null,null,null,null,null,null,null,null,null,null,null,null,null,null,null,null,null,null,null,null,null,null,8,null,252]
[null,"580. Botanique",155,null,null,null,null,null,null,null,null,null,null,1,null,null,null,null,null,null,null,null,null,null,null,null,null,null,null,null,null,null,null,null,null,null,null,null,null,null,null,null,1,null,1,null,158]
[null,"590. Zoologie",353,null,2,3,null,null,null,4,null,null,null,null,null,null,3,null,null,null,null,null,null,null,1,null,1,null,null,null,null,null,null,null,null,null,null,null,null,null,null,null,null,null,5,null,372]
["6XX","600. Sciences appliquées",25,null,null,1,null,null,null,null,null,null,null,null,null,null,1,null,null,null,null,null,null,null,null,null,null,null,null,null,null,null,null,null,null,null,null,null,null,null,null,null,null,null,null,null,27]
[null,"610. Sciences médicales et paramédicales",2293,null,1,30,null,null,null,28,null,null,null,1,null,null,null,null,null,null,null,null,null,null,1,null,null,null,null,null,null,5,1,null,null,null,null,null,null,null,null,null,1,null,85,null,2446]
[null,"620. Sciences de l'ingénieur",734,null,null,1,null,null,null,null,null,null,null,null,null,null,2,null,null,null,null,null,null,null,null,null,null,null,null,null,null,null,null,null,null,null,null,null,null,null,null,null,null,null,null,null,737]
[null,"630. Agriculture, élevage",593,null,1,null,null,null,null,null,null,null,null,1,null,null,1,null,null,null,null,null,null,null,null,null,null,null,null,null,null,null,2,null,null,null,null,null,null,null,null,null,null,null,3,null,601]
[null,"640. Economie domestique, hôtellerie",1726,null,27,4,null,null,null,5,null,null,null,null,null,null,8,null,null,null,null,null,null,null,null,null,null,null,null,null,1,3,4,null,null,null,null,null,null,null,null,null,null,null,37,null,1815]
[null,"650. Gestion et organisation de l'entreprise",1126,null,null,13,null,null,1,11,null,null,null,null,null,null,null,null,null,null,null,null,null,null,null,null,null,null,null,null,null,2,7,null,null,null,null,null,null,null,null,null,null,null,2,null,1162]
[null,"660. Génie chimique et technologies connexes",69,null,null,null,null,null,null,null,null,null,null,null,null,null,null,null,null,null,null,null,null,null,null,null,null,null,null,null,null,null,null,null,null,null,null,null,null,null,null,null,null,null,2,null,71]
[null,"670. Industries",20,null,null,null,null,null,null,null,null,null,null,null,null,null,null,null,null,null,null,null,null,null,null,null,null,null,null,null,null,null,null,null,null,null,null,null,null,null,null,null,null,null,null,null,20]
[null,"680. Métiers divers",32,null,null,1,null,null,null,null,null,null,null,null,null,null,null,null,null,null,null,null,null,null,null,null,1,null,null,null,null,null,null,null,null,null,null,null,null,null,null,null,null,null,null,null,34]
[null,"690. Bâtiment",83,null,null,null,null,null,null,1,null,null,null,null,null,null,null,null,null,null,null,null,null,null,null,null,null,null,null,null,null,null,null,null,null,null,null,null,null,null,null,null,null,null,null,null,84]
["7XX","700. Arts",1042,null,null,25,null,1,null,1,null,null,null,null,null,null,5,2,null,null,null,null,null,null,13,null,null,1,null,null,null,1,51,null,1,1,null,null,null,null,null,1,null,null,8,null,1153]
[null,"710. Urbanisme",85,null,null,3,null,null,null,null,null,null,null,null,null,null,null,null,null,null,null,null,null,null,null,null,null,null,null,null,null,null,3,null,null,null,null,null,null,null,null,null,null,null,3,null,94]
[null,"720. Architecture",478,null,1,10,null,null,null,null,null,null,1,null,3,null,null,1,null,null,null,null,null,null,1,null,null,null,null,null,null,2,14,null,null,null,null,null,null,null,null,null,null,null,3,null,514]
[null,"730. Arts plastiques, sculpture",242,null,null,2,null,null,null,null,null,null,2,null,1,null,null,null,null,null,null,null,null,null,3,null,1,null,null,null,null,null,11,null,1,null,null,null,null,null,null,null,null,null,3,null,266]
[null,"740. Dessin, arts décoratifs, artisanat d'art",1240,null,14,16,null,null,null,3,null,null,null,null,2,null,9,null,null,null,null,null,null,null,2,null,null,null,null,null,null,null,12,null,null,null,null,null,null,null,null,null,null,null,1,null,1299]
[null,"750. Peinture",713,null,null,8,null,null,null,null,null,null,null,null,null,null,2,null,null,null,null,null,null,null,7,null,null,null,null,null,null,1,33,null,null,null,null,null,null,null,null,null,null,null,1,null,765]
[null,"760. Arts graphiques",65,null,null,null,null,null,null,null,null,null,null,null,null,null,null,null,null,null,null,null,null,null,null,null,null,null,null,null,null,null,1,null,null,null,null,null,null,null,null,null,null,null,1,null,67]
[null,"770. Photographie",747,null,3,14,null,null,null,null,1,null,null,null,1,null,2,null,null,null,1,1,null,null,4,null,1,null,null,null,null,null,22,null,null,null,null,null,null,null,null,2,null,null,5,null,804]
[null,"780. Musique",415,null,null,4,null,null,null,null,null,null,null,null,null,null,null,null,null,1,null,null,null,null,null,null,null,null,null,1,null,1,3,null,null,null,null,null,null,null,null,null,1,null,7,null,433]
[null,"790. Spectacles et loisirs (généralités)",37,null,null,null,null,null,null,null,null,null,null,1,null,null,null,null,null,null,null,null,null,null,null,null,null,null,null,null,null,null,null,null,null,null,null,null,null,null,null,null,null,null,null,null,38]
[null,"791. Audiovisuel",445,null,null,10,null,null,null,null,null,null,null,4,null,null,null,null,null,null,null,null,null,null,14,null,null,null,null,null,null,null,5,null,null,null,null,null,null,null,null,null,1,null,2,null,481]
[null,"792. Représentations scéniques",148,null,1,3,null,null,null,null,null,null,null,null,null,null,null,null,null,null,null,null,null,null,1,null,null,null,null,null,null,null,4,null,null,null,null,null,null,null,null,null,null,null,1,null,158]
[null,"793. Jeux",738,null,null,39,null,null,null,5,null,null,null,null,null,null,11,null,null,null,null,null,2,null,2,null,null,null,null,null,null,1,1,null,null,null,null,null,null,null,null,2,null,null,1,null,802]
[null,"796. Sports",599,null,1,8,null,null,null,1,null,null,null,null,null,null,null,null,null,null,null,null,null,null,null,null,null,null,null,null,null,1,2,null,null,null,null,null,null,null,null,1,null,null,2,null,615]
["8XX","800. Histoire et critique littéraires",1048,null,null,10,null,null,null,9,null,null,null,1,null,null,null,null,null,null,null,null,null,null,null,null,null,null,null,null,null,null,16,null,null,null,null,null,null,null,null,null,null,null,4,null,1088]
[null,"801. Poésie",3734,1,null,16,null,null,null,19,null,null,null,null,null,null,null,null,null,null,null,2,null,null,null,null,null,null,null,null,null,null,24,null,null,null,null,null,null,null,null,1,3,null,8,null,3808]
[null,"802. Théâtre",832,1,null,7,null,null,null,2,1,null,null,null,null,null,null,null,null,null,null,null,null,null,null,null,null,null,null,null,null,null,3,null,null,null,null,null,null,null,null,null,null,null,null,null,846]
[null,"803. Romans et fiction romanesque",17334,null,3,55,null,null,null,214,3,null,null,3,null,null,null,null,null,null,null,1,1,null,null,null,null,null,null,null,null,26,47,null,null,null,null,null,null,null,1,null,6,null,67,null,17761]
[null,"804. Essais littéraires et écrits divers",2035,null,null,48,null,null,null,20,null,null,null,null,null,1,null,null,null,null,null,null,null,null,null,null,null,null,null,null,null,1,5,null,null,null,null,null,null,null,null,null,3,null,7,null,2120]
[null,"805. Bandes dessinées",4287,null,null,400,null,null,null,1,null,null,null,5,null,null,79,null,null,null,null,null,null,null,null,null,null,null,null,null,null,2,11,null,null,null,null,null,null,null,null,null,null,null,7,null,4792]
[null,"809. Littérature pour la jeunesse",7299,null,6,243,null,null,null,50,1,null,null,21,null,null,27,null,2,null,null,null,null,null,null,null,8,null,null,null,null,1,39,1,null,null,null,null,null,null,null,null,null,null,50,null,7748]
["9XX","900. Histoire et géographie (généralités)",164,null,null,1,null,null,null,null,null,null,null,4,null,null,5,null,null,null,null,null,null,null,null,null,null,null,null,null,null,1,null,null,null,null,null,null,null,null,null,null,null,null,null,null,175]
[null,"910. Géographie, tourisme (guides) et voyages",1467,null,null,18,null,null,null,1,null,null,null,1,null,null,2,null,null,null,null,null,null,null,1,null,null,null,null,null,null,null,null,null,null,null,null,null,null,null,null,null,null,null,3,null,1493]
[null,"920. Biographies et généalogie",6183,null,12,43,null,null,null,31,null,null,null,5,null,null,null,1,null,null,null,null,null,null,1,null,2,null,null,null,null,17,27,1,null,null,null,null,1,null,null,null,3,1,58,null,6386]
[null,"930. Préhistoire et histoire ancienne",281,null,null,7,null,null,null,null,null,null,15,2,null,null,null,4,null,null,null,null,null,null,4,null,null,null,null,null,null,null,7,null,null,null,null,null,null,null,null,null,null,null,1,null,321]
[null,"940. Histoire médiévale, moderne et contemporaine (sauf la France)",935,null,2,10,null,null,null,4,null,null,2,6,null,null,null,1,null,null,null,null,null,null,7,null,null,null,null,null,null,4,13,null,null,1,null,null,null,null,null,null,1,4,6,1,997]
[null,"944. Histoire de la France (depuis 486)",1415,null,1,2,null,null,null,null,null,null,null,null,1,null,null,null,null,null,null,null,null,null,1,null,null,null,null,null,null,null,2,null,null,null,null,null,null,null,null,null,null,null,null,null,1422]
["Total",null,77729,2,84,1561,1,2,1,661,7,1,22,122,14,1,169,9,4,1,1,5,6,1,78,5,17,8,1,1,1,90,578,9,2,2,4,1,1,2,1,7,71,8,743,2,82036]
["Source : Bibliographie nationale française - Livres"]
[]
[null,null,2017,null,null,null,null,null,null,null,null,null,null,null,null,null,null,null,null,null,null,null,null,null,null,null,null,null,null,null,null,null,null,null,null,null,null,null,null,null,null,null,"Total 2017"]
["Cadre","Indice","France","Belgique","Canada","Suisse","Coédition","Allemagne","Monaco","Italie","Liban","Grande-Bretagne","Sénégal","Espagne","Egypte","Finlande","Irlande","Réunion","Israël","Grèce","Comores","Hongrie","Martinique","Japon","Etats-Unis","Guadeloupe","Nouvelle-Calédonie","Maurice","Roumanie","Inde","Russie","République du Congo","Luxembourg","Iran","Brésil","Argentine","Intergouvernemental","Pologne","Arabie Saoudite","Micronésie","Gabon","Polynésie"]
["0XX","000. Généralités",46,null,null,null,null,null,null,null,null,null,null,null,null,null,null,null,null,null,null,null,null,null,null,null,null,null,null,null,null,null,null,null,null,null,null,null,null,null,null,null,{"$f":"SUM(C124:AP124)","v":46}]
[null,"004. Informatique",308,1,null,null,null,null,null,null,null,null,null,null,null,null,null,null,null,null,null,null,null,null,null,null,null,null,null,null,null,null,null,null,null,null,null,null,null,null,null,null,309]
[null,"010. Bibliographie",8,null,null,null,null,null,null,null,null,null,null,null,null,null,null,null,null,null,null,null,null,null,null,null,null,null,null,null,null,null,null,null,null,null,null,null,null,null,null,null,8]
[null,"020. Sciences de l'information",58,null,1,null,3,null,null,null,null,null,null,null,null,null,null,null,null,null,null,null,null,null,null,null,null,null,null,null,null,null,null,null,null,null,null,null,null,null,null,null,62]
[null,"030. Encyclopédies générales",67,null,null,null,null,null,null,null,null,1,null,null,null,null,null,null,null,null,null,null,null,null,null,null,null,null,null,null,null,null,null,null,null,null,null,null,null,null,null,null,68]
[null,"060. Organisations à vocation savante",17,null,null,1,1,null,null,null,null,null,null,null,null,null,null,null,null,null,null,null,null,null,null,null,null,null,null,null,null,null,null,null,null,null,null,null,null,null,null,null,19]
[null,"070. Presse et édition",90,1,1,null,null,1,null,null,null,null,1,1,1,null,null,null,null,null,null,null,null,null,null,null,null,null,null,1,null,null,null,null,null,null,null,null,null,null,null,null,97]
[null,"090. Bibliophilie",20,1,null,null,null,null,null,null,null,null,null,null,null,null,null,null,null,null,null,null,null,null,null,null,null,null,null,null,null,null,null,null,null,null,null,null,null,null,null,null,21]
["1XX","100. Philosophie",976,9,5,6,9,1,1,2,1,null,null,null,null,null,1,null,null,null,null,null,null,null,null,null,null,null,null,null,null,null,null,null,1,null,null,null,null,null,null,null,1012]
[null,"130. Esotérisme, phénomènes paranormaux",775,null,86,5,null,null,null,null,null,null,null,null,null,null,4,null,null,null,null,null,null,1,null,null,null,null,null,null,null,null,null,null,null,null,null,null,null,null,null,null,871]
[null,"150. Psychologie, psychanalyse",1072,26,83,43,5,null,1,null,null,null,null,null,null,null,null,null,null,null,null,null,null,null,null,null,null,null,null,null,null,null,null,null,null,null,null,null,null,null,null,null,1230]
["2XX","200. Religion (ouvrages généraux et comparatifs)",152,1,5,7,1,null,null,1,null,null,1,null,null,null,1,null,null,null,null,null,null,null,null,null,null,null,null,null,null,null,null,null,null,null,null,null,null,null,null,null,169]
[null,"220. Bible, judaïsme, christianisme",1839,52,15,261,47,null,3,null,null,null,null,null,null,null,2,null,5,null,null,null,null,null,null,null,null,null,null,null,null,null,null,null,null,null,null,null,null,null,null,null,2224]
[null,"290. Islam, religions orientales et anciennes, autres religions",404,5,6,4,2,1,1,1,27,null,5,null,null,null,null,null,null,1,1,null,null,null,null,null,null,null,null,null,null,null,null,null,null,null,null,null,1,null,null,null,459]
["3XX","300. Sciences sociales",1336,24,14,21,25,1,3,null,null,null,3,null,null,null,1,null,null,null,null,null,null,null,null,1,null,null,null,null,null,null,null,null,null,null,null,null,null,null,null,1,1430]
[null,"320. Sciences politiques",1491,26,3,8,23,null,2,1,1,1,2,null,null,null,13,null,null,null,null,null,null,null,1,null,null,null,null,null,null,null,null,1,null,null,null,null,null,null,null,null,1573]
[null,"330. Economie",1219,14,8,5,17,null,1,null,null,null,1,null,null,null,null,null,null,null,null,null,null,null,null,null,1,null,null,null,null,null,null,null,null,null,null,null,null,null,null,null,1266]
[null,"340. Droit",1827,170,null,1,40,null,1,null,null,null,4,null,null,null,null,null,null,null,null,null,null,null,null,null,null,null,null,null,null,null,1,null,null,null,null,null,null,null,null,null,{"$f":"SUM(C141:AP141)","v":2044}]
[null,"350. Administration publique",377,4,null,null,null,null,null,null,null,null,1,null,null,null,1,null,null,null,null,null,null,null,null,null,null,null,null,null,null,null,null,null,null,null,null,null,null,null,null,null,383]
[null,"355. Art et science militaires",219,4,null,1,null,null,null,null,null,null,null,null,null,null,null,null,null,null,null,null,null,null,null,null,null,null,null,null,null,null,null,null,null,null,null,null,null,null,null,null,224]
[null,"360. Problèmes et services sociaux",948,14,3,8,5,1,4,null,null,null,1,1,null,null,null,null,null,null,null,null,null,null,null,null,null,null,null,null,null,null,null,null,null,null,null,null,null,null,null,null,985]
[null,"370. Education et enseignement",718,30,8,4,8,null,4,null,null,null,1,1,null,null,null,null,null,null,null,null,null,null,null,null,null,null,null,null,null,null,null,null,null,null,1,null,null,null,null,null,775]
[null,"380. Commerce, communication, transports",226,1,null,null,null,1,null,null,null,null,null,null,null,null,null,null,null,null,null,null,null,null,null,null,null,null,null,null,null,null,null,null,null,null,null,null,null,null,null,null,228]
[null,"390. Ethnologie, anthropologie, folklore",198,1,null,1,2,null,null,1,null,null,null,null,null,null,null,null,null,null,null,null,null,null,null,null,null,null,null,null,null,null,null,null,null,null,null,null,null,null,null,null,203]
["4XX","400. Langues et linguistique",880,7,2,1,29,null,null,null,null,5,null,null,null,1,null,null,null,null,2,null,null,null,null,null,null,null,null,null,null,null,null,null,null,null,null,null,null,null,null,null,927]
["5XX","500. Sciences (généralités)",113,null,null,null,null,1,null,null,null,null,null,null,null,null,null,null,null,null,null,null,null,null,null,null,null,null,null,null,null,null,null,null,null,null,null,null,null,null,null,null,114]
[null,"510. Mathématiques",235,5,null,null,null,1,null,null,null,null,null,null,null,null,null,null,null,null,null,null,null,null,null,null,null,null,null,null,null,null,null,null,null,null,null,null,null,null,null,null,241]
[null,"520. Astronomie",81,null,null,null,null,null,null,null,null,1,null,null,null,null,null,null,null,null,null,null,null,null,null,null,null,null,null,null,null,null,null,null,null,null,null,null,null,null,null,null,82]
[null,"530. Physique",142,1,null,null,null,null,null,null,null,null,null,null,null,null,null,null,null,null,null,null,null,null,null,null,null,null,null,null,null,null,null,null,null,null,null,null,null,null,null,null,143]
[null,"540. Chimie, minéralogie, cristallographie",51,3,1,null,null,null,null,null,null,null,null,null,null,null,null,null,null,null,null,null,null,null,null,null,null,null,null,null,null,null,null,null,null,null,null,null,null,null,null,null,55]
[null,"550. Sciences de la Terre",83,4,1,null,null,1,null,null,null,null,null,null,null,null,null,null,null,null,null,null,null,null,null,null,null,null,null,null,null,null,null,null,null,null,null,null,null,null,null,null,89]
[null,"560. Paléontologie",40,null,null,null,null,1,null,null,null,null,null,null,null,null,null,null,null,null,null,null,null,null,null,null,null,null,null,null,null,null,null,null,null,null,null,null,null,null,null,null,41]
[null,"570. Sciences de la vie",220,3,1,9,null,2,null,null,null,null,null,null,null,null,null,null,null,null,null,null,null,null,null,null,null,null,null,null,null,null,null,null,null,null,null,null,null,null,null,null,235]
[null,"580. Botanique",123,null,null,4,1,2,null,null,null,null,null,null,null,null,null,null,null,null,null,null,null,null,null,null,null,null,null,null,null,null,null,null,null,null,null,null,null,null,null,null,130]
[null,"590. Zoologie",290,2,10,6,null,null,null,null,null,null,null,null,null,null,null,1,null,null,null,null,null,null,null,null,null,null,null,null,null,null,null,null,null,null,null,null,null,null,null,null,309]
["6XX","600. Sciences appliquées",26,1,null,null,null,null,null,null,null,null,null,null,null,null,null,null,null,null,null,null,null,null,null,null,null,null,null,null,null,null,null,null,null,null,null,null,null,null,null,null,27]
[null,"610. Sciences médicales et paramédicales",1812,41,24,30,7,2,17,null,null,null,null,null,null,null,1,null,null,null,null,null,null,null,null,null,null,null,null,null,null,null,1,null,null,null,null,null,null,null,null,null,1935]
[null,"620. Sciences de l'ingénieur",560,3,null,null,3,2,null,null,null,1,null,null,null,null,null,null,null,null,null,null,null,null,null,null,null,null,null,null,null,null,null,null,null,null,null,null,null,null,null,null,569]
[null,"630. Agriculture, élevage",556,null,4,5,2,5,null,null,null,null,null,2,null,null,null,null,null,null,null,null,null,null,null,null,null,null,null,null,null,null,null,null,null,null,null,null,null,null,null,null,574]
[null,"640. Economie domestique, hôtellerie",1688,1,8,37,15,66,3,null,null,7,null,null,null,null,null,null,null,null,null,null,null,null,null,null,null,null,null,null,null,null,null,null,null,null,null,null,null,null,null,null,1825]
[null,"650. Gestion et organisation de l'entreprise",1157,12,14,1,1,null,null,null,null,null,2,null,null,null,null,null,null,null,null,null,null,null,null,null,null,null,null,null,null,null,null,null,null,null,null,null,null,null,null,null,1187]
[null,"660. Génie chimique et technologies connexes",50,null,null,null,null,null,null,null,null,null,null,null,null,null,null,null,null,null,null,null,null,null,null,null,null,null,null,null,null,null,null,null,null,null,null,null,null,null,null,null,50]
[null,"670. Industries",18,null,null,null,null,null,null,null,null,null,null,null,null,null,null,null,null,null,null,null,null,null,null,null,null,null,null,null,null,null,null,null,null,null,null,null,null,null,null,null,18]
[null,"680. Métiers divers",29,1,null,2,null,null,null,null,null,null,null,null,null,null,null,null,null,null,null,null,null,null,null,null,null,null,null,null,null,null,null,null,null,null,null,null,null,null,null,null,32]
[null,"690. Bâtiment",59,null,null,null,null,1,null,null,null,null,null,null,null,null,null,null,null,null,null,null,null,null,null,null,null,null,null,null,null,null,null,null,null,null,null,null,null,null,null,null,60]
["7XX","700. Arts",995,21,null,14,61,6,null,13,null,4,null,null,null,null,null,2,null,null,null,null,null,null,null,null,null,null,null,null,1,null,null,null,null,null,null,null,null,null,null,null,1117]
[null,"710. Urbanisme",116,null,null,5,null,null,null,null,null,null,null,null,null,null,null,null,null,null,null,null,null,null,null,null,null,null,null,null,null,null,null,null,null,null,null,null,null,null,null,null,121]
[null,"720. Architecture",483,4,2,13,4,9,1,1,null,1,null,null,null,null,null,null,null,null,null,null,null,null,null,null,null,null,null,null,null,null,null,null,null,null,null,null,null,null,null,null,518]
[null,"730. Arts plastiques, sculpture",276,4,null,1,13,2,null,9,null,null,null,null,3,null,null,1,null,1,null,null,null,null,null,null,null,null,null,null,null,null,null,null,null,null,null,null,null,null,null,null,310]
[null,"740. Dessin, arts décoratifs, artisanat d'art",1137,10,null,6,22,21,null,3,null,2,null,null,null,null,null,null,null,null,null,null,null,null,3,null,null,null,null,null,null,null,null,null,null,null,null,null,2,null,null,null,1206]
[null,"750. Peinture",663,12,null,9,25,13,null,8,null,null,null,null,null,null,null,null,null,null,null,null,null,null,null,null,1,null,null,null,null,null,null,null,null,null,null,null,null,null,null,null,731]
[null,"760. Arts graphiques",75,null,null,null,2,2,1,null,null,null,null,null,null,null,null,null,null,null,null,null,null,null,null,null,null,null,null,null,null,null,null,null,null,null,null,null,null,null,null,null,80]
[null,"770. Photographie",753,10,1,14,14,31,null,6,null,14,null,null,null,null,null,3,null,null,1,null,null,null,null,null,null,null,null,null,null,null,null,1,null,null,null,null,null,null,null,null,848]
[null,"780. Musique",373,null,1,3,7,1,3,2,null,null,null,null,null,null,null,1,null,null,null,null,null,null,1,null,null,null,null,null,null,null,null,null,null,null,null,null,null,null,null,null,392]
[null,"790. Spectacles et loisirs (généralités)",34,null,null,null,null,null,null,null,null,null,null,null,null,null,null,null,null,null,null,null,null,null,null,null,null,null,null,null,null,null,null,null,null,null,null,null,null,null,null,null,34]
[null,"791. Audiovisuel",477,13,null,3,3,4,null,5,null,2,null,null,null,null,null,null,null,null,null,null,null,null,1,null,null,null,null,null,null,null,null,null,null,null,null,null,null,null,null,null,508]
[null,"792. Représentations scéniques",129,null,null,1,1,1,null,2,null,null,null,null,null,null,null,null,null,null,null,null,null,null,null,null,null,null,null,null,null,null,null,null,null,null,null,null,null,null,null,null,134]
[null,"793. Jeux",644,32,3,null,1,1,2,null,null,2,null,null,null,null,1,null,null,null,null,null,null,null,null,null,null,null,null,null,null,null,null,null,null,null,null,null,null,null,null,null,686]
[null,"796. Sports",404,5,null,5,2,5,1,null,null,null,null,1,null,null,null,1,null,null,null,null,null,null,null,null,1,null,null,null,null,null,null,null,null,null,null,null,null,null,1,null,426]
["8XX","800. Histoire et critique littéraires",1093,11,2,5,19,null,null,1,null,1,null,3,null,null,1,null,null,null,null,null,null,null,null,null,null,null,null,null,null,null,null,null,null,null,null,null,null,null,null,null,1136]
[null,"801. Poésie",3277,15,3,17,26,null,null,null,null,null,null,null,null,null,null,null,null,null,1,1,null,null,null,null,null,null,null,null,null,null,null,null,null,1,null,null,null,null,null,null,3341]
[null,"802. Théâtre",930,null,null,3,2,null,null,null,null,null,null,null,null,null,null,null,null,null,null,null,null,null,null,null,null,null,null,null,null,null,null,null,null,null,null,null,null,null,null,null,935]
[null,"803. Romans et fiction romanesque",14996,38,126,62,20,2,17,null,2,null,3,null,null,null,null,null,null,null,2,null,null,1,1,null,1,null,null,null,null,3,null,null,null,null,null,null,null,null,null,null,15274]
[null,"804. Essais littéraires et écrits divers",1812,27,6,20,6,null,1,null,null,null,null,null,null,null,null,null,null,null,null,null,1,null,null,null,null,null,1,null,null,null,null,1,null,null,null,null,null,null,null,null,1875]
[null,"805. Bandes dessinées",3704,438,3,4,10,1,4,null,null,null,null,null,null,null,null,null,null,null,null,null,null,null,null,null,null,null,null,null,null,null,null,null,null,null,null,null,null,null,null,null,4164]
[null,"809. Littérature pour la jeunesse",6946,178,68,48,30,12,5,2,8,2,null,37,null,null,7,1,null,null,1,null,null,null,null,null,1,null,null,null,null,null,null,null,null,null,null,null,null,null,null,null,7346]
["9XX","900. Histoire et géographie (généralités)",154,null,null,1,2,null,null,null,null,null,null,null,null,null,null,null,null,null,null,null,null,null,null,null,null,null,null,null,null,null,null,null,null,null,null,null,null,null,null,null,157]
[null,"910. Géographie, tourisme (guides) et voyages",1430,4,7,5,8,8,null,null,null,1,null,2,null,null,null,null,null,null,null,null,null,null,null,null,null,null,null,null,null,null,null,1,null,null,null,null,null,null,null,null,1466]
[null,"920. Biographies et généalogie",5014,32,16,56,19,2,15,4,3,null,2,1,null,null,1,null,null,null,1,null,null,null,1,null,1,2,null,null,null,1,null,null,null,null,null,null,null,1,null,null,5172]
[null,"930. Préhistoire et histoire ancienne",302,9,null,6,4,1,null,6,3,null,null,3,3,null,null,null,null,2,null,null,null,null,null,null,null,null,null,null,null,null,null,null,null,null,null,null,null,null,null,null,339]
[null,"940. Histoire médiévale, moderne et contemporaine (sauf la France)",905,15,2,8,19,4,5,7,2,null,null,2,null,null,null,null,null,null,null,null,null,null,null,null,null,null,null,null,null,null,null,null,null,null,null,1,null,null,null,null,970]
[null,"944. Histoire de la France (depuis 486)",1313,7,null,1,2,5,1,2,null,1,null,4,null,null,null,null,null,null,null,null,null,null,null,null,null,null,null,null,null,null,null,null,null,null,null,null,null,null,null,null,1336]
["Total",null,{"$f":"SUM(C124:C195)","v":71039},{"$f":"SUM(D124:D195)","v":1353},{"$f":"SUM(E124:E195)","v":543},{"$f":"SUM(F124:F195)","v":781},568,221,97,77,47,46,27,58,7,1,34,10,5,4,9,1,1,2,8,1,6,2,1,1,1,4,2,4,1,1,1,1,3,1,1,1,74971]
["Source : Bibliographie nationale française - Livres"]
[]
[null,null,2016,null,null,null,null,null,null,null,null,null,null,null,null,null,null,null,null,null,null,null,null,null,null,null,null,null,null,null,null,null,null,null,null,null,null,null,null,null,null,null,null,null,"Total 2016"]
["Cadre","Indice","France","Belgique","Canada","Suisse","Coédition","Allemagne","Monaco","Italie","Liban","Grande-Bretagne","Sénégal","Espagne","Egypte","Finlande","Irlande","Réunion","Israël","Grèce","Comores","Martinique","Japon","Etats-Unis","Guadeloupe","Nouvelle-Calédonie","Mayotte","Mexique","Maurice","Guyane française","Roumanie","Inde","Russie","République du Congo","Pays-bas","Turquie","Bénin","Côte d'Ivoire","Luxembourg","Iran","Malte","Portugal","Chine","Sainte-Lucie"]
["0XX","000. Généralités",58,null,null,null,null,null,1,null,null,null,null,null,null,null,null,null,null,null,null,null,null,null,null,null,null,null,null,null,null,null,null,null,null,null,null,null,null,null,null,null,null,null,59]
[null,"004. Informatique",347,null,null,2,null,null,null,null,null,null,null,null,null,null,null,null,null,null,null,null,null,null,null,null,null,null,null,null,null,null,null,null,null,null,null,null,null,null,null,null,null,null,349]
[null,"010. Bibliographie",4,null,null,null,null,null,null,null,null,null,null,null,null,null,null,null,null,null,null,null,null,null,null,null,null,null,null,null,null,null,null,null,null,null,null,null,null,null,null,null,null,null,4]
[null,"020. Sciences de l'information",73,null,null,null,2,null,null,null,null,null,null,null,null,null,null,null,null,null,null,null,null,null,null,null,null,null,null,null,null,null,null,null,null,null,null,null,null,null,null,null,null,null,75]
[null,"030. Encyclopédies générales",36,null,null,null,1,null,null,null,null,null,null,null,null,null,null,null,null,null,null,null,null,null,null,null,null,null,null,null,null,null,null,null,null,null,null,null,null,null,null,null,null,null,37]
[null,"060. Organisations à vocation savante",8,null,null,null,1,null,null,null,null,null,null,null,null,null,null,null,null,null,null,null,null,null,null,null,null,null,null,null,null,null,null,null,null,null,null,null,null,null,null,null,null,null,9]
[null,"070. Presse et édition",64,1,null,null,1,1,null,null,null,null,null,null,null,null,null,null,null,null,null,null,null,null,null,null,null,null,null,null,null,null,null,null,null,null,null,null,null,null,null,null,null,null,67]
[null,"090. Bibliophilie",92,null,null,null,1,null,null,null,null,null,null,null,null,null,null,null,null,null,null,null,null,null,null,null,null,null,null,null,null,null,null,null,null,null,null,null,null,null,null,null,null,null,93]
["1XX","100. Philosophie",970,8,4,11,6,null,null,1,null,null,null,null,null,null,null,null,null,null,null,null,null,null,null,null,null,null,null,null,null,null,null,null,null,null,null,null,null,null,null,null,null,null,1000]
[null,"130. Esotérisme, phénomènes paranormaux",795,5,96,18,6,null,6,1,null,null,null,null,null,null,null,null,null,null,null,null,4,null,null,null,null,null,null,null,null,null,null,null,null,null,null,null,null,null,null,null,null,null,931]
[null,"150. Psychologie, psychanalyse",1030,22,68,38,9,null,2,1,null,null,null,1,null,null,null,null,null,null,null,null,null,null,null,null,null,null,null,null,null,null,null,null,null,null,null,null,null,null,null,null,null,null,1171]
["2XX","200. Religion (ouvrages généraux et comparatifs)",189,2,1,5,2,1,null,null,null,null,null,null,null,null,null,null,null,null,null,null,null,null,null,null,null,null,null,null,null,null,null,null,null,null,null,null,null,null,null,null,null,null,200]
[null,"220. Bible, judaïsme, christianisme",2119,36,15,47,50,2,null,6,null,null,1,null,2,null,7,null,3,null,null,null,null,null,null,null,null,null,null,null,null,null,null,null,null,null,null,null,null,null,null,1,null,null,2289]
[null,"290. Islam, religions orientales et anciennes, autres religions",468,4,3,3,10,null,1,3,14,null,2,null,null,null,null,null,null,null,1,null,null,null,null,null,null,null,2,null,null,1,null,null,null,null,null,1,null,null,null,null,null,null,513]
["3XX","300. Sciences sociales",1208,32,8,19,11,null,null,2,null,null,null,null,null,null,null,null,null,null,null,null,null,null,null,null,null,null,null,1,1,null,null,null,null,null,null,null,null,null,null,null,null,null,1282]
[null,"320. Sciences politiques",1209,19,8,7,10,null,7,null,null,null,3,null,null,null,null,null,null,null,1,null,null,null,null,null,null,null,null,null,null,null,null,null,null,null,null,null,null,null,null,null,null,null,1264]
[null,"330. Economie",1171,23,5,7,9,1,1,1,null,null,1,null,null,null,null,null,null,null,null,null,null,null,null,null,null,null,null,null,null,null,null,null,null,null,null,null,null,null,null,null,null,null,1219]
[null,"340. Droit",1616,143,1,null,5,null,null,null,1,null,1,null,null,null,null,null,null,null,null,null,null,null,null,1,null,null,null,null,null,null,null,null,null,null,null,null,null,null,null,null,null,null,1768]
[null,"350. Administration publique",471,2,null,1,null,null,null,null,null,null,null,null,null,null,null,null,null,null,null,null,null,null,null,null,null,null,null,null,null,null,null,null,null,null,null,null,null,null,null,null,null,null,474]
[null,"355. Art et science militaires",147,null,null,2,null,null,2,null,null,null,null,null,null,null,null,null,null,null,null,null,null,null,null,null,null,null,null,null,null,null,null,null,null,null,null,null,null,null,null,null,null,null,151]
[null,"360. Problèmes et services sociaux",935,12,5,6,6,null,5,null,1,null,1,null,null,null,null,null,null,null,null,null,null,null,null,null,null,null,null,null,null,null,null,null,null,null,null,null,null,null,null,null,null,null,971]
[null,"370. Education et enseignement",689,9,5,5,6,null,null,null,null,null,null,null,null,1,null,null,null,null,null,null,null,null,null,null,1,null,null,null,null,null,null,null,null,null,null,null,null,null,null,null,null,null,716]
[null,"380. Commerce, communication, transports",195,null,null,1,null,null,null,1,null,null,null,null,null,null,null,null,null,null,null,null,null,null,null,null,null,null,null,null,null,null,null,null,null,null,null,null,null,null,null,null,null,null,197]
[null,"390. Ethnologie, anthropologie, folklore",193,5,null,1,6,null,1,null,null,null,null,null,null,null,null,null,null,null,null,null,null,null,null,null,null,null,null,1,null,null,null,null,null,null,null,null,null,null,null,null,null,null,207]
["4XX","400. Langues et linguistique",758,15,1,3,14,3,1,null,null,null,null,1,null,null,1,null,4,null,1,null,null,null,null,null,null,null,null,null,null,null,null,null,null,null,null,null,null,null,null,null,null,null,802]
["5XX","500. Sciences (généralités)",117,null,1,null,null,null,null,null,null,null,null,null,null,null,null,null,null,null,null,null,null,null,null,null,null,null,null,null,null,null,null,null,null,null,null,null,null,null,null,null,null,null,118]
[null,"510. Mathématiques",250,6,null,5,1,null,null,null,1,2,null,null,null,null,null,null,null,null,null,null,null,null,null,null,null,null,null,null,null,null,null,null,null,null,null,null,null,null,null,null,null,null,265]
[null,"520. Astronomie",76,1,null,2,1,1,null,null,null,null,null,null,null,null,null,null,null,null,null,null,null,null,null,null,null,null,null,null,null,null,null,null,null,null,null,null,null,null,null,null,null,null,81]
[null,"530. Physique",147,5,null,4,null,null,null,null,null,null,null,null,1,null,null,null,null,null,null,null,null,null,null,null,null,null,null,null,null,null,null,null,null,null,null,null,null,null,null,null,null,null,157]
[null,"540. Chimie, minéralogie, cristallographie",38,4,null,1,null,null,null,null,null,null,null,null,null,null,null,null,null,null,null,null,null,null,null,null,null,null,null,null,null,null,null,null,null,null,null,null,null,null,null,null,null,null,43]
[null,"550. Sciences de la Terre",110,null,null,null,1,2,null,null,null,null,null,null,null,null,null,null,null,null,null,null,null,null,null,null,null,null,null,null,null,null,null,null,null,null,null,null,null,null,null,null,null,null,113]
[null,"560. Paléontologie",43,1,null,null,null,null,null,null,null,null,null,null,null,null,null,null,null,null,null,null,null,null,null,null,null,null,null,null,null,null,null,null,null,null,null,null,null,null,null,null,null,null,44]
[null,"570. Sciences de la vie",157,2,null,null,null,null,null,null,null,null,null,null,null,null,null,null,null,null,null,null,null,null,null,null,null,null,null,null,null,null,null,null,null,null,null,null,null,null,null,null,null,null,159]
[null,"580. Botanique",103,null,null,3,1,1,null,null,null,null,null,null,null,null,null,null,null,null,null,null,null,null,null,null,null,null,null,null,null,null,null,null,null,null,null,null,null,null,null,null,null,null,108]
[null,"590. Zoologie",239,3,9,null,1,1,null,null,null,null,null,null,null,null,null,1,null,null,null,null,null,null,null,null,null,null,null,null,null,null,null,null,null,null,null,null,null,null,null,null,null,null,254]
["6XX","600. Sciences appliquées",14,1,null,null,null,null,null,null,null,null,null,null,null,null,null,null,null,null,null,null,null,null,null,null,null,null,null,null,null,null,null,null,null,null,null,null,null,null,null,null,null,null,15]
[null,"610. Sciences médicales et paramédicales",1983,33,27,25,1,2,21,null,null,null,null,null,null,null,null,null,null,null,null,null,null,1,null,null,null,null,null,null,null,null,null,null,null,null,null,null,null,null,null,null,1,null,2094]
[null,"620. Sciences de l'ingénieur",693,1,null,3,1,3,null,null,null,1,null,null,null,null,null,null,null,null,null,null,null,null,null,null,null,null,null,null,null,null,null,null,null,null,null,null,null,null,null,null,null,null,702]
[null,"630. Agriculture, élevage",418,1,null,1,3,3,1,null,null,null,null,null,null,null,null,1,null,null,null,null,null,null,null,null,null,null,null,null,null,null,null,null,null,null,null,null,null,null,null,null,null,null,428]
[null,"640. Economie domestique, hôtellerie",1308,5,16,11,9,21,1,null,null,1,null,null,null,null,null,null,null,null,null,1,null,null,null,null,null,null,null,null,null,null,null,null,null,null,null,null,null,null,null,null,null,1,1374]
[null,"650. Gestion et organisation de l'entreprise",1187,8,6,4,1,null,null,null,null,1,null,null,null,null,null,null,null,null,null,null,null,null,null,null,null,null,null,null,null,null,null,null,null,null,null,null,null,null,null,null,null,null,1207]
[null,"660. Génie chimique et technologies connexes",62,null,null,null,null,null,null,null,null,null,null,null,null,null,null,null,null,null,null,null,null,null,null,null,null,null,null,null,null,null,null,null,null,null,null,null,null,null,null,null,null,null,62]
[null,"670. Industries",24,null,null,null,null,null,null,1,null,null,null,null,null,null,null,null,null,null,null,null,null,null,null,null,null,null,null,null,null,null,null,null,null,null,null,null,null,null,null,null,null,null,25]
[null,"680. Métiers divers",40,null,null,null,2,1,null,null,null,null,null,null,null,null,null,null,null,null,null,null,null,null,null,null,null,null,null,null,null,null,null,null,null,null,null,null,null,null,null,null,null,null,43]
[null,"690. Bâtiment",78,null,null,1,null,null,null,null,null,null,null,null,null,null,null,null,null,null,null,null,null,null,null,null,null,null,null,null,null,null,null,null,null,null,null,null,null,null,null,null,null,null,79]
["7XX","700. Arts",1323,19,null,15,51,18,2,6,null,null,null,null,null,null,null,null,null,1,null,2,null,null,2,null,null,null,null,null,null,null,null,null,2,null,null,null,null,null,null,null,null,null,1441]
[null,"710. Urbanisme",101,1,null,4,6,2,null,null,null,null,null,null,null,null,null,null,null,null,null,null,null,null,null,null,null,null,null,null,null,null,null,null,null,null,null,null,null,null,null,null,null,null,114]
[null,"720. Architecture",433,6,null,17,9,27,null,3,1,null,null,null,null,null,null,null,null,null,null,null,null,null,null,1,null,null,null,null,null,null,null,null,null,null,null,null,null,null,null,null,null,null,497]
[null,"730. Arts plastiques, sculpture",297,2,null,2,4,2,null,2,null,null,null,null,null,null,null,null,null,1,null,null,null,null,null,1,null,null,null,null,1,null,null,null,null,1,null,null,null,null,null,null,null,null,313]
[null,"740. Dessin, arts décoratifs, artisanat d'art",1080,13,2,3,17,42,1,5,2,4,null,null,null,null,null,null,null,null,null,null,null,2,null,null,null,null,null,null,null,null,null,null,null,null,1,null,null,null,null,null,null,null,1172]
[null,"750. Peinture",631,8,null,4,17,48,null,3,null,1,null,null,null,null,null,null,null,null,null,null,null,null,null,null,null,null,null,null,null,null,null,null,null,null,null,null,null,null,null,null,null,null,712]
[null,"760. Arts graphiques",73,1,null,3,3,3,null,1,null,null,null,null,null,null,null,null,null,null,null,null,null,null,null,null,null,null,null,null,null,null,null,null,null,null,null,null,null,null,null,null,null,null,84]
[null,"770. Photographie",731,19,null,14,23,49,null,null,null,1,null,null,null,null,null,4,null,null,null,1,null,null,null,null,null,null,null,1,null,null,null,null,null,null,null,null,null,null,null,null,null,null,843]
[null,"780. Musique",361,1,null,4,1,2,1,null,null,null,null,null,null,null,null,null,null,null,null,null,null,null,null,null,1,null,null,null,null,null,null,null,null,null,null,null,null,null,null,null,null,null,371]
[null,"790. Spectacles et loisirs (généralités)",38,null,null,null,null,null,null,null,null,null,null,null,null,null,null,null,null,null,null,null,null,null,null,null,null,null,null,null,null,null,null,null,null,null,null,null,null,null,null,null,null,null,38]
[null,"791. Audiovisuel",451,12,null,5,6,3,1,1,null,3,null,null,null,null,null,null,null,null,null,null,null,null,null,null,null,null,null,null,null,null,null,null,null,null,null,null,null,null,null,null,null,null,482]
[null,"792. Représentations scéniques",123,1,null,null,1,null,null,null,null,null,null,null,null,null,null,null,null,null,null,null,null,null,null,null,null,null,null,null,null,null,null,null,null,null,null,null,null,null,null,null,null,null,125]
[null,"793. Jeux",570,30,6,1,2,1,2,null,null,null,null,null,null,null,null,1,null,null,null,null,null,null,null,null,null,null,null,null,null,null,null,null,null,null,null,null,null,null,null,null,null,null,613]
[null,"796. Sports",433,4,3,null,1,4,null,null,null,null,null,null,null,null,null,null,null,null,null,null,null,null,1,null,null,null,null,null,null,null,null,null,null,null,null,null,null,null,null,null,null,null,446]
["8XX","800. Histoire et critique littéraires",1260,18,3,10,17,null,1,2,null,null,null,null,null,null,null,null,null,null,null,null,null,null,null,null,null,null,null,null,null,null,null,null,null,null,null,null,null,null,null,null,null,null,1311]
[null,"801. Poésie",3331,14,3,23,7,1,1,null,null,null,2,1,null,null,null,1,null,null,null,null,null,1,null,null,null,null,null,null,null,null,1,null,null,null,null,null,null,1,null,null,null,null,3387]
[null,"802. Théâtre",881,1,null,1,5,null,null,null,null,null,1,null,null,null,null,null,null,null,1,null,null,null,null,null,null,null,null,null,null,null,null,null,null,null,null,null,null,null,null,null,null,null,890]
[null,"803. Romans et fiction romanesque",15879,32,120,41,17,9,27,null,1,null,9,null,null,11,null,null,1,null,2,1,1,1,null,null,null,null,null,null,null,1,null,2,null,null,null,null,null,null,null,null,null,null,16155]
[null,"804. Essais littéraires et écrits divers",2035,31,2,19,5,null,1,1,null,null,null,null,null,3,null,null,null,null,1,null,null,null,null,null,null,null,null,null,null,null,1,null,null,null,null,null,null,null,null,null,null,null,2099]
[null,"805. Bandes dessinées",4444,437,null,10,21,null,null,null,null,null,null,null,null,null,null,null,null,null,null,null,null,null,null,null,null,null,null,null,null,null,null,null,null,null,null,null,null,null,null,null,null,null,4912]
[null,"809. Littérature pour la jeunesse",6859,200,98,41,28,6,null,null,24,6,null,null,null,null,10,2,null,null,null,null,null,null,null,null,1,1,null,null,null,null,null,null,null,null,null,null,null,null,null,null,null,null,7276]
["9XX","900. Histoire et géographie (généralités)",170,1,null,null,2,null,1,1,null,1,null,4,null,null,null,null,null,null,null,null,null,null,null,null,null,null,null,null,null,null,null,null,null,null,null,null,null,null,null,null,null,null,180]
[null,"910. Géographie, tourisme (guides) et voyages",1354,1,1,1,8,4,1,1,null,10,null,null,null,null,null,null,null,null,null,null,null,null,null,null,null,null,null,null,null,null,null,null,null,null,null,null,null,null,null,null,null,null,1381]
[null,"920. Biographies et généalogie",5060,27,33,32,16,null,21,2,5,null,6,1,null,3,null,null,null,1,null,null,null,null,null,null,null,1,null,null,null,null,null,null,null,null,null,null,1,null,null,null,null,null,5209]
[null,"930. Préhistoire et histoire ancienne",337,2,1,2,8,null,null,10,1,1,null,2,13,null,null,null,null,4,null,null,null,null,null,null,null,null,null,null,null,null,null,null,null,null,null,null,null,null,null,null,null,null,381]
[null,"940. Histoire médiévale, moderne et contemporaine (sauf la France)",850,2,2,6,22,1,3,10,2,1,null,9,3,null,null,null,null,null,null,null,null,null,null,null,null,1,1,null,null,null,null,null,null,null,null,null,null,null,1,null,null,null,914]
[null,"944. Histoire de la France (depuis 486)",1346,1,null,1,4,8,null,3,null,null,null,2,null,null,null,null,null,null,null,null,null,null,null,null,null,null,null,null,null,null,null,null,null,null,null,null,null,null,null,null,null,null,1365]
["Total",null,72382,1293,553,495,479,273,113,68,53,33,27,21,19,18,18,10,8,7,7,5,5,5,3,3,3,3,3,3,2,2,2,2,2,1,1,1,1,1,1,1,1,1,75930]
["Source : Bibliographie nationale française - Livres"]

{"sheet":"Langues","index":5,"n_rows":274,"n_cols":55,"rows_kept":274,"cut":false,"hidden":false,"merged":[]}
["Répartition par langue de publication - synthèse"]
[]
["Année","Classe","Français","Multilingue","Anglais","Espagnol","Autres","Breton","Italien","Occitan","Allemand","Créole","Basque","Corse","Total"]
[2016,"0XX",649,14,5,25,null,null,null,null,null,null,null,null,{"$f":"SUM(C4:N4)","v":693}]
[null,"1XX",3041,21,24,3,5,1,6,null,1,null,null,null,{"$f":"SUM(C5:N5)","v":3102}]
[null,"2XX",2832,123,18,6,18,1,null,2,2,null,null,null,3002]
[null,"3XX",7977,143,98,4,14,3,2,2,4,null,1,1,8249]
[null,"4XX",454,322,11,1,7,1,3,1,2,null,null,null,802]
[null,"5XX",1280,28,31,null,1,1,null,null,1,null,null,null,1342]
[null,"6XX",5814,91,116,2,2,null,2,null,1,null,1,null,6029]
[null,"7XX",6224,825,166,3,12,null,9,null,11,null,1,null,7251]
[null,"8XX",34878,693,154,24,80,62,10,46,37,16,19,11,36030]
[null,"9XX",9078,207,75,18,23,4,8,1,15,null,1,null,9430]
["Total 2016",null,72227,2467,698,86,162,73,40,52,74,16,23,12,{"$f":"SUM(C14:N14)","v":75930}]
[]
[]
["Année","Classe","Français","Multilingue","Anglais","Espagnol","Autres","Breton","Italien","Occitan","Allemand","Créole","Basque","Corse","Total"]
[2017,"0XX",592,7,2,28,1,null,null,null,null,null,null,null,{"$f":"SUM(C18:N18)","v":630}]
[null,"1XX",3043,31,19,11,5,null,4,null,null,null,null,null,{"$f":"SUM(C19:N19)","v":3113}]
[null,"2XX",2700,82,17,29,16,2,3,null,3,null,null,null,2852]
[null,"3XX",8876,119,85,10,14,3,null,1,3,null,null,null,9111]
[null,"4XX",421,485,12,null,4,2,null,1,1,null,1,null,927]
[null,"5XX",1388,29,22,null,null,null,null,null,null,null,null,null,1439]
[null,"6XX",6074,89,89,11,5,null,4,null,5,null,null,null,6277]
[null,"7XX",6103,830,144,7,15,3,5,null,3,null,null,null,7110]
[null,"8XX",32878,638,182,60,68,171,15,32,9,4,10,5,34072]
[null,"9XX",9090,188,90,12,34,5,6,1,12,1,null,1,9440]
["Total 2017",null,{"$f":"SUM(C18:C27)","v":71165},{"$f":"SUM(D18:D27)","v":2498},662,168,162,186,37,35,36,5,11,6,{"$f":"SUM(C28:N28)","v":74971}]
[]
["Année","Classe","Français","Multilingue","Anglais","Espagnol","Autres","Breton","Italien","Occitan","Allemand","Créole","Basque","Corse","Total"]
[2018,"0XX",630,6,5,47,2,null,null,1,null,null,null,null,{"$f":"SUM(C31:N31)","v":691}]
[null,"1XX",3477,26,36,11,3,null,3,1,2,null,null,null,{"$f":"SUM(C32:N32)","v":3559}]
[null,"2XX",2621,89,24,6,41,3,3,null,2,null,null,null,2789]
[null,"3XX",8655,153,117,10,17,9,2,4,4,null,6,5,8982]
[null,"4XX",445,434,9,5,1,1,3,1,1,null,null,2,902]
[null,"5XX",1592,31,42,2,0,1,null,null,null,null,null,2,1670]
[null,"6XX",6745,104,129,8,4,null,1,null,5,null,1,null,6997]
[null,"7XX",6533,763,157,4,17,null,8,null,6,null,null,1,7489]
[null,"8XX",36919,717,195,47,72,103,9,46,19,11,5,20,38163]
[null,"9XX",10421,198,95,20,30,4,8,3,14,null,null,1,10794]
["Total 2018",null,78038,2521,809,160,187,121,37,56,53,11,12,31,82036]
["Source : Bibliographie nationale française - Livres"]
[]
["Répartition par langue de publication - détail par année"]
[null,null,2018,null,null,null,null,null,null,null,null,null,null,null,null,null,null,null,null,null,null,null,null,null,null,null,null,null,null,null,null,null,null,null,null,null,null,null,null,null,null,null,null,null,null,null,null,null,null,"Total 2018"]
["Classe","Indice","français","multilingue","allemand","ancien français","anglais","arabe","arménien","bambara","basque","breton","bulgare","catalan","chinois","corse","créole","créole portugais","dialecte français","espagnol","espéranto","français moyen","grec","grec polytonique","hébreu","inconnu","italien","japonais","kabyle","khmer","kongo","langue austronésienne","langue bantou","langue berbère","latin","néerlandais","occitan","persan","polonais","portugais","roumain","russe","sans contenu linguistique","sanskrit","soninké","tsigane","turc","vietnamien","wolof"]
["0XX","000. Généralités",70,null,null,null,null,null,null,null,null,null,null,null,null,null,null,null,null,null,null,null,null,null,null,null,null,null,null,null,null,null,null,null,null,null,null,null,null,null,null,null,null,null,null,null,null,null,null,70]
[null,"004. Informatique",302,null,null,null,2,null,null,null,null,null,null,null,null,null,null,null,null,47,null,null,null,null,null,null,null,null,null,null,null,null,null,null,null,null,null,null,null,null,null,null,null,null,null,null,null,null,null,351]
[null,"010. Bibliographie",3,null,null,null,null,null,null,null,null,null,null,null,null,null,null,null,null,null,null,null,null,null,null,null,null,null,null,null,null,null,null,null,null,null,null,null,null,null,null,null,null,null,null,null,null,null,null,3]
[null,"020. Sciences de l'information",56,1,null,null,null,null,null,null,null,null,null,null,null,null,null,null,null,null,null,null,null,null,null,null,null,null,null,null,null,null,null,null,null,null,null,null,1,null,null,null,null,null,null,null,null,null,null,58]
[null,"030. Encyclopédies générales",60,null,null,null,null,null,null,null,null,null,null,null,null,null,null,null,null,null,null,null,null,null,null,null,null,null,null,null,null,null,null,null,null,null,1,null,null,null,null,null,null,null,null,null,null,null,null,61]
[null,"060. Organisations à vocation savante",25,1,null,null,null,null,null,null,null,null,null,null,null,null,null,null,null,null,null,null,null,null,null,null,null,null,null,null,null,null,null,null,null,null,null,null,null,null,null,null,null,null,null,null,null,null,null,26]
[null,"070. Presse et édition",94,3,null,null,null,null,null,null,null,null,null,null,null,null,null,null,null,null,null,null,null,null,null,null,null,null,null,null,null,null,null,null,null,null,null,null,1,null,null,null,null,null,null,null,null,null,null,98]
[null,"090. Bibliophilie",20,1,null,null,3,null,null,null,null,null,null,null,null,null,null,null,null,null,null,null,null,null,null,null,null,null,null,null,null,null,null,null,null,null,null,null,null,null,null,null,null,null,null,null,null,null,null,24]
["1XX","100. Philosophie",1087,16,null,null,9,null,null,null,null,null,null,null,null,null,null,null,null,7,null,null,null,null,null,null,null,null,null,null,null,null,null,null,1,null,null,null,null,null,null,null,null,null,null,null,null,null,null,1120]
[null,"130. Esotérisme, phénomènes paranormaux",942,7,2,null,15,null,null,null,null,null,null,null,null,null,null,null,null,2,null,null,null,null,null,null,3,null,null,null,null,null,null,null,null,null,null,null,2,null,null,null,null,null,null,null,null,null,null,973]
[null,"150. Psychologie, psychanalyse",1448,3,null,null,12,null,null,null,null,null,null,null,null,null,null,null,null,2,null,null,null,null,null,null,null,null,null,null,null,null,null,null,null,null,1,null,null,null,null,null,null,null,null,null,null,null,null,1466]
["2XX","200. Religion (ouvrages généraux et comparatifs)",189,4,null,null,1,2,null,null,null,null,null,null,null,null,null,null,null,null,null,null,null,null,null,null,null,null,null,null,null,null,null,null,null,null,null,null,null,null,null,null,null,null,null,null,null,null,null,196]
[null,"220. Bible, judaïsme, christianisme",1945,53,null,1,18,1,null,null,null,3,null,null,null,null,null,null,null,4,1,null,null,null,2,null,3,null,null,null,null,1,null,null,3,null,null,null,1,2,4,1,null,null,null,1,null,1,null,2045]
[null,"290. Islam, religions orientales et anciennes, autres religions",487,32,2,null,5,15,null,null,null,null,2,null,null,null,null,null,null,2,null,null,null,null,1,null,null,null,null,null,null,null,null,null,null,null,null,null,null,null,null,null,null,2,null,null,null,null,null,548]
["3XX","300. Sciences sociales",1384,32,null,null,16,null,null,null,null,null,null,null,null,1,null,null,null,1,null,null,null,null,null,null,null,null,null,null,null,null,null,null,null,null,null,null,1,2,null,null,null,null,null,null,null,null,null,1437]
[null,"320. Sciences politiques",1208,23,null,null,18,2,null,null,null,null,null,null,1,null,null,null,null,7,null,null,null,null,null,null,1,null,null,null,null,null,null,null,null,null,null,null,3,null,null,1,null,null,null,null,null,null,null,1264]
[null,"330. Economie",1185,9,1,null,38,null,null,null,null,null,null,null,null,null,null,null,null,null,null,null,null,null,null,null,null,null,null,null,null,null,null,null,null,null,null,null,null,null,null,1,null,null,null,null,null,null,null,1234]
[null,"340. Droit",1916,43,null,null,15,1,null,null,null,null,null,null,null,null,null,null,null,null,null,null,null,null,null,null,null,null,null,null,null,null,null,null,null,null,null,null,null,null,null,null,null,null,null,null,null,null,null,1975]
[null,"350. Administration publique",479,2,null,null,1,null,null,null,null,null,null,null,null,null,null,null,null,null,null,null,null,null,null,null,null,null,null,null,null,null,null,null,null,null,null,null,null,null,null,null,null,null,null,null,null,null,null,482]
[null,"355. Art et science militaires",185,7,null,1,6,null,null,null,null,null,null,null,null,null,null,null,null,null,null,null,null,null,null,null,null,null,null,null,null,null,null,null,null,null,null,null,null,null,null,null,null,null,null,null,null,null,null,199]
[null,"360. Problèmes et services sociaux",1005,17,1,null,12,null,null,null,null,null,null,null,null,null,null,null,null,1,null,null,null,null,null,null,1,null,null,null,null,null,null,null,null,null,1,null,1,1,null,null,null,null,null,null,null,null,null,1040]
[null,"370. Education et enseignement",849,9,2,null,3,null,null,null,6,9,null,null,null,4,null,null,null,null,null,null,null,null,null,null,null,null,null,null,null,null,null,null,null,null,3,null,null,null,null,null,null,null,null,null,null,null,null,885]
[null,"380. Commerce, communication, transports",234,4,null,null,6,null,null,null,null,null,null,null,null,null,null,null,null,null,null,null,null,null,null,null,null,null,null,null,null,null,null,null,null,null,null,null,null,null,null,null,null,null,null,null,null,null,null,244]
[null,"390. Ethnologie, anthropologie, folklore",210,7,null,null,2,null,null,null,null,null,null,null,null,null,null,null,null,1,null,null,null,null,null,null,null,null,null,null,null,null,null,null,null,null,null,null,1,null,null,null,null,null,1,null,null,null,null,222]
["4XX","400. Langues et linguistique",445,434,1,null,9,null,null,null,null,1,null,null,null,2,null,null,null,5,null,null,null,null,null,null,3,null,null,null,null,1,null,null,null,null,1,null,null,null,null,null,null,null,null,null,null,null,null,902]
["5XX","500. Sciences (généralités)",141,2,null,null,2,null,null,null,null,null,null,null,null,null,null,null,null,null,null,null,null,null,null,null,null,null,null,null,null,null,null,null,null,null,null,null,null,null,null,null,null,null,null,null,null,null,null,145]
[null,"510. Mathématiques",261,6,null,null,8,null,null,null,null,null,null,null,null,null,null,null,null,2,null,null,null,null,null,null,null,null,null,null,null,null,null,null,null,null,null,null,null,null,null,null,null,null,null,null,null,null,null,277]
[null,"520. Astronomie",89,1,null,null,1,null,null,null,null,null,null,null,null,null,null,null,null,null,null,null,null,null,null,null,null,null,null,null,null,null,null,null,null,null,null,null,null,null,null,null,null,null,null,null,null,null,null,91]
[null,"530. Physique",142,2,null,null,9,null,null,null,null,null,null,null,null,null,null,null,null,null,null,null,null,null,null,null,null,null,null,null,null,null,null,null,null,null,null,null,null,null,null,null,null,null,null,null,null,null,null,153]
[null,"540. Chimie, minéralogie, cristallographie",43,1,null,null,1,null,null,null,null,null,null,null,null,null,null,null,null,null,null,null,null,null,null,null,null,null,null,null,null,null,null,null,null,null,null,null,null,null,null,null,null,null,null,null,null,null,null,45]
[null,"550. Sciences de la Terre",104,5,null,null,12,null,null,null,null,null,null,null,null,null,null,null,null,null,null,null,null,null,null,null,null,null,null,null,null,null,null,null,null,null,null,null,null,null,null,null,null,null,null,null,null,null,null,121]
[null,"560. Paléontologie",53,3,null,null,null,null,null,null,null,null,null,null,null,null,null,null,null,null,null,null,null,null,null,null,null,null,null,null,null,null,null,null,null,null,null,null,null,null,null,null,null,null,null,null,null,null,null,56]
[null,"570. Sciences de la vie",241,3,null,null,6,null,null,null,null,null,null,null,null,2,null,null,null,null,null,null,null,null,null,null,null,null,null,null,null,null,null,null,null,null,null,null,null,null,null,null,null,null,null,null,null,null,null,252]
[null,"580. Botanique",155,1,null,null,1,null,null,null,null,1,null,null,null,null,null,null,null,null,null,null,null,null,null,null,null,null,null,null,null,null,null,null,null,null,null,null,null,null,null,null,null,null,null,null,null,null,null,158]
[null,"590. Zoologie",363,7,null,null,2,null,null,null,null,null,null,null,null,null,null,null,null,null,null,null,null,null,null,null,null,null,null,null,null,null,null,null,null,null,null,null,null,null,null,null,null,null,null,null,null,null,null,372]
["6XX","600. Sciences appliquées",26,1,null,null,null,null,null,null,null,null,null,null,null,null,null,null,null,null,null,null,null,null,null,null,null,null,null,null,null,null,null,null,null,null,null,null,null,null,null,null,null,null,null,null,null,null,null,27]
[null,"610. Sciences médicales et paramédicales",2403,20,null,null,19,null,null,null,1,null,null,null,null,null,null,null,null,3,null,null,null,null,null,null,null,null,null,null,null,null,null,null,null,null,null,null,null,null,null,null,null,null,null,null,null,null,null,2446]
[null,"620. Sciences de l'ingénieur",647,22,null,null,66,null,null,null,null,null,null,null,null,null,null,null,null,1,null,null,null,null,null,null,null,1,null,null,null,null,null,null,null,null,null,null,null,null,null,null,null,null,null,null,null,null,null,737]
[null,"630. Agriculture, élevage",582,9,2,null,7,null,null,null,null,null,null,null,null,null,null,null,null,null,null,null,null,null,null,null,1,null,null,null,null,null,null,null,null,null,null,null,null,null,null,null,null,null,null,null,null,null,null,601]
[null,"640. Economie domestique, hôtellerie",1770,21,2,null,21,null,null,null,null,null,null,null,null,null,null,null,null,null,null,null,null,null,null,null,null,1,null,null,null,null,null,null,null,null,null,null,null,null,null,null,null,null,null,null,null,null,null,1815]
[null,"650. Gestion et organisation de l'entreprise",1118,24,1,null,15,null,null,null,null,null,null,null,null,null,null,null,null,4,null,null,null,null,null,null,null,null,null,null,null,null,null,null,null,null,null,null,null,null,null,null,null,null,null,null,null,null,null,1162]
[null,"660. Génie chimique et technologies connexes",68,3,null,null,null,null,null,null,null,null,null,null,null,null,null,null,null,null,null,null,null,null,null,null,null,null,null,null,null,null,null,null,null,null,null,null,null,null,null,null,null,null,null,null,null,null,null,71]
[null,"670. Industries",19,null,null,null,1,null,null,null,null,null,null,null,null,null,null,null,null,null,null,null,null,null,null,null,null,null,null,null,null,null,null,null,null,null,null,null,null,null,null,null,null,null,null,null,null,null,null,20]
[null,"680. Métiers divers",33,null,null,null,null,1,null,null,null,null,null,null,null,null,null,null,null,null,null,null,null,null,null,null,null,null,null,null,null,null,null,null,null,null,null,null,null,null,null,null,null,null,null,null,null,null,null,34]
[null,"690. Bâtiment",79,4,null,null,null,null,null,null,null,null,null,null,null,null,null,null,null,null,null,null,null,null,null,null,null,null,null,null,null,null,null,null,null,null,null,null,null,1,null,null,null,null,null,null,null,null,null,84]
["7XX","700. Arts",890,217,3,null,39,1,null,null,null,null,null,null,null,null,null,null,null,1,null,null,null,null,null,null,1,null,null,null,null,null,null,null,null,null,null,null,1,null,null,null,null,null,null,null,null,null,null,1153]
[null,"710. Urbanisme",86,7,null,null,1,null,null,null,null,null,null,null,null,null,null,null,null,null,null,null,null,null,null,null,null,null,null,null,null,null,null,null,null,null,null,null,null,null,null,null,null,null,null,null,null,null,null,94]
[null,"720. Architecture",433,49,null,null,26,null,null,null,null,null,null,null,null,null,null,null,null,2,null,null,null,null,null,null,3,null,null,null,null,null,null,null,null,1,null,null,null,null,null,null,null,null,null,null,null,null,null,514]
[null,"730. Arts plastiques, sculpture",221,36,null,null,8,null,null,null,null,null,null,null,null,null,null,null,null,null,null,null,null,null,null,null,1,null,null,null,null,null,null,null,null,null,null,null,null,null,null,null,null,null,null,null,null,null,null,266]
[null,"740. Dessin, arts décoratifs, artisanat d'art",1189,87,2,null,15,null,null,null,null,null,null,null,null,1,null,null,null,null,null,null,null,1,null,2,1,null,null,null,null,null,null,null,null,null,null,null,null,null,null,null,1,null,null,null,null,null,null,1299]
[null,"750. Peinture",608,141,null,null,13,null,null,null,null,null,null,null,null,null,null,null,null,null,null,null,null,null,null,1,1,null,null,null,null,null,null,null,null,null,null,null,1,null,null,null,null,null,null,null,null,null,null,765]
[null,"760. Arts graphiques",56,9,null,null,2,null,null,null,null,null,null,null,null,null,null,null,null,null,null,null,null,null,null,null,null,null,null,null,null,null,null,null,null,null,null,null,null,null,null,null,null,null,null,null,null,null,null,67]
[null,"770. Photographie",599,168,null,null,30,null,null,null,null,null,null,null,null,null,null,null,null,1,null,null,null,null,null,4,null,null,null,null,null,null,null,null,null,null,null,null,null,2,null,null,null,null,null,null,null,null,null,804]
[null,"780. Musique",410,16,null,null,4,null,1,null,null,null,null,null,null,null,null,null,null,null,null,null,null,null,null,null,1,null,1,null,null,null,null,null,null,null,null,null,null,null,null,null,null,null,null,null,null,null,null,433]
[null,"790. Spectacles et loisirs (généralités)",35,2,null,null,1,null,null,null,null,null,null,null,null,null,null,null,null,null,null,null,null,null,null,null,null,null,null,null,null,null,null,null,null,null,null,null,null,null,null,null,null,null,null,null,null,null,null,38]
[null,"791. Audiovisuel",460,15,1,null,5,null,null,null,null,null,null,null,null,null,null,null,null,null,null,null,null,null,null,null,null,null,null,null,null,null,null,null,null,null,null,null,null,null,null,null,null,null,null,null,null,null,null,481]
[null,"792. Représentations scéniques",146,10,null,null,2,null,null,null,null,null,null,null,null,null,null,null,null,null,null,null,null,null,null,null,null,null,null,null,null,null,null,null,null,null,null,null,null,null,null,null,null,null,null,null,null,null,null,158]
[null,"793. Jeux",793,1,null,null,8,null,null,null,null,null,null,null,null,null,null,null,null,null,null,null,null,null,null,null,null,null,null,null,null,null,null,null,null,null,null,null,null,null,null,null,null,null,null,null,null,null,null,802]
[null,"796. Sports",607,5,null,null,3,null,null,null,null,null,null,null,null,null,null,null,null,null,null,null,null,null,null,null,null,null,null,null,null,null,null,null,null,null,null,null,null,null,null,null,null,null,null,null,null,null,null,615]
["8XX","800. Histoire et critique littéraires",996,75,1,null,10,null,null,null,null,null,null,1,null,null,null,null,null,5,null,null,null,null,null,null,null,null,null,null,null,null,null,null,null,null,null,null,null,null,null,null,null,null,null,null,null,null,null,1088]
[null,"801. Poésie",3451,279,2,4,28,2,null,null,null,5,null,null,1,5,2,1,null,5,null,2,null,null,null,null,2,1,null,null,null,null,null,null,null,null,10,1,null,4,1,1,null,null,1,null,null,null,null,3808]
[null,"802. Théâtre",789,36,null,null,8,null,null,null,null,1,null,null,null,1,null,null,1,7,null,null,null,null,null,null,null,null,null,null,null,null,null,null,null,null,2,null,null,null,1,null,null,null,null,null,null,null,null,846]
[null,"803. Romans et fiction romanesque",17508,87,5,1,70,6,null,1,2,15,null,null,1,5,3,null,null,20,1,2,1,null,null,null,2,null,null,1,null,null,1,1,null,null,20,null,2,2,null,2,null,null,null,null,1,null,1,17761]
[null,"804. Essais littéraires et écrits divers",2016,71,1,null,13,null,null,null,null,null,null,null,null,2,1,null,null,2,null,5,null,null,null,null,1,null,null,null,null,null,null,null,null,null,3,null,null,2,null,null,null,null,1,null,null,1,1,2120]
[null,"805. Bandes dessinées",4758,10,1,null,11,null,null,null,null,6,null,null,null,null,2,null,null,1,null,null,null,null,null,null,2,null,null,null,null,null,null,null,1,null,null,null,null,null,null,null,null,null,null,null,null,null,null,4792]
[null,"809. Littérature pour la jeunesse",7401,159,9,null,55,null,1,null,3,76,null,1,null,7,3,null,null,7,null,null,null,null,null,null,2,null,null,null,null,null,null,null,null,null,11,null,null,null,null,null,12,null,null,null,null,1,null,7748]
["9XX","900. Histoire et géographie (généralités)",165,4,null,null,1,null,null,null,null,null,null,null,null,null,null,null,null,5,null,null,null,null,null,null,null,null,null,null,null,null,null,null,null,null,null,null,null,null,null,null,null,null,null,null,null,null,null,175]
[null,"910. Géographie, tourisme (guides) et voyages",1398,45,2,null,42,1,null,null,null,1,null,null,null,null,null,null,null,1,null,null,null,null,null,null,2,null,null,null,null,null,null,null,null,null,null,null,null,1,null,null,null,null,null,null,null,null,null,1493]
[null,"920. Biographies et généalogie",6280,41,3,null,25,2,1,null,null,2,1,null,null,null,null,null,null,5,null,2,null,null,null,null,3,null,null,null,1,null,null,null,null,null,3,1,7,2,2,3,null,null,null,null,null,2,null,6386]
[null,"930. Préhistoire et histoire ancienne",278,28,3,null,7,1,null,null,null,null,null,null,null,null,null,null,null,1,null,null,null,null,null,null,3,null,null,null,null,null,null,null,null,null,null,null,null,null,null,null,null,null,null,null,null,null,null,321]
[null,"940. Histoire médiévale, moderne et contemporaine (sauf la France)",917,55,3,null,11,null,null,null,null,1,null,null,null,null,null,null,null,8,null,null,1,null,null,null,null,null,null,null,null,null,null,null,null,null,null,null,1,null,null,null,null,null,null,null,null,null,null,997]
[null,"944. Histoire de la France (depuis 486)",1383,25,3,null,9,null,null,null,null,null,null,null,null,1,null,null,null,null,null,null,null,null,null,null,null,null,null,null,null,null,null,null,null,1,null,null,null,null,null,null,null,null,null,null,null,null,null,1422]
["Total",null,78038,2521,53,7,809,35,3,1,12,121,3,2,3,31,11,1,1,160,2,11,2,1,3,7,37,3,1,1,1,2,1,1,5,2,56,2,23,19,8,9,13,2,3,1,1,5,2,82036]
["Source : Bibliographie nationale française - Livres"]
[]
[null,null,2017,null,null,null,null,null,null,null,null,null,null,null,null,null,null,null,null,null,null,null,null,null,null,null,null,null,null,null,null,null,null,null,null,null,null,null,null,null,null,null,null,null,null,null,null,null,null,null,null,null,null,null,"Total 2017"]
["Classe","Indice","Français","Multilingue","Anglais","Espagnol","Breton","Italien","Occitan","Arabe","Allemand","Portugais","Créole","Latin","Basque","Corse","Aroumain","Roumain","Russe","Néerlandais","Chinois","Rwandais","Bantou","Catalan","Espéranto","Tchèque","Sanskrit","Japonais","Polonais","Persan","Tamacheq","Swahili","Slavon d'église","Hébreu","Grec","Soninké","Afrikaans","Basa","Indéterminé","Suisse alémanique","Suédois","Albanais","Vietnamien","Dialecte français","Français moyen","Français ancien","Dialecte allemand","Arménien","Croate","Persan","Mandingue","Malgache","Langue artificielle","Turc"]
["0XX","000. Généralités",45,1,null,null,null,null,null,null,null,null,null,null,null,null,null,null,null,null,null,null,null,null,null,null,null,null,null,null,null,null,null,null,null,null,null,null,null,null,null,null,null,null,null,null,null,null,null,null,null,null,null,null,{"$f":"SUM(C124:BB124)","v":46}]
[null,"004. Informatique",281,null,null,28,null,null,null,null,null,null,null,null,null,null,null,null,null,null,null,null,null,null,null,null,null,null,null,null,null,null,null,null,null,null,null,null,null,null,null,null,null,null,null,null,null,null,null,null,null,null,null,null,{"$f":"SUM(C125:BB125)","v":309}]
[null,"010. Bibliographie",8,null,null,null,null,null,null,null,null,null,null,null,null,null,null,null,null,null,null,null,null,null,null,null,null,null,null,null,null,null,null,null,null,null,null,null,null,null,null,null,null,null,null,null,null,null,null,null,null,null,null,null,{"$f":"SUM(C126:BB126)","v":8}]
[null,"020. Sciences de l'information",59,2,1,null,null,null,null,null,null,null,null,null,null,null,null,null,null,null,null,null,null,null,null,null,null,null,null,null,null,null,null,null,null,null,null,null,null,null,null,null,null,null,null,null,null,null,null,null,null,null,null,null,{"$f":"SUM(C127:BB127)","v":62}]
[null,"030. Encyclopédies générales",67,null,null,null,null,null,null,null,null,null,null,null,null,null,null,null,null,null,null,null,null,null,null,null,null,null,null,null,null,null,null,null,null,null,null,null,null,null,null,null,null,null,null,1,null,null,null,null,null,null,null,null,{"$f":"SUM(C128:BB128)","v":68}]
[null,"060. Organisations à vocation savante",18,1,null,null,null,null,null,null,null,null,null,null,null,null,null,null,null,null,null,null,null,null,null,null,null,null,null,null,null,null,null,null,null,null,null,null,null,null,null,null,null,null,null,null,null,null,null,null,null,null,null,null,{"$f":"SUM(C129:BB129)","v":19}]
[null,"070. Presse et édition",94,2,1,null,null,null,null,null,null,null,null,null,null,null,null,null,null,null,null,null,null,null,null,null,null,null,null,null,null,null,null,null,null,null,null,null,null,null,null,null,null,null,null,null,null,null,null,null,null,null,null,null,{"$f":"SUM(C130:BB130)","v":97}]
[null,"090. Bibliophilie",20,1,null,null,null,null,null,null,null,null,null,null,null,null,null,null,null,null,null,null,null,null,null,null,null,null,null,null,null,null,null,null,null,null,null,null,null,null,null,null,null,null,null,null,null,null,null,null,null,null,null,null,{"$f":"SUM(C131:BB131)","v":21}]
["1XX","100. Philosophie",977,20,6,5,null,1,null,2,null,null,null,null,null,null,null,null,null,null,null,null,null,null,null,null,null,null,null,null,null,null,null,null,null,null,null,null,null,null,1,null,null,null,null,null,null,null,null,null,null,null,null,null,{"$f":"SUM(C132:BB132)","v":1012}]
[null,"130. Esotérisme, phénomènes paranormaux",854,7,6,2,null,null,null,null,null,null,null,null,null,null,null,null,2,null,null,null,null,null,null,null,null,null,null,null,null,null,null,null,null,null,null,null,null,null,null,null,null,null,null,null,null,null,null,null,null,null,null,null,{"$f":"SUM(C133:BB133)","v":871}]
[null,"150. Psychologie, psychanalyse",1212,4,7,4,null,3,null,null,null,null,null,null,null,null,null,null,null,null,null,null,null,null,null,null,null,null,null,null,null,null,null,null,null,null,null,null,null,null,null,null,null,null,null,null,null,null,null,null,null,null,null,null,{"$f":"SUM(C134:BB134)","v":1230}]
["2XX","200. Religion (ouvrages généraux et comparatifs)",168,null,null,null,null,null,null,1,null,null,null,null,null,null,null,null,null,null,null,null,null,null,null,null,null,null,null,null,null,null,null,null,null,null,null,null,null,null,null,null,null,null,null,null,null,null,null,null,null,null,null,null,{"$f":"SUM(C135:BB135)","v":169}]
[null,"220. Bible, judaïsme, christianisme",2119,48,13,26,2,3,null,null,2,1,null,1,null,null,null,2,null,null,null,1,null,null,null,null,null,null,1,null,null,null,1,2,null,null,null,null,null,null,null,null,null,null,1,null,null,null,null,null,null,1,null,null,{"$f":"SUM(C136:BB136)","v":2224}]
[null,"290. Islam, religions orientales et anciennes, autres religions",413,34,4,3,null,null,null,3,1,null,null,null,null,null,null,null,null,null,null,null,null,null,null,null,null,null,null,null,null,null,null,null,null,null,null,null,null,null,null,null,null,null,null,null,null,null,null,1,null,null,null,null,{"$f":"SUM(C137:BB137)","v":459}]
["3XX","300. Sciences sociales",1382,32,6,4,null,null,null,1,null,null,null,null,null,null,null,null,1,null,null,null,null,null,null,null,null,null,2,null,null,null,null,null,null,null,null,null,null,null,null,null,null,1,null,null,null,null,null,null,1,null,null,null,{"$f":"SUM(C138:BB138)","v":1430}]
[null,"320. Sciences politiques",1544,9,12,null,1,null,1,3,1,null,null,null,null,null,null,null,null,null,null,null,null,null,null,null,null,null,null,null,null,null,null,null,null,null,null,null,null,null,null,null,null,null,2,null,null,null,null,null,null,null,null,null,1573]
[null,"330. Economie",1240,11,14,null,null,null,null,1,null,null,null,null,null,null,null,null,null,null,null,null,null,null,null,null,null,null,null,null,null,null,null,null,null,null,null,null,null,null,null,null,null,null,null,null,null,null,null,null,null,null,null,null,1266]
[null,"340. Droit",1987,31,25,null,null,null,null,null,1,null,null,null,null,null,null,null,null,null,null,null,null,null,null,null,null,null,null,null,null,null,null,null,null,null,null,null,null,null,null,null,null,null,null,null,null,null,null,null,null,null,null,null,2044]
[null,"350. Administration publique",378,null,4,1,null,null,null,null,null,null,null,null,null,null,null,null,null,null,null,null,null,null,null,null,null,null,null,null,null,null,null,null,null,null,null,null,null,null,null,null,null,null,null,null,null,null,null,null,null,null,null,null,383]
[null,"355. Art et science militaires",208,7,8,1,null,null,null,null,null,null,null,null,null,null,null,null,null,null,null,null,null,null,null,null,null,null,null,null,null,null,null,null,null,null,null,null,null,null,null,null,null,null,null,null,null,null,null,null,null,null,null,null,224]
[null,"360. Problèmes et services sociaux",961,12,8,2,null,null,null,null,1,1,null,null,null,null,null,null,null,null,null,null,null,null,null,null,null,null,null,null,null,null,null,null,null,null,null,null,null,null,null,null,null,null,null,null,null,null,null,null,null,null,null,null,985]
[null,"370. Education et enseignement",760,8,3,1,2,null,null,null,null,null,null,null,null,null,null,null,1,null,null,null,null,null,null,null,null,null,null,null,null,null,null,null,null,null,null,null,null,null,null,null,null,null,null,null,null,null,null,null,null,null,null,null,775]
[null,"380. Commerce, communication, transports",217,7,3,1,null,null,null,null,null,null,null,null,null,null,null,null,null,null,null,null,null,null,null,null,null,null,null,null,null,null,null,null,null,null,null,null,null,null,null,null,null,null,null,null,null,null,null,null,null,null,null,null,228]
[null,"390. Ethnologie, anthropologie, folklore",199,2,2,null,null,null,null,null,null,null,null,null,null,null,null,null,null,null,null,null,null,null,null,null,null,null,null,null,null,null,null,null,null,null,null,null,null,null,null,null,null,null,null,null,null,null,null,null,null,null,null,null,203]
["4XX","400. Langues et linguistique",421,485,12,null,2,null,1,null,1,null,null,null,1,null,null,null,null,null,null,null,null,null,3,null,null,null,null,null,null,null,null,null,null,1,null,null,null,null,null,null,null,null,null,null,null,null,null,null,null,null,null,null,927]
["5XX","500. Sciences (généralités)",109,3,2,null,null,null,null,null,null,null,null,null,null,null,null,null,null,null,null,null,null,null,null,null,null,null,null,null,null,null,null,null,null,null,null,null,null,null,null,null,null,null,null,null,null,null,null,null,null,null,null,null,114]
[null,"510. Mathématiques",229,7,5,null,null,null,null,null,null,null,null,null,null,null,null,null,null,null,null,null,null,null,null,null,null,null,null,null,null,null,null,null,null,null,null,null,null,null,null,null,null,null,null,null,null,null,null,null,null,null,null,null,241]
[null,"520. Astronomie",74,2,6,null,null,null,null,null,null,null,null,null,null,null,null,null,null,null,null,null,null,null,null,null,null,null,null,null,null,null,null,null,null,null,null,null,null,null,null,null,null,null,null,null,null,null,null,null,null,null,null,null,82]
[null,"530. Physique",141,1,1,null,null,null,null,null,null,null,null,null,null,null,null,null,null,null,null,null,null,null,null,null,null,null,null,null,null,null,null,null,null,null,null,null,null,null,null,null,null,null,null,null,null,null,null,null,null,null,null,null,143]
[null,"540. Chimie, minéralogie, cristallographie",51,2,2,null,null,null,null,null,null,null,null,null,null,null,null,null,null,null,null,null,null,null,null,null,null,null,null,null,null,null,null,null,null,null,null,null,null,null,null,null,null,null,null,null,null,null,null,null,null,null,null,null,55]
[null,"550. Sciences de la Terre",85,1,3,null,null,null,null,null,null,null,null,null,null,null,null,null,null,null,null,null,null,null,null,null,null,null,null,null,null,null,null,null,null,null,null,null,null,null,null,null,null,null,null,null,null,null,null,null,null,null,null,null,89]
[null,"560. Paléontologie",41,null,null,null,null,null,null,null,null,null,null,null,null,null,null,null,null,null,null,null,null,null,null,null,null,null,null,null,null,null,null,null,null,null,null,null,null,null,null,null,null,null,null,null,null,null,null,null,null,null,null,null,41]
[null,"570. Sciences de la vie",232,1,2,null,null,null,null,null,null,null,null,null,null,null,null,null,null,null,null,null,null,null,null,null,null,null,null,null,null,null,null,null,null,null,null,null,null,null,null,null,null,null,null,null,null,null,null,null,null,null,null,null,235]
[null,"580. Botanique",124,6,null,null,null,null,null,null,null,null,null,null,null,null,null,null,null,null,null,null,null,null,null,null,null,null,null,null,null,null,null,null,null,null,null,null,null,null,null,null,null,null,null,null,null,null,null,null,null,null,null,null,130]
[null,"590. Zoologie",302,6,1,null,null,null,null,null,null,null,null,null,null,null,null,null,null,null,null,null,null,null,null,null,null,null,null,null,null,null,null,null,null,null,null,null,null,null,null,null,null,null,null,null,null,null,null,null,null,null,null,null,309]
["6XX","600. Sciences appliquées",27,null,null,null,null,null,null,null,null,null,null,null,null,null,null,null,null,null,null,null,null,null,null,null,null,null,null,null,null,null,null,null,null,null,null,null,null,null,null,null,null,null,null,null,null,null,null,null,null,null,null,null,27]
[null,"610. Sciences médicales et paramédicales",1892,16,16,2,null,2,null,1,2,1,null,null,null,null,null,null,null,1,null,null,null,null,null,null,null,null,2,null,null,null,null,null,null,null,null,null,null,null,null,null,null,null,null,null,null,null,null,null,null,null,null,null,1935]
[null,"620. Sciences de l'ingénieur",510,18,40,1,null,null,null,null,null,null,null,null,null,null,null,null,null,null,null,null,null,null,null,null,null,null,null,null,null,null,null,null,null,null,null,null,null,null,null,null,null,null,null,null,null,null,null,null,null,null,null,null,569]
[null,"630. Agriculture, élevage",556,8,6,3,null,null,null,null,1,null,null,null,null,null,null,null,null,null,null,null,null,null,null,null,null,null,null,null,null,null,null,null,null,null,null,null,null,null,null,null,null,null,null,null,null,null,null,null,null,null,null,null,574]
[null,"640. Economie domestique, hôtellerie",1780,25,16,null,null,2,null,null,2,null,null,null,null,null,null,null,null,null,null,null,null,null,null,null,null,null,null,null,null,null,null,null,null,null,null,null,null,null,null,null,null,null,null,null,null,null,null,null,null,null,null,null,1825]
[null,"650. Gestion et organisation de l'entreprise",1157,20,6,4,null,null,null,null,null,null,null,null,null,null,null,null,null,null,null,null,null,null,null,null,null,null,null,null,null,null,null,null,null,null,null,null,null,null,null,null,null,null,null,null,null,null,null,null,null,null,null,null,1187]
[null,"660. Génie chimique et technologies connexes",46,null,4,null,null,null,null,null,null,null,null,null,null,null,null,null,null,null,null,null,null,null,null,null,null,null,null,null,null,null,null,null,null,null,null,null,null,null,null,null,null,null,null,null,null,null,null,null,null,null,null,null,50]
[null,"670. Industries",16,1,1,null,null,null,null,null,null,null,null,null,null,null,null,null,null,null,null,null,null,null,null,null,null,null,null,null,null,null,null,null,null,null,null,null,null,null,null,null,null,null,null,null,null,null,null,null,null,null,null,null,18]
[null,"680. Métiers divers",31,1,null,null,null,null,null,null,null,null,null,null,null,null,null,null,null,null,null,null,null,null,null,null,null,null,null,null,null,null,null,null,null,null,null,null,null,null,null,null,null,null,null,null,null,null,null,null,null,null,null,null,32]
[null,"690. Bâtiment",59,null,null,1,null,null,null,null,null,null,null,null,null,null,null,null,null,null,null,null,null,null,null,null,null,null,null,null,null,null,null,null,null,null,null,null,null,null,null,null,null,null,null,null,null,null,null,null,null,null,null,null,60]
["7XX","700. Arts",859,214,36,1,null,1,null,null,1,1,null,null,null,null,null,null,null,2,null,null,null,null,null,null,null,null,null,null,null,null,null,null,null,null,null,null,null,null,2,null,null,null,null,null,null,null,null,null,null,null,null,null,1117]
[null,"710. Urbanisme",111,9,1,null,null,null,null,null,null,null,null,null,null,null,null,null,null,null,null,null,null,null,null,null,null,null,null,null,null,null,null,null,null,null,null,null,null,null,null,null,null,null,null,null,null,null,null,null,null,null,null,null,121]
[null,"720. Architecture",446,52,16,1,null,1,null,null,1,null,null,null,null,null,null,null,null,1,null,null,null,null,null,null,null,null,null,null,null,null,null,null,null,null,null,null,null,null,null,null,null,null,null,null,null,null,null,null,null,null,null,null,518]
[null,"730. Arts plastiques, sculpture",239,59,10,null,null,null,null,null,null,null,null,null,null,null,null,null,null,1,1,null,null,null,null,null,null,null,null,null,null,null,null,null,null,null,null,null,null,null,null,null,null,null,null,null,null,null,null,null,null,null,null,null,310]
[null,"740. Dessin, arts décoratifs, artisanat d'art",1069,115,19,null,1,null,null,1,null,null,null,null,null,null,null,null,null,null,null,null,null,null,null,null,null,null,null,null,null,null,null,null,null,null,null,null,1,null,null,null,null,null,null,null,null,null,null,null,null,null,null,null,1206]
[null,"750. Peinture",583,132,13,1,null,null,null,null,1,null,null,null,null,null,null,null,1,null,null,null,null,null,null,null,null,null,null,null,null,null,null,null,null,null,null,null,null,null,null,null,null,null,null,null,null,null,null,null,null,null,null,null,731]
[null,"760. Arts graphiques",71,8,1,null,null,null,null,null,null,null,null,null,null,null,null,null,null,null,null,null,null,null,null,null,null,null,null,null,null,null,null,null,null,null,null,null,null,null,null,null,null,null,null,null,null,null,null,null,null,null,null,null,80]
[null,"770. Photographie",622,187,35,null,null,1,null,null,null,null,null,null,null,null,null,null,1,null,null,null,null,null,null,null,null,null,null,null,null,null,null,null,null,null,null,null,2,null,null,null,null,null,null,null,null,null,null,null,null,null,null,null,848]
[null,"780. Musique",372,12,5,null,null,2,null,null,null,null,null,null,null,null,null,null,null,null,null,null,null,null,null,null,null,null,null,null,null,null,null,null,null,null,null,null,null,null,null,null,null,null,null,null,null,null,null,1,null,null,null,null,392]
[null,"790. Spectacles et loisirs (généralités)",32,1,null,1,null,null,null,null,null,null,null,null,null,null,null,null,null,null,null,null,null,null,null,null,null,null,null,null,null,null,null,null,null,null,null,null,null,null,null,null,null,null,null,null,null,null,null,null,null,null,null,null,34]
[null,"791. Audiovisuel",490,12,4,2,null,null,null,null,null,null,null,null,null,null,null,null,null,null,null,null,null,null,null,null,null,null,null,null,null,null,null,null,null,null,null,null,null,null,null,null,null,null,null,null,null,null,null,null,null,null,null,null,508]
[null,"792. Représentations scéniques",127,7,null,null,null,null,null,null,null,null,null,null,null,null,null,null,null,null,null,null,null,null,null,null,null,null,null,null,null,null,null,null,null,null,null,null,null,null,null,null,null,null,null,null,null,null,null,null,null,null,null,null,134]
[null,"793. Jeux",676,5,2,1,2,null,null,null,null,null,null,null,null,null,null,null,null,null,null,null,null,null,null,null,null,null,null,null,null,null,null,null,null,null,null,null,null,null,null,null,null,null,null,null,null,null,null,null,null,null,null,null,686]
[null,"796. Sports",406,17,2,null,null,null,null,null,null,null,null,null,null,null,null,null,null,null,null,null,null,null,null,null,null,null,null,null,null,null,null,null,null,null,null,null,null,null,null,null,null,null,null,null,null,null,null,null,null,null,null,null,425]
["8XX","800. Histoire et critique littéraires",1016,84,20,7,1,null,null,1,null,null,null,null,null,null,null,null,2,null,1,null,null,null,null,null,null,null,2,null,null,null,null,null,null,null,null,null,null,null,null,null,null,null,3,null,null,null,null,null,null,null,null,null,1137]
[null,"801. Poésie",3023,245,28,12,11,4,3,1,1,null,2,null,1,2,1,null,1,null,null,null,null,null,null,1,null,null,1,null,null,null,null,null,null,null,null,null,null,null,null,null,null,null,2,null,null,1,null,null,null,null,1,null,3341]
[null,"802. Théâtre",878,21,3,16,9,1,1,null,null,3,null,null,null,null,null,null,null,null,null,null,null,null,null,null,null,null,null,null,null,null,null,null,null,null,null,null,null,null,null,null,null,null,2,null,null,null,1,null,null,null,null,null,935]
[null,"803. Romans et fiction romanesque",15067,69,62,15,14,3,16,7,3,4,1,null,1,2,null,null,1,null,null,null,1,null,null,null,null,null,null,null,null,1,null,null,null,null,null,null,null,null,2,null,null,2,1,1,null,null,null,null,1,null,null,null,15274]
[null,"804. Essais littéraires et écrits divers",1790,57,9,2,null,1,4,2,2,1,null,null,1,null,null,null,null,null,null,null,null,null,null,null,null,null,1,null,null,null,null,null,null,null,null,null,null,null,null,null,null,4,1,null,null,null,null,null,null,null,null,null,1875]
[null,"805. Bandes dessinées",4128,21,3,1,6,1,2,null,1,null,null,null,null,null,null,null,null,null,null,null,null,null,null,null,null,null,null,null,null,null,null,null,null,null,null,null,null,null,null,null,null,1,null,null,null,null,null,null,null,null,null,null,4164]
[null,"809. Littérature pour la jeunesse",6976,141,57,7,130,5,6,null,2,null,1,null,7,1,null,null,null,null,1,null,1,null,1,null,null,1,null,null,1,null,null,null,null,null,null,null,5,null,null,null,1,1,null,null,null,null,null,null,null,1,null,null,7346]
["9XX","900. Histoire et géographie (généralités)",154,2,null,null,null,null,null,null,1,null,null,null,null,null,null,null,null,null,null,null,null,null,null,null,null,null,null,null,null,null,null,null,null,null,null,null,null,null,null,null,null,null,null,null,null,null,null,null,null,null,null,null,157]
[null,"910. Géographie, tourisme (guides) et voyages",1377,36,38,null,null,1,null,1,1,1,null,null,null,null,null,null,2,null,8,null,null,null,null,null,null,1,null,null,null,null,null,null,null,null,null,null,null,null,null,null,null,null,null,null,null,null,null,null,null,null,null,null,1466]
[null,"920. Biographies et généalogie",5075,37,23,6,5,3,1,1,8,2,1,null,null,null,null,null,2,1,null,null,null,null,null,null,null,null,4,null,null,null,null,null,null,null,null,null,null,null,null,null,null,null,null,null,1,null,2,null,null,null,null,null,5172]
[null,"930. Préhistoire et histoire ancienne",289,42,7,1,null,null,null,null,null,null,null,null,null,null,null,null,null,null,null,null,null,null,null,null,null,null,null,null,null,null,null,null,null,null,null,null,null,null,null,null,null,null,null,null,null,null,null,null,null,null,null,null,339]
[null,"940. Histoire médiévale, moderne et contemporaine (sauf la France)",894,50,15,5,null,1,null,null,null,null,null,null,null,null,null,null,null,null,null,null,null,null,null,null,null,null,5,null,null,null,null,null,null,null,null,null,null,null,null,null,null,null,null,null,null,null,null,null,null,null,null,null,970]
[null,"944. Histoire de la France (depuis 486)",1301,21,7,null,null,1,null,null,2,null,null,null,null,1,null,null,null,1,null,null,null,null,null,null,null,null,null,null,null,null,null,null,null,null,null,null,null,null,null,null,null,null,2,null,null,null,null,null,null,null,null,null,1336]
["Total",null,{"$f":"SUM(C124:C195)","v":71165},{"$f":"SUM(D124:D195)","v":2498},662,168,186,37,35,26,36,15,5,1,11,6,1,2,14,7,11,1,2,0,4,1,0,2,18,0,1,1,1,2,0,1,0,0,8,0,5,0,1,9,14,2,1,1,3,2,2,2,1,0,{"$f":"SUM(BC124:BC195)","v":74971}]
["Source : Bibliographie nationale française - Livres"]
[]
[null,null,2016,null,null,null,null,null,null,null,null,null,null,null,null,null,null,null,null,null,null,null,null,null,null,null,null,null,null,null,null,null,null,null,null,null,null,null,null,null,null,null,null,null,null,null,null,null,null,null,null,null,null,null,"Total 2016"]
["Classe","Indice","Français","Multilingue","Anglais","Espagnol","Allemand","Breton","Occitan","Italien","Portugais","Basque","Russe","Créole","Arabe","Corse","Chinois","Français moyen","Dialecte français","Espéranto","Français ancien","Néérlandais","Polonais","Catalan","Alsacien","Hongrois","Latin","Wolof","Roumain","Bantou","Dialecte allemand","Croate","Tamacheq","Thaï","Peul","Lingala","Volapük","Japonais","Serbe","Langues nahuatl","Turc","Kabbyle","Langues berbères","Khmer central","Swahili","Tchèque","Bosniaque","Inconnue","Vietnamien","Hébreu","Arménien ","Sanskrit","Langues austronésiennes","Rwanda"]
["0XX","000. Généralités",53,5,1,null,null,null,null,null,null,null,null,null,null,null,null,null,null,null,null,null,null,null,null,null,null,null,null,null,null,null,null,null,null,null,null,null,null,null,null,null,null,null,null,null,null,null,null,null,null,null,null,null,59]
[null,"004. Informatique",323,1,null,25,null,null,null,null,null,null,null,null,null,null,null,null,null,null,null,null,null,null,null,null,null,null,null,null,null,null,null,null,null,null,null,null,null,null,null,null,null,null,null,null,null,null,null,null,null,null,null,null,349]
[null,"010. Bibliographie",4,0,null,null,null,null,null,null,null,null,null,null,null,null,null,null,null,null,null,null,null,null,null,null,null,null,null,null,null,null,null,null,null,null,null,null,null,null,null,null,null,null,null,null,null,null,null,null,null,null,null,null,4]
[null,"020. Sciences de l'information",75,0,null,null,null,null,null,null,null,null,null,null,null,null,null,null,null,null,null,null,null,null,null,null,null,null,null,null,null,null,null,null,null,null,null,null,null,null,null,null,null,null,null,null,null,null,null,null,null,null,null,null,75]
[null,"030. Encyclopédies générales",37,0,null,null,null,null,null,null,null,null,null,null,null,null,null,null,null,null,null,null,null,null,null,null,null,null,null,null,null,null,null,null,null,null,null,null,null,null,null,null,null,null,null,null,null,null,null,null,null,null,null,null,37]
[null,"060. Organisations à vocation savante",6,2,1,null,null,null,null,null,null,null,null,null,null,null,null,null,null,null,null,null,null,null,null,null,null,null,null,null,null,null,null,null,null,null,null,null,null,null,null,null,null,null,null,null,null,null,null,null,null,null,null,null,9]
[null,"070. Presse et édition",63,1,3,null,null,null,null,null,null,null,null,null,null,null,null,null,null,null,null,null,null,null,null,null,null,null,null,null,null,null,null,null,null,null,null,null,null,null,null,null,null,null,null,null,null,null,null,null,null,null,null,null,67]
[null,"090. Bibliophilie",88,5,null,null,null,null,null,null,null,null,null,null,null,null,null,null,null,null,null,null,null,null,null,null,null,null,null,null,null,null,null,null,null,null,null,null,null,null,null,null,null,null,null,null,null,null,null,null,null,null,null,null,93]
["1XX","100. Philosophie",980,12,3,null,null,1,null,null,1,null,1,null,null,null,1,null,null,null,null,null,null,null,null,null,null,null,null,null,null,null,null,null,null,null,null,null,null,null,null,null,null,1,null,null,null,null,null,null,null,null,null,null,1000]
[null,"130. Esotérisme, phénomènes paranormaux",898,6,19,2,1,null,null,4,null,null,null,null,null,null,null,null,null,null,null,null,null,null,null,1,null,null,null,null,null,null,null,null,null,null,null,null,null,null,null,null,null,null,null,null,null,null,null,null,null,null,null,null,931]
[null,"150. Psychologie, psychanalyse",1163,3,2,1,null,null,null,2,null,null,null,null,null,null,null,null,null,null,null,null,null,null,null,null,null,null,null,null,null,null,null,null,null,null,null,null,null,null,null,null,null,null,null,null,null,null,null,null,null,null,null,null,1171]
["2XX","200. Religion (ouvrages généraux et comparatifs)",194,5,null,null,1,null,null,null,null,null,null,null,null,null,null,null,null,null,null,null,null,null,null,null,null,null,null,null,null,null,null,null,null,null,null,null,null,null,null,null,null,null,null,null,null,null,null,null,null,null,null,null,200]
[null,"220. Bible, judaïsme, christianisme",2192,63,10,6,1,1,2,null,6,null,1,null,null,null,null,1,null,null,null,1,null,null,null,null,3,null,null,null,1,null,null,null,null,null,null,null,null,null,null,null,null,null,null,null,null,null,null,1,null,null,null,null,2289]
[null,"290. Islam, religions orientales et anciennes, autres religions",446,55,8,null,null,null,null,null,null,null,null,null,2,null,null,null,null,null,null,null,null,null,null,null,null,null,null,null,null,null,null,null,null,1,null,null,null,null,null,null,null,null,null,null,null,null,null,null,null,1,null,null,513]
["3XX","300. Sciences sociales",1252,23,4,1,1,null,null,null,null,null,null,null,null,1,null,null,null,null,null,null,null,null,null,null,null,null,null,null,null,null,null,null,null,null,null,null,null,null,null,null,null,null,null,null,null,null,null,null,null,null,null,null,1282]
[null,"320. Sciences politiques",1220,21,14,null,null,null,2,1,null,null,2,null,1,null,null,null,null,null,null,1,null,1,null,null,null,null,null,null,null,null,null,null,null,null,null,null,null,null,null,null,null,null,null,null,null,null,null,null,null,null,null,1,1264]
[null,"330. Economie",1164,18,33,1,2,null,null,1,null,null,null,null,null,null,null,null,null,null,null,null,null,null,null,null,null,null,null,null,null,null,null,null,null,null,null,null,null,null,null,null,null,null,null,null,null,null,null,null,null,null,null,null,1219]
[null,"340. Droit",1720,28,19,1,null,null,null,null,null,null,null,null,null,null,null,null,null,null,null,null,null,null,null,null,null,null,null,null,null,null,null,null,null,null,null,null,null,null,null,null,null,null,null,null,null,null,null,null,null,null,null,null,1768]
[null,"350. Administration publique",471,0,3,null,null,null,null,null,null,null,null,null,null,null,null,null,null,null,null,null,null,null,null,null,null,null,null,null,null,null,null,null,null,null,null,null,null,null,null,null,null,null,null,null,null,null,null,null,null,null,null,null,474]
[null,"355. Art et science militaires",141,5,5,null,null,null,null,null,null,null,null,null,null,null,null,null,null,null,null,null,null,null,null,null,null,null,null,null,null,null,null,null,null,null,null,null,null,null,null,null,null,null,null,null,null,null,null,null,null,null,null,null,151]
[null,"360. Problèmes et services sociaux",941,20,9,1,null,null,null,null,null,null,null,null,null,null,null,null,null,null,null,null,null,null,null,null,null,null,null,null,null,null,null,null,null,null,null,null,null,null,null,null,null,null,null,null,null,null,null,null,null,null,null,null,971]
[null,"370. Education et enseignement",690,9,7,null,1,3,null,null,6,null,null,null,null,null,null,null,null,null,null,null,null,null,null,null,null,null,null,null,null,null,null,null,null,null,null,null,null,null,null,null,null,null,null,null,null,null,null,null,null,null,null,null,716]
[null,"380. Commerce, communication, transports",185,7,4,null,null,null,null,null,1,null,null,null,null,null,null,null,null,null,null,null,null,null,null,null,null,null,null,null,null,null,null,null,null,null,null,null,null,null,null,null,null,null,null,null,null,null,null,null,null,null,null,null,197]
[null,"390. Ethnologie, anthropologie, folklore",193,12,null,null,null,null,null,null,1,1,null,null,null,null,null,null,null,null,null,null,null,null,null,null,null,null,null,null,null,null,null,null,null,null,null,null,null,null,null,null,null,null,null,null,null,null,null,null,null,null,null,null,207]
["4XX","400. Langues et linguistique",454,322,11,1,2,1,1,3,null,null,1,null,1,null,null,null,null,4,null,null,null,null,null,null,null,null,null,null,null,null,null,null,null,null,1,null,null,null,null,null,null,null,null,null,null,null,null,null,null,null,null,null,802]
["5XX","500. Sciences (généralités)",114,2,1,null,1,null,null,null,null,null,null,null,null,null,null,null,null,null,null,null,null,null,null,null,null,null,null,null,null,null,null,null,null,null,null,null,null,null,null,null,null,null,null,null,null,null,null,null,null,null,null,null,118]
[null,"510. Mathématiques",250,8,7,null,null,null,null,null,null,null,null,null,null,null,null,null,null,null,null,null,null,null,null,null,null,null,null,null,null,null,null,null,null,null,null,null,null,null,null,null,null,null,null,null,null,null,null,null,null,null,null,null,265]
[null,"520. Astronomie",67,2,12,null,null,null,null,null,null,null,null,null,null,null,null,null,null,null,null,null,null,null,null,null,null,null,null,null,null,null,null,null,null,null,null,null,null,null,null,null,null,null,null,null,null,null,null,null,null,null,null,null,81]
[null,"530. Physique",149,3,5,null,null,null,null,null,null,null,null,null,null,null,null,null,null,null,null,null,null,null,null,null,null,null,null,null,null,null,null,null,null,null,null,null,null,null,null,null,null,null,null,null,null,null,null,null,null,null,null,null,157]
[null,"540. Chimie, minéralogie, cristallographie",42,0,1,null,null,null,null,null,null,null,null,null,null,null,null,null,null,null,null,null,null,null,null,null,null,null,null,null,null,null,null,null,null,null,null,null,null,null,null,null,null,null,null,null,null,null,null,null,null,null,null,null,43]
[null,"550. Sciences de la Terre",109,2,2,null,null,null,null,null,null,null,null,null,null,null,null,null,null,null,null,null,null,null,null,null,null,null,null,null,null,null,null,null,null,null,null,null,null,null,null,null,null,null,null,null,null,null,null,null,null,null,null,null,113]
[null,"560. Paléontologie",43,0,1,null,null,null,null,null,null,null,null,null,null,null,null,null,null,null,null,null,null,null,null,null,null,null,null,null,null,null,null,null,null,null,null,null,null,null,null,null,null,null,null,null,null,null,null,null,null,null,null,null,44]
[null,"570. Sciences de la vie",157,1,1,null,null,null,null,null,null,null,null,null,null,null,null,null,null,null,null,null,null,null,null,null,null,null,null,null,null,null,null,null,null,null,null,null,null,null,null,null,null,null,null,null,null,null,null,null,null,null,null,null,159]
[null,"580. Botanique",105,2,null,null,null,1,null,null,null,null,null,null,null,null,null,null,null,null,null,null,null,null,null,null,null,null,null,null,null,null,null,null,null,null,null,null,null,null,null,null,null,null,null,null,null,null,null,null,null,null,null,null,108]
[null,"590. Zoologie",244,8,1,null,null,null,null,null,null,null,null,null,null,null,null,1,null,null,null,null,null,null,null,null,null,null,null,null,null,null,null,null,null,null,null,null,null,null,null,null,null,null,null,null,null,null,null,null,null,null,null,null,254]
["6XX","600. Sciences appliquées",14,1,null,null,null,null,null,null,null,null,null,null,null,null,null,null,null,null,null,null,null,null,null,null,null,null,null,null,null,null,null,null,null,null,null,null,null,null,null,null,null,null,null,null,null,null,null,null,null,null,null,null,15]
[null,"610. Sciences médicales et paramédicales",2056,19,15,2,null,null,null,1,null,null,null,null,null,null,null,null,null,null,null,null,null,1,null,null,null,null,null,null,null,null,null,null,null,null,null,null,null,null,null,null,null,null,null,null,null,null,null,null,null,null,null,null,2094]
[null,"620. Sciences de l'ingénieur",623,24,54,null,null,null,null,null,null,1,null,null,null,null,null,null,null,null,null,null,null,null,null,null,null,null,null,null,null,null,null,null,null,null,null,null,null,null,null,null,null,null,null,null,null,null,null,null,null,null,null,null,702]
[null,"630. Agriculture, élevage",411,9,8,null,null,null,null,null,null,null,null,null,null,null,null,null,null,null,null,null,null,null,null,null,null,null,null,null,null,null,null,null,null,null,null,null,null,null,null,null,null,null,null,null,null,null,null,null,null,null,null,null,428]
[null,"640. Economie domestique, hôtellerie",1337,21,13,null,1,null,null,1,null,null,null,null,null,null,null,null,null,null,null,null,null,null,null,null,null,null,null,null,null,null,null,null,null,null,null,1,null,null,null,null,null,null,null,null,null,null,null,null,null,null,null,null,1374]
[null,"650. Gestion et organisation de l'entreprise",1173,10,24,null,null,null,null,null,null,null,null,null,null,null,null,null,null,null,null,null,null,null,null,null,null,null,null,null,null,null,null,null,null,null,null,null,null,null,null,null,null,null,null,null,null,null,null,null,null,null,null,null,1207]
[null,"660. Génie chimique et technologies connexes",61,1,null,null,null,null,null,null,null,null,null,null,null,null,null,null,null,null,null,null,null,null,null,null,null,null,null,null,null,null,null,null,null,null,null,null,null,null,null,null,null,null,null,null,null,null,null,null,null,null,null,null,62]
[null,"670. Industries",22,2,1,null,null,null,null,null,null,null,null,null,null,null,null,null,null,null,null,null,null,null,null,null,null,null,null,null,null,null,null,null,null,null,null,null,null,null,null,null,null,null,null,null,null,null,null,null,null,null,null,null,25]
[null,"680. Métiers divers",39,3,1,null,null,null,null,null,null,null,null,null,null,null,null,null,null,null,null,null,null,null,null,null,null,null,null,null,null,null,null,null,null,null,null,null,null,null,null,null,null,null,null,null,null,null,null,null,null,null,null,null,43]
[null,"690. Bâtiment",78,1,null,null,null,null,null,null,null,null,null,null,null,null,null,null,null,null,null,null,null,null,null,null,null,null,null,null,null,null,null,null,null,null,null,null,null,null,null,null,null,null,null,null,null,null,null,null,null,null,null,null,79]
["7XX","700. Arts",1173,229,30,1,2,null,null,2,1,null,null,null,null,null,null,null,null,null,null,1,1,null,null,null,null,null,null,null,null,null,null,1,null,null,null,null,null,null,null,null,null,null,null,null,null,null,null,null,null,null,null,null,1441]
[null,"710. Urbanisme",97,10,6,null,null,null,null,null,1,null,null,null,null,null,null,null,null,null,null,null,null,null,null,null,null,null,null,null,null,null,null,null,null,null,null,null,null,null,null,null,null,null,null,null,null,null,null,null,null,null,null,null,114]
[null,"720. Architecture",426,54,11,1,4,null,null,null,null,null,null,null,null,null,null,null,null,null,null,1,null,null,null,null,null,null,null,null,null,null,null,null,null,null,null,null,null,null,null,null,null,null,null,null,null,null,null,null,null,null,null,null,497]
[null,"730. Arts plastiques, sculpture",274,33,6,null,null,null,null,null,null,null,null,null,null,null,null,null,null,null,null,null,null,null,null,null,null,null,null,null,null,null,null,null,null,null,null,null,null,null,null,null,null,null,null,null,null,null,null,null,null,null,null,null,313]
[null,"740. Dessin, arts décoratifs, artisanat d'art",1043,102,24,null,1,null,null,1,null,null,null,null,null,null,null,null,null,null,null,null,null,null,null,null,null,null,null,null,null,null,null,null,null,null,null,null,null,null,null,null,null,null,null,null,null,1,null,null,null,null,null,null,1172]
[null,"750. Peinture",558,134,13,null,2,null,null,5,null,null,null,null,null,null,null,null,null,null,null,null,null,null,null,null,null,null,null,null,null,null,null,null,null,null,null,null,null,null,null,null,null,null,null,null,null,null,null,null,null,null,null,null,712]
[null,"760. Arts graphiques",71,8,5,null,null,null,null,null,null,null,null,null,null,null,null,null,null,null,null,null,null,null,null,null,null,null,null,null,null,null,null,null,null,null,null,null,null,null,null,null,null,null,null,null,null,null,null,null,null,null,null,null,84]
[null,"770. Photographie",596,211,33,null,2,null,null,null,null,null,null,null,null,null,1,null,null,null,null,null,null,null,null,null,null,null,null,null,null,null,null,null,null,null,null,null,null,null,null,null,null,null,null,null,null,null,null,null,null,null,null,null,843]
[null,"780. Musique",354,12,2,null,null,null,null,null,1,null,2,null,null,null,null,null,null,null,null,null,null,null,null,null,null,null,null,null,null,null,null,null,null,null,null,null,null,null,null,null,null,null,null,null,null,null,null,null,null,null,null,null,371]
[null,"790. Spectacles et loisirs (généralités)",36,2,null,null,null,null,null,null,null,null,null,null,null,null,null,null,null,null,null,null,null,null,null,null,null,null,null,null,null,null,null,null,null,null,null,null,null,null,null,null,null,null,null,null,null,null,null,null,null,null,null,null,38]
[null,"791. Audiovisuel",445,9,26,1,null,null,null,1,null,null,null,null,null,null,null,null,null,null,null,null,null,null,null,null,null,null,null,null,null,null,null,null,null,null,null,null,null,null,null,null,null,null,null,null,null,null,null,null,null,null,null,null,482]
[null,"792. Représentations scéniques",118,5,2,null,null,null,null,null,null,null,null,null,null,null,null,null,null,null,null,null,null,null,null,null,null,null,null,null,null,null,null,null,null,null,null,null,null,null,null,null,null,null,null,null,null,null,null,null,null,null,null,null,125]
[null,"793. Jeux",601,5,5,null,null,null,null,null,null,1,null,null,null,null,null,null,1,null,null,null,null,null,null,null,null,null,null,null,null,null,null,null,null,null,null,null,null,null,null,null,null,null,null,null,null,null,null,null,null,null,null,null,613]
[null,"796. Sports",432,11,3,null,null,null,null,null,null,null,null,null,null,null,null,null,null,null,null,null,null,null,null,null,null,null,null,null,null,null,null,null,null,null,null,null,null,null,null,null,null,null,null,null,null,null,null,null,null,null,null,null,446]
["8XX","800. Histoire et critique littéraires",1206,79,13,6,1,1,1,2,null,null,1,null,null,null,null,1,null,null,null,null,null,null,null,null,null,null,null,null,null,null,null,null,null,null,null,null,null,null,null,null,null,null,null,null,null,null,null,null,null,null,null,null,1311]
[null,"801. Poésie",3070,258,14,3,null,5,5,4,2,1,2,5,2,3,3,null,1,null,2,null,1,null,1,null,null,null,null,2,null,null,null,null,null,null,null,null,null,null,1,1,null,null,null,1,null,null,null,null,null,null,null,null,3387]
[null,"802. Théâtre",841,35,4,null,null,2,2,null,null,null,null,2,null,1,null,null,1,null,null,null,null,1,null,null,null,1,null,null,null,null,null,null,null,null,null,null,null,null,null,null,null,null,null,null,null,null,null,null,null,null,null,null,890]
[null,"803. Romans et fiction romanesque",15872,97,69,10,31,20,19,3,2,5,1,1,3,4,1,2,2,1,2,2,1,null,1,1,null,1,null,null,null,null,null,null,1,1,null,null,null,null,null,null,null,null,1,null,null,null,1,null,null,null,null,null,16155]
[null,"804. Essais littéraires et écrits divers",2002,60,13,3,2,2,3,1,1,1,2,null,1,1,null,2,null,null,null,null,2,null,null,null,null,null,null,null,1,null,null,null,1,null,null,null,null,null,null,null,1,null,null,null,null,null,null,null,null,null,null,null,2099]
[null,"805. Bandes dessinées",4897,4,7,1,null,null,1,null,null,null,null,null,null,null,null,null,null,null,null,null,null,null,null,null,null,null,2,null,null,null,null,null,null,null,null,null,null,null,null,null,null,null,null,null,null,null,null,null,null,null,null,null,4912]
[null,"809. Littérature pour la jeunesse",6990,160,34,1,3,32,15,null,8,12,1,8,null,2,null,null,3,1,null,null,null,1,1,null,null,null,null,null,null,null,2,null,null,null,null,null,null,1,null,null,null,null,null,null,null,null,null,null,null,null,1,null,7276]
["9XX","900. Histoire et géographie (généralités)",174,1,1,4,null,null,null,null,null,null,null,null,null,null,null,null,null,null,null,null,null,null,null,null,null,null,null,null,null,null,null,null,null,null,null,null,null,null,null,null,null,null,null,null,null,null,null,null,null,null,null,null,180]
[null,"910. Géographie, tourisme (guides) et voyages",1311,40,26,null,2,null,null,null,null,1,null,null,null,null,1,null,null,null,null,null,null,null,null,null,null,null,null,null,null,null,null,null,null,null,null,null,null,null,null,null,null,null,null,null,null,null,null,null,null,null,null,null,1381]
[null,"920. Biographies et généalogie",5113,45,19,6,9,null,1,4,null,null,1,null,2,null,2,1,null,null,null,null,null,null,null,1,null,1,null,null,null,2,null,null,null,null,null,null,1,null,null,null,null,null,null,null,1,null,null,null,null,null,null,null,5209]
[null,"930. Préhistoire et histoire ancienne",323,44,9,1,1,null,null,2,null,null,null,null,null,null,null,null,null,null,1,null,null,null,null,null,null,null,null,null,null,null,null,null,null,null,null,null,null,null,null,null,null,null,null,null,null,null,null,null,null,null,null,null,381]
[null,"940. Histoire médiévale, moderne et contemporaine (sauf la France)",829,56,10,7,2,1,null,2,1,null,1,null,null,null,1,null,null,null,1,null,null,1,null,null,null,null,null,null,null,null,null,1,null,null,null,null,null,null,null,null,null,null,null,null,null,null,null,null,1,null,null,null,914]
[null,"944. Histoire de la France (depuis 486)",1328,21,10,null,1,3,null,null,null,null,null,null,null,null,null,2,null,null,null,null,null,null,null,null,null,null,null,null,null,null,null,null,null,null,null,null,null,null,null,null,null,null,null,null,null,null,null,null,null,null,null,null,1365]
["Total",null,72227,2467,698,86,74,73,52,40,32,23,16,16,12,12,10,10,8,6,6,6,5,5,3,3,3,3,2,2,2,2,2,2,2,2,1,1,1,1,1,1,1,1,1,1,1,1,1,1,1,1,1,1,75930]
["Source : Bibliographie nationale française - Livres"]

{"sheet":"Traductions","index":6,"n_rows":349,"n_cols":106,"rows_kept":349,"cut":false,"hidden":false,"merged":[]}
["Nombre de livres en langue originale ou traduits"]
[null,null,2016,null,2017,null,2018]
["Classe","Indice","Traduction","Hors traduction","Traduction","Hors traduction","Traduction","Hors traduction"]
["0XX","000. Généralités",8,51,null,46,3,67]
[null,"004. Informatique",94,255,82,227,96,255]
[null,"010. Bibliographie",null,4,null,8,null,3]
[null,"020. Sciences de l'information",null,75,2,60,3,55]
[null,"030. Encyclopédies générales",1,36,12,56,7,54]
[null,"060. Organisations à vocation savante",2,7,null,19,1,25]
[null,"070. Presse et édition",5,62,4,93,7,91]
[null,"090. Bibliophilie",7,86,null,21,1,23]
["1XX","100. Philosophie",124,876,144,868,181,939]
[null,"130. Esotérisme, phénomènes paranormaux",244,687,231,640,247,726]
[null,"150. Psychologie, psychanalyse",216,955,217,1013,249,1217]
["2XX","200. Religion (ouvrages généraux et comparatifs)",23,177,19,150,31,165]
[null,"220. Bible, judaïsme, christianisme",497,1792,459,1765,441,1604]
[null,"290. Islam, religions orientales et anciennes, autres religions",212,301,152,307,268,280]
["3XX","300. Sciences sociales",95,1187,101,1329,153,1284]
[null,"320. Sciences politiques",100,1164,103,1470,118,1146]
[null,"330. Economie",91,1128,69,1197,84,1150]
[null,"340. Droit",38,1730,10,2034,59,1916]
[null,"350. Administration publique",null,474,1,382,3,479]
[null,"355. Art et science militaires",15,136,20,204,23,176]
[null,"360. Problèmes et services sociaux",52,919,43,942,63,977]
[null,"370. Education et enseignement",37,679,23,752,55,830]
[null,"380. Commerce, communication, transports",12,185,6,222,10,234]
[null,"390. Ethnologie, anthropologie, folklore",21,186,22,181,20,202]
["4XX","400. Langues et linguistique",334,468,45,882,446,456]
["5XX","500. Sciences (généralités)",14,104,22,92,35,110]
[null,"510. Mathématiques",23,242,15,226,31,246]
[null,"520. Astronomie",18,63,15,67,29,62]
[null,"530. Physique",18,139,8,135,23,130]
[null,"540. Chimie, minéralogie, cristallographie",5,38,5,50,6,39]
[null,"550. Sciences de la Terre",16,97,13,76,27,94]
[null,"560. Paléontologie",10,34,11,30,14,42]
[null,"570. Sciences de la vie",18,141,35,200,42,210]
[null,"580. Botanique",12,96,10,120,32,126]
[null,"590. Zoologie",56,198,45,264,93,279]
["6XX","600. Sciences appliquées",3,12,4,23,6,21]
[null,"610. Sciences médicales et paramédicales",240,1854,217,1718,285,2161]
[null,"620. Sciences de l'ingénieur",78,624,58,511,110,627]
[null,"630. Agriculture, élevage",50,378,99,475,118,483]
[null,"640. Economie domestique, hôtellerie",168,1206,283,1542,261,1554]
[null,"650. Gestion et organisation de l'entreprise",63,1144,53,1134,89,1073]
[null,"660. Génie chimique et technologies connexes",2,60,2,48,7,64]
[null,"670. Industries",4,21,3,15,null,20]
[null,"680. Métiers divers",5,38,4,28,3,31]
[null,"690. Bâtiment",6,73,3,57,5,79]
["7XX","700. Arts",310,1131,239,878,308,845]
[null,"710. Urbanisme",15,99,11,110,15,79]
[null,"720. Architecture",112,385,82,436,101,413]
[null,"730. Arts plastiques, sculpture",62,251,63,247,48,218]
[null,"740. Dessin, arts décoratifs, artisanat d'art",348,824,333,873,392,907]
[null,"750. Peinture",235,477,177,554,205,560]
[null,"760. Arts graphiques",15,69,14,66,14,53]
[null,"770. Photographie",282,561,193,655,223,581]
[null,"780. Musique",60,311,56,336,55,378]
[null,"790. Spectacles et loisirs (généralités)",5,33,2,32,3,35]
[null,"791. Audiovisuel",62,420,134,374,85,396]
[null,"792. Représentations scéniques",12,113,9,125,20,138]
[null,"793. Jeux",133,480,177,509,288,514]
[null,"796. Sports",50,396,60,365,75,540]
["8XX","800. Histoire et critique littéraires",137,1174,47,1090,115,973]
[null,"801. Poésie",406,2981,335,3006,406,3402]
[null,"802. Théâtre",153,737,129,806,129,717]
[null,"803. Romans et fiction romanesque",4480,11675,3997,11277,4418,13343]
[null,"804. Essais littéraires et écrits divers",206,1893,160,1715,208,1912]
[null,"805. Bandes dessinées",2756,2156,2296,1868,2664,2128]
[null,"809. Littérature pour la jeunesse",2069,5207,1855,5491,2112,5636]
["9XX","900. Histoire et géographie (généralités)",16,164,13,144,27,148]
[null,"910. Géographie, tourisme (guides) et voyages",204,1177,198,1268,239,1254]
[null,"920. Biographies et généalogie",567,4642,544,4628,778,5608]
[null,"930. Préhistoire et histoire ancienne",79,302,37,302,52,269]
[null,"940. Histoire médiévale, moderne et contemporaine (sauf la France)",157,757,140,830,174,823]
[null,"944. Histoire de la France (depuis 486)",45,1320,33,1303,54,1368]
["Total",null,16013,59917,{"$f":"SUM(E4:E75)","v":14004},{"$f":"SUM(F4:F75)","v":60967},{"$f":"SUM(G4:G75)","v":16993},{"$f":"SUM(H4:H75)","v":65043}]
["Source : Bibliographie nationale française - Livres"]
[]
["Ouvrages traduits par langue originale - synthèse"]
[]
[null,null,"Traduction",null,null,null,null,null,null,null,"Total"]
["Année","Classe","Anglais","Autres","Japonais","Français","Allemand","Italien","Espagnol","Coréen"]
[2016,"0XX",75,10,null,29,2,null,1,null,{"$f":"SUM(C83:J83)","v":117}]
[null,"1XX",369,16,7,13,66,31,13,null,{"$f":"SUM(C84:J84)","v":515}]
[null,"2XX",305,32,12,16,51,74,19,null,509]
[null,"3XX",166,127,4,45,25,32,11,null,410]
[null,"4XX",26,290,null,3,1,3,null,null,323]
[null,"5XX",113,21,2,12,18,6,2,2,176]
[null,"6XX",388,70,6,29,83,9,9,null,594]
[null,"7XX",600,211,63,552,139,45,22,null,1632]
[null,"8XX",5724,261,1820,210,339,316,338,126,9134]
[null,"9XX",511,138,8,103,76,66,31,2,935]
["Total 2016",null,8277,2844,1922,1012,800,582,446,130,{"$f":"SUM(C93:J93)","v":16013}]
[]
[2017,"0XX",66,1,null,31,1,1,null,null,{"$f":"SUM(C95:J95)","v":100}]
[null,"1XX",355,76,7,18,79,44,13,null,{"$f":"SUM(C96:J96)","v":592}]
[null,"2XX",237,194,3,29,64,70,33,null,630]
[null,"3XX",223,23,null,40,54,39,19,null,398]
[null,"4XX",26,6,null,6,2,3,2,null,45]
[null,"5XX",141,8,2,2,20,5,1,null,179]
[null,"6XX",471,32,3,48,142,22,8,null,726]
[null,"7XX",692,57,57,511,130,59,44,null,1550]
[null,"8XX",5162,953,1510,197,328,313,317,39,8819]
[null,"9XX",488,157,8,124,73,64,51,null,965]
["Total 2017",null,{"$f":"SUM(C95:C104)","v":7861},{"$f":"SUM(D95:D104)","v":1507},1590,1006,893,620,488,39,{"$f":"SUM(C105:J105)","v":14004}]
[]
[2018,"0XX",61,8,null,47,1,1,null,null,{"$f":"SUM(C107:J107)","v":118}]
[null,"1XX",395,111,9,26,93,23,19,1,{"$f":"SUM(C108:J108)","v":677}]
[null,"2XX",244,291,5,16,47,62,75,null,740]
[null,"3XX",250,182,5,59,31,41,20,null,588]
[null,"4XX",17,420,null,2,null,4,3,null,446]
[null,"5XX",201,45,2,24,45,9,5,1,332]
[null,"6XX",526,125,11,55,118,39,9,1,884]
[null,"7XX",734,318,73,515,100,59,29,4,1832]
[null,"8XX",5866,1342,1622,232,317,319,312,42,10052]
[null,"9XX",689,284,14,118,95,77,46,1,1324]
["Total 2018",null,8983,3126,1741,1094,847,634,518,50,16993]
["Source : Bibliographie nationale française - Livres"]
[]
["Ouvrages traduits par langue originale - détail par année"]
[]
[null,null,"Traduction",null,null,null,null,null,null,null,null,null,null,null,null,null,null,null,null,null,null,null,null,null,null,null,null,null,null,null,null,null,null,null,null,null,null,null,null,null,null,null,null,null,null,null,null,null,null,null,null,null,null,null,null,null,null,null,null,null,null,null,null,null,null,null,null,null,null,null,null,null,null,null,null,null,null,null,null,null,null,null,null,null,null,null,"Total"]
[null,null,2018]
["Classe","Indice","afrikaans","albanais","allemand","ancien français","anglais","anglais moyen","arabe","aragonais","arménien","azéri","basque","bengali","biélorusse","breton","bulgare","catalan","chinois","copte","coréen","corse","créole","croate","danois","dialecte allemand","dialecte français","dialecte italien","égyptien","espagnol","espéranto","estonien","finnois","français","français moyen","galicien","géorgien","grec","grec ancien","hébreu","hindi","hongrois","indéterminé","indonésien","irlandais","islandais","italien","japonais","kabyle","kannada","kazakh","khmer","kirghiz","kurde","langue altaïque","langue austronésienne","langue berbère","langue des signes français","langue finno-ougrienne","langue tai","langue zandé","latin","letton","lituanien","macédonien","malgache","marathe","mongol","moyen haut allemand","multilingue","néerlandais","néerlandais moyen","norvégien","norvégien nynorsk","occitan","occitan ancien","ourdou","pali","persan","polonais","portugais","roumain","russe","rwanda","sanskrit","sarde","serbe","slavon d'église","slovaque","slovène","soninké","suédois","syriaque","tahitien","tamoul","tchèque","thaï","tibétain","turc","ukrainien","vietnamien","yiddish",null,"langues multiples","Total général"]
["0XX","000. Généralités",null,null,null,null,2,null,null,null,null,null,null,null,null,null,null,null,null,null,null,null,null,null,null,null,null,null,null,null,null,null,null,null,null,null,null,null,null,null,null,null,null,null,null,null,1,null,null,null,null,null,null,null,null,null,null,null,null,null,null,null,null,null,null,null,null,null,null,null,null,null,null,null,null,null,null,null,null,null,null,null,null,null,null,null,null,null,null,null,null,null,null,null,null,null,null,null,null,null,null,null,null,null,3]
[null,"004. Informatique",null,null,null,null,48,null,null,null,null,null,null,null,null,null,null,null,null,null,null,null,null,null,null,null,null,null,null,null,null,null,null,47,null,null,null,null,null,null,null,null,null,null,null,null,null,null,null,null,null,null,null,null,null,null,null,null,null,null,null,null,null,null,null,null,null,null,null,null,null,null,null,null,null,null,null,null,null,null,null,null,null,null,null,null,null,null,null,null,null,null,null,null,null,null,null,null,null,null,null,null,1,null,96]
[null,"030. Encyclopédies générales",null,null,1,null,1,null,null,null,null,null,null,null,null,null,null,null,null,null,null,null,null,null,null,null,null,null,null,null,null,null,null,null,null,null,null,null,null,null,null,null,null,null,null,null,null,null,null,null,null,null,null,null,null,null,null,null,null,null,null,null,null,null,null,null,null,null,null,null,null,null,null,null,null,null,null,null,null,1,null,null,null,null,null,null,null,null,null,null,null,null,null,null,null,null,null,null,null,null,null,null,null,null,3]
[null,"060. Organisations à vocation savante",null,null,null,null,6,null,null,null,null,null,null,null,null,null,null,null,null,null,null,null,null,null,null,null,null,null,null,null,null,null,null,null,null,null,null,null,null,null,null,null,null,null,null,null,null,null,null,null,null,null,null,null,null,null,null,null,null,null,null,1,null,null,null,null,null,null,null,null,null,null,null,null,null,null,null,null,null,null,null,null,null,null,null,null,null,null,null,null,null,null,null,null,null,null,null,null,null,null,null,null,null,null,7]
[null,"070. Presse et édition",null,null,null,null,null,null,null,null,null,null,null,null,null,null,null,null,null,null,null,null,null,null,null,null,null,null,null,null,null,null,null,null,null,null,null,null,null,null,null,null,null,null,null,null,null,null,null,null,null,null,null,null,null,null,null,null,null,null,null,null,null,null,null,null,null,null,null,null,null,null,null,null,null,null,null,null,null,null,null,null,null,null,null,null,null,null,null,null,null,null,null,null,null,null,null,null,null,null,null,null,1,null,1]
[null,"090. Bibliophilie",null,null,null,null,4,null,null,null,null,null,null,null,null,null,null,null,null,null,null,null,null,null,null,null,null,null,null,null,null,null,null,null,null,null,null,null,null,null,null,null,null,null,null,null,null,null,null,null,null,null,null,null,null,null,null,null,null,null,null,null,null,null,null,null,null,null,null,null,null,null,null,null,null,null,null,null,null,null,null,null,null,null,null,null,null,null,null,null,null,null,null,null,null,null,null,null,null,null,null,null,3,null,7]
["1XX","100. Philosophie",null,null,null,null,null,null,null,null,null,null,null,null,null,null,null,null,null,null,null,null,null,null,null,null,null,null,null,null,null,null,null,null,null,null,null,null,null,null,null,null,null,null,null,null,null,null,null,null,null,null,null,null,null,null,null,null,null,null,null,null,null,null,null,null,null,null,null,null,null,null,null,null,null,null,null,null,null,null,null,null,null,null,null,null,null,null,null,null,null,null,null,null,null,null,null,null,null,null,null,null,1,null,1]
[null,"130. Esotérisme, phénomènes paranormaux",null,null,46,null,46,null,1,null,null,null,null,null,null,null,null,null,2,null,null,null,null,null,2,null,null,null,null,2,null,null,null,2,null,null,null,null,22,null,null,null,null,null,null,null,15,1,null,null,null,null,null,null,null,null,null,null,null,null,null,20,null,null,null,null,null,null,null,null,2,null,null,null,null,null,null,null,null,null,1,1,6,null,null,null,null,null,null,null,null,null,1,null,null,1,null,null,null,null,null,null,10,null,181]
[null,"150. Psychologie, psychanalyse",null,null,14,null,177,null,1,null,null,null,null,null,null,null,null,null,null,null,null,null,null,null,null,null,null,null,null,4,null,null,null,17,null,null,null,null,null,null,null,null,null,null,null,null,2,4,null,null,null,null,null,null,null,null,null,null,null,null,null,6,null,null,null,null,null,null,null,null,null,null,null,null,null,null,null,null,null,null,3,null,17,null,null,null,null,null,null,null,null,null,null,null,null,null,null,null,null,null,null,null,2,null,247]
["2XX","200. Religion (ouvrages généraux et comparatifs)",null,null,33,null,172,null,null,null,null,null,null,null,null,null,null,null,null,null,1,null,null,null,1,null,null,null,null,13,null,null,1,7,null,null,null,null,null,null,null,null,null,null,null,null,6,4,null,null,null,null,null,null,null,null,null,null,null,null,null,null,null,null,null,null,null,null,null,null,5,null,null,null,null,null,null,null,null,null,2,null,1,null,null,null,null,null,null,null,null,null,null,null,null,null,null,null,null,null,null,null,3,null,249]
[null,"220. Bible, judaïsme, christianisme",null,null,5,1,15,null,1,null,null,null,null,null,null,null,null,null,null,null,null,null,null,null,null,null,null,null,null,1,null,null,null,null,null,null,null,null,null,null,null,null,null,null,null,null,1,2,null,null,null,null,null,null,null,null,null,null,null,null,null,null,null,null,null,null,null,null,null,null,null,null,null,null,null,null,null,null,null,null,null,null,1,null,null,null,null,null,null,null,null,null,null,null,null,null,null,null,null,null,null,null,4,null,31]
[null,"290. Islam, religions orientales et anciennes, autres religions",null,null,40,null,152,null,null,null,null,null,null,null,null,null,null,null,null,1,null,null,null,null,null,null,null,1,null,13,null,null,null,12,1,null,null,5,22,47,null,null,null,null,null,null,60,null,null,null,null,null,null,null,null,null,null,null,null,null,null,44,null,null,null,null,null,null,null,null,3,null,null,null,null,null,null,null,null,1,5,4,4,null,null,null,null,1,null,null,null,null,2,null,null,1,null,null,null,null,1,1,19,1,441]
["3XX","300. Sciences sociales",null,null,2,null,77,null,45,null,null,1,null,null,null,null,null,null,9,null,null,null,null,null,null,null,null,null,1,61,null,null,null,4,null,null,null,null,null,null,5,null,null,null,null,null,1,3,null,null,null,null,null,null,null,null,null,null,null,null,null,null,null,null,null,null,2,null,null,3,null,null,null,null,null,null,null,1,2,null,null,null,1,null,9,null,null,null,null,null,null,null,null,null,3,null,2,14,1,null,null,null,21,null,268]
[null,"320. Sciences politiques",null,null,9,null,80,null,2,null,null,null,null,null,null,null,null,1,2,null,null,null,null,null,null,null,null,null,null,7,null,null,null,6,null,null,null,null,null,2,null,null,null,null,null,null,7,1,null,null,null,null,null,null,null,null,null,null,null,1,null,null,null,null,null,null,null,null,null,null,null,null,null,null,null,null,null,null,null,1,1,1,null,null,null,null,null,null,null,null,null,null,null,null,null,null,null,null,null,null,null,null,32,null,153]
[null,"330. Economie",null,null,9,null,45,null,1,null,null,null,null,null,null,null,null,null,null,null,null,null,null,null,null,null,null,null,null,8,null,null,null,4,null,null,null,null,1,null,null,1,null,null,null,null,25,1,null,null,null,null,null,null,null,null,null,null,null,null,null,null,null,null,null,null,null,null,null,null,null,null,1,null,null,null,null,null,null,null,null,null,1,1,1,null,null,null,null,null,null,null,null,null,null,null,null,null,null,null,null,null,19,null,118]
[null,"340. Droit",null,null,3,null,49,null,null,null,null,null,null,null,null,null,null,null,1,null,null,null,null,null,null,null,null,null,null,null,null,null,null,12,null,null,null,null,null,null,null,null,null,null,null,null,3,2,null,null,null,null,null,null,null,null,null,null,null,null,null,null,null,null,null,null,null,null,null,null,3,null,null,null,1,null,null,null,null,null,null,null,null,null,null,null,null,null,null,null,null,null,null,null,null,null,null,null,null,null,null,null,10,null,84]
[null,"350. Administration publique",null,null,4,null,5,null,null,null,null,null,null,null,null,null,null,null,null,null,null,null,null,null,null,null,null,null,null,2,null,null,null,2,null,null,null,1,null,null,null,null,null,null,null,null,1,null,null,null,null,null,null,null,null,null,null,null,null,null,null,4,null,null,null,null,null,null,null,null,null,null,null,null,null,null,null,null,null,null,null,null,null,null,null,null,null,null,null,null,null,null,null,null,null,null,null,null,null,null,null,null,40,null,59]
[null,"355. Art et science militaires",null,null,1,null,null,null,null,null,null,null,null,null,null,null,null,null,null,null,null,null,null,null,null,null,null,null,null,null,null,null,null,null,null,null,null,null,null,null,null,null,null,null,null,null,null,null,null,null,null,null,null,null,null,null,null,null,null,null,null,null,null,null,null,null,null,null,null,null,null,null,null,null,null,null,null,null,null,null,null,null,null,null,null,null,null,null,null,null,null,null,null,null,null,null,null,null,null,null,null,null,2,null,3]
[null,"360. Problèmes et services sociaux",null,null,1,null,5,null,null,null,null,null,null,null,null,null,null,null,5,null,null,null,null,null,null,null,null,null,null,1,null,null,null,2,null,null,null,null,null,null,null,null,null,null,null,null,2,null,null,null,null,null,null,null,null,null,null,null,null,null,null,1,null,null,null,null,null,null,null,null,null,null,null,null,null,null,null,null,null,null,null,null,null,null,null,null,null,null,null,null,null,null,null,null,null,null,null,null,null,null,null,null,6,null,23]
[null,"370. Education et enseignement",null,null,null,null,33,null,null,null,null,null,null,null,null,null,null,null,null,null,null,null,null,null,null,null,null,null,null,null,null,null,1,10,null,null,null,null,null,null,null,null,null,null,null,null,1,null,null,null,null,null,null,null,null,null,null,1,null,null,null,null,null,null,null,null,null,null,null,null,1,null,null,null,null,null,null,null,null,null,1,null,1,1,null,null,null,null,null,null,1,null,null,null,null,null,null,null,null,null,null,null,12,null,63]
[null,"380. Commerce, communication, transports",null,null,3,null,20,null,null,null,null,null,null,null,null,null,null,null,null,null,null,null,null,null,1,null,null,null,null,2,null,null,null,18,null,null,null,null,null,null,null,null,null,null,null,null,2,null,null,null,null,null,null,null,null,null,null,null,null,null,null,1,null,null,null,null,null,null,null,null,null,null,null,null,null,null,null,null,null,null,null,null,null,null,null,null,null,null,null,null,null,null,null,null,null,null,null,null,null,null,null,null,8,null,55]
[null,"390. Ethnologie, anthropologie, folklore",null,null,null,null,3,null,null,null,null,null,null,null,null,null,null,null,null,null,null,null,null,null,null,null,null,null,null,null,null,null,null,4,null,null,null,null,null,null,null,null,null,null,null,null,null,null,null,null,null,null,null,null,null,null,null,null,null,null,null,null,null,null,null,null,null,null,null,null,null,null,null,null,null,null,null,null,null,null,null,null,null,null,null,null,null,null,null,null,null,null,null,null,null,null,null,null,null,null,null,null,3,null,10]
["4XX","400. Langues et linguistique",null,null,1,null,10,null,null,null,null,null,null,null,null,null,null,null,null,null,null,null,null,null,null,null,null,null,null,null,null,null,null,1,null,null,null,null,null,1,null,null,null,null,null,null,null,1,null,null,null,null,null,null,null,null,null,null,null,null,null,null,null,null,null,null,null,null,null,null,null,null,null,null,null,null,null,null,null,null,null,null,null,null,null,null,null,null,null,null,1,null,null,null,null,null,null,null,null,null,null,null,5,null,20]
["5XX","500. Sciences (généralités)",null,null,null,null,17,null,null,null,null,null,null,null,null,null,null,null,null,1,null,null,null,null,null,null,null,null,null,3,null,null,null,2,null,null,null,null,2,null,null,null,null,null,null,null,4,null,null,null,1,null,null,null,null,null,null,null,null,null,null,3,null,null,null,null,null,null,null,null,1,null,null,null,null,null,null,null,null,null,3,null,null,null,null,null,null,null,null,null,null,1,null,null,null,null,null,null,null,null,null,null,408,null,446]
[null,"510. Mathématiques",null,null,3,null,25,null,null,null,null,null,null,null,null,null,null,null,null,null,null,null,null,null,null,null,null,null,null,null,null,null,null,1,null,null,null,null,null,null,null,null,null,null,null,null,2,null,null,null,null,null,null,null,null,null,null,null,null,null,null,null,null,null,null,null,null,null,null,null,1,null,null,null,null,null,null,null,null,null,null,null,null,null,null,null,null,null,null,null,null,null,null,null,null,null,null,null,null,null,null,null,3,null,35]
[null,"520. Astronomie",null,null,1,null,19,null,1,null,null,null,null,null,null,null,null,null,null,null,null,null,null,null,null,null,null,null,null,1,null,null,null,1,null,null,null,null,null,null,null,null,null,null,null,null,null,1,null,null,null,null,null,null,null,null,null,null,null,null,null,2,null,null,null,null,null,null,null,null,null,null,null,null,null,null,null,null,null,null,null,null,null,null,null,null,null,null,null,null,null,null,null,null,null,null,null,null,null,null,null,null,5,null,31]
[null,"530. Physique",null,null,2,null,24,null,null,null,null,null,null,null,null,null,null,null,null,null,null,null,null,null,null,null,null,null,null,null,null,null,null,1,null,null,null,null,null,null,null,null,null,null,null,null,1,null,null,null,null,null,null,null,null,null,null,null,null,null,null,null,null,null,null,null,null,null,null,null,null,null,null,null,null,null,null,null,null,null,null,null,null,null,null,null,null,null,null,null,null,null,null,null,null,null,null,null,null,null,null,null,1,null,29]
[null,"540. Chimie, minéralogie, cristallographie",null,null,2,null,13,null,null,null,null,null,null,null,null,null,null,null,null,null,null,null,null,null,null,null,null,null,null,null,null,null,null,3,null,null,null,null,null,null,null,null,null,null,null,null,1,1,null,null,null,null,null,null,null,null,null,null,null,null,null,null,null,null,null,null,null,null,null,null,null,null,null,null,null,null,null,null,null,null,null,null,null,null,null,null,null,null,null,null,null,null,null,null,null,null,null,null,null,1,null,null,2,null,23]
[null,"550. Sciences de la Terre",null,null,null,null,5,null,null,null,null,null,null,null,null,null,null,null,null,null,null,null,null,null,null,null,null,null,null,null,null,null,null,null,null,null,null,null,1,null,null,null,null,null,null,null,null,null,null,null,null,null,null,null,null,null,null,null,null,null,null,null,null,null,null,null,null,null,null,null,null,null,null,null,null,null,null,null,null,null,null,null,null,null,null,null,null,null,null,null,null,null,null,null,null,null,null,null,null,null,null,null,null,null,6]
[null,"560. Paléontologie",null,null,2,null,9,null,null,null,null,null,null,null,null,null,null,null,1,null,null,null,null,null,1,null,null,null,null,null,null,null,null,6,null,null,null,null,null,null,null,null,null,null,null,null,null,null,null,null,null,null,null,null,null,null,null,null,null,null,null,null,null,null,null,null,null,null,null,null,1,null,null,null,null,null,null,null,null,1,null,null,null,null,null,null,null,null,null,null,null,null,null,null,null,null,null,null,null,null,null,null,6,null,27]
[null,"570. Sciences de la vie",null,null,null,null,11,null,null,null,null,null,null,null,null,null,null,null,null,null,null,null,null,null,null,null,null,null,null,null,null,null,null,null,null,null,null,null,null,null,null,null,null,null,null,null,null,null,null,null,null,null,null,null,null,null,null,null,null,null,null,null,null,null,null,null,null,null,null,null,null,null,null,null,null,null,null,null,null,null,null,null,null,null,null,null,null,null,null,null,null,null,null,null,null,null,null,null,null,null,null,null,3,null,14]
[null,"580. Botanique",null,null,4,null,22,null,null,null,null,null,null,null,null,null,null,null,null,null,1,null,null,null,null,null,null,null,null,null,null,null,null,8,null,null,null,null,null,null,null,null,null,null,null,null,4,null,null,null,null,null,null,null,null,null,null,null,null,null,null,null,null,null,null,null,null,null,null,null,null,null,null,null,null,null,null,null,null,null,null,null,null,null,null,null,null,null,null,null,null,null,null,null,null,null,null,null,null,null,null,null,3,null,42]
[null,"590. Zoologie",null,null,17,null,10,null,null,null,null,null,null,null,null,null,null,null,null,null,null,null,null,null,null,null,null,null,null,null,null,null,null,2,null,null,null,null,null,null,null,null,null,null,null,null,null,null,null,null,null,null,null,null,null,null,null,null,null,null,null,null,null,null,null,null,null,null,null,null,null,null,null,null,null,null,null,null,null,1,null,null,null,null,null,null,null,null,null,null,null,1,null,null,null,null,null,null,null,null,null,null,1,null,32]
["6XX","600. Sciences appliquées",null,null,14,null,63,null,null,null,null,null,null,null,null,null,null,null,1,null,null,null,null,null,null,null,null,null,null,4,null,null,null,2,null,null,null,null,null,null,null,null,null,null,null,null,1,null,null,null,null,null,null,null,null,null,null,null,null,null,null,null,null,null,null,null,null,null,null,null,3,null,null,null,null,null,null,null,null,null,null,null,null,null,null,null,null,null,null,null,null,null,null,null,null,null,null,null,null,null,null,null,5,null,93]
[null,"610. Sciences médicales et paramédicales",null,null,null,null,5,null,null,null,null,null,null,null,null,null,null,null,null,null,null,null,null,null,null,null,null,null,null,null,null,null,null,null,null,null,null,null,null,null,null,null,null,null,null,null,null,null,null,null,null,null,null,null,null,null,null,null,null,null,null,null,null,null,null,null,null,null,null,null,null,null,null,null,null,null,null,null,null,null,null,null,null,null,null,null,null,null,null,null,null,null,null,null,null,null,null,null,null,null,null,null,1,null,6]
[null,"620. Sciences de l'ingénieur",null,null,36,null,186,null,null,null,null,null,null,null,null,null,null,null,null,null,null,null,null,null,null,null,null,null,null,6,null,null,null,14,null,null,null,1,1,null,null,null,null,null,null,null,9,3,null,null,null,null,null,null,null,null,null,null,null,null,null,2,null,null,null,null,null,null,null,null,5,null,2,null,null,null,null,null,null,2,null,null,null,null,null,null,null,null,null,null,null,2,null,null,null,null,null,null,null,1,null,null,15,null,285]
[null,"630. Agriculture, élevage",null,null,8,null,65,null,null,null,null,null,null,null,null,null,null,null,null,null,null,null,null,null,null,null,null,null,null,1,null,null,null,12,null,null,null,null,null,null,null,null,null,null,null,null,5,null,null,null,null,null,null,null,null,null,null,null,null,null,null,null,null,null,null,null,null,null,null,null,null,null,null,null,null,null,null,null,null,1,null,null,null,null,null,null,null,null,null,null,null,null,null,null,null,null,null,null,null,null,null,null,18,null,110]
[null,"640. Economie domestique, hôtellerie",null,null,33,null,62,null,null,null,null,null,null,null,null,null,null,null,null,null,null,null,null,null,null,null,null,null,null,null,null,null,null,10,null,null,null,null,null,null,null,null,null,null,null,null,3,2,null,null,null,null,null,null,null,null,null,null,null,null,null,null,null,null,null,null,null,null,null,null,null,null,null,null,null,null,null,null,null,null,null,null,null,null,null,null,null,null,null,null,null,2,null,null,null,null,null,null,null,null,null,null,6,null,118]
[null,"650. Gestion et organisation de l'entreprise",null,null,40,null,145,null,null,null,null,null,null,null,null,null,null,null,null,null,null,null,null,null,null,null,null,null,null,1,null,null,1,11,null,null,null,null,null,null,null,null,null,null,null,null,22,6,null,null,null,null,null,null,null,null,null,null,null,null,null,1,null,null,null,null,null,null,null,null,10,null,1,null,null,null,null,null,null,null,1,null,1,null,null,null,null,null,null,null,null,3,null,null,null,null,null,null,null,null,null,null,18,null,261]
[null,"660. Génie chimique et technologies connexes",null,null,1,null,57,null,null,null,null,null,null,null,null,null,null,null,null,null,1,null,null,null,null,null,null,null,null,1,null,null,null,6,null,null,null,null,null,null,null,null,null,null,null,null,null,null,null,null,null,null,null,null,null,null,null,null,null,null,null,null,null,null,null,null,null,null,null,null,null,null,null,null,null,null,null,null,null,null,null,null,null,null,null,null,null,null,null,null,null,null,null,null,null,null,null,null,null,null,null,null,23,null,89]
[null,"670. Industries",null,null,null,null,4,null,null,null,null,null,null,null,null,null,null,null,null,null,null,null,null,null,null,null,null,null,null,null,null,null,null,1,null,null,null,null,null,null,null,null,null,null,null,null,null,null,null,null,null,null,null,null,null,null,null,null,null,null,null,null,null,null,null,null,null,null,null,null,null,null,null,null,null,null,null,null,null,null,null,null,null,null,null,null,null,null,null,null,null,null,null,null,null,null,null,null,null,null,null,null,2,null,7]
[null,"680. Métiers divers",null,null,null,null,1,null,null,null,null,null,null,null,null,null,null,null,null,null,null,null,null,null,null,null,null,null,null,null,null,null,null,1,null,null,null,null,null,null,null,null,null,null,null,null,null,null,null,null,null,null,null,null,null,null,null,null,null,null,null,null,null,null,null,null,null,null,null,null,null,null,1,null,null,null,null,null,null,null,null,null,null,null,null,null,null,null,null,null,null,null,null,null,null,null,null,null,null,null,null,null,null,null,3]
[null,"690. Bâtiment",null,null,null,null,1,null,null,null,null,null,null,null,null,null,null,null,null,null,null,null,null,null,null,null,null,null,null,null,null,null,null,null,null,null,null,null,null,null,null,null,null,null,null,null,null,null,null,null,null,null,null,null,null,null,null,null,null,null,null,null,null,null,null,null,null,null,null,null,null,null,null,null,null,null,null,null,null,null,null,null,null,null,null,null,null,null,null,null,null,null,null,null,null,null,null,null,null,null,null,null,4,null,5]
["7XX","700. Arts",null,null,8,null,49,null,null,null,null,null,null,null,null,null,null,null,2,null,null,null,null,null,1,null,null,null,null,5,null,null,null,152,null,null,null,null,null,null,null,null,null,null,null,null,12,3,null,null,null,null,null,null,null,null,null,null,null,null,null,null,null,null,null,null,null,null,null,null,2,null,null,null,null,null,null,null,null,2,1,null,1,null,null,null,null,null,null,null,null,null,null,null,null,null,null,null,1,null,null,null,69,null,308]
[null,"710. Urbanisme",null,null,null,null,7,null,null,null,null,null,null,null,null,null,null,null,null,null,null,null,null,null,null,null,null,null,null,null,null,null,null,6,null,null,null,null,null,null,null,null,null,null,null,null,null,null,null,null,null,null,null,null,null,null,null,null,null,null,null,null,null,null,null,null,null,null,null,null,null,null,null,null,null,null,null,null,null,null,null,null,null,null,null,null,null,null,null,null,null,null,null,null,null,null,null,null,null,null,null,null,2,null,15]
[null,"720. Architecture",null,null,4,null,17,null,null,null,null,null,null,null,null,null,null,null,null,null,null,null,null,null,null,null,null,null,null,null,null,null,null,50,null,null,null,null,null,null,null,null,null,null,null,null,6,null,null,null,null,null,null,null,null,null,null,null,null,null,null,null,null,null,null,null,null,null,null,null,null,null,null,null,null,null,null,null,null,null,null,null,null,null,null,null,null,null,null,null,null,null,null,null,null,null,null,null,null,null,null,null,24,null,101]
[null,"730. Arts plastiques, sculpture",null,null,3,null,4,null,null,null,null,null,null,null,null,null,null,null,null,null,null,null,null,null,null,null,null,null,null,1,null,null,null,27,null,null,null,null,null,null,null,null,null,null,null,null,null,null,null,null,null,null,null,null,null,null,null,null,null,null,null,null,null,null,null,null,null,null,null,null,null,null,null,null,null,null,null,null,null,1,null,null,null,null,null,null,null,null,null,null,null,null,null,null,null,null,null,null,null,null,null,null,12,null,48]
[null,"740. Dessin, arts décoratifs, artisanat d'art",null,null,40,null,184,null,2,null,null,null,null,null,null,null,null,null,null,null,1,null,null,null,2,null,null,null,null,8,null,null,1,57,null,null,null,1,null,null,null,null,null,null,null,null,9,52,null,null,null,null,null,null,null,null,null,null,null,null,null,null,null,null,null,null,null,null,null,null,5,null,2,null,null,null,null,null,null,null,1,null,4,null,null,null,null,null,null,null,null,2,null,null,null,null,null,null,null,null,null,null,21,null,392]
[null,"750. Peinture",null,null,14,null,37,null,null,null,null,null,null,null,null,null,null,null,null,null,1,null,null,null,null,null,null,null,null,5,null,null,null,93,null,null,null,null,null,null,null,null,null,null,null,null,5,1,null,null,null,null,null,null,null,null,null,null,null,null,null,null,null,null,null,null,null,null,null,2,3,null,null,null,null,null,null,null,null,4,null,null,null,null,null,null,null,null,null,null,null,null,null,null,null,null,null,null,null,null,null,null,40,null,205]
[null,"760. Arts graphiques",null,null,3,null,1,null,null,null,null,null,null,null,null,null,null,null,null,null,null,null,null,null,null,null,null,null,null,1,null,null,null,1,null,null,null,null,null,null,null,null,null,null,null,null,1,null,null,null,null,null,null,null,null,null,null,null,null,null,null,null,null,null,null,null,null,null,null,null,null,null,null,null,null,null,null,null,null,null,null,null,null,null,null,null,null,null,null,null,null,null,null,null,null,null,null,null,null,null,null,null,7,null,14]
[null,"770. Photographie",null,null,2,null,49,null,null,null,null,null,null,null,null,null,null,null,2,null,null,null,null,null,null,null,null,null,null,1,null,null,null,100,null,null,null,null,null,null,null,null,null,null,null,null,3,3,null,null,null,null,null,null,null,null,null,null,null,null,null,null,null,null,null,null,null,null,null,null,3,null,null,null,null,null,null,null,null,null,2,null,1,null,null,null,null,null,null,null,null,null,null,null,null,null,null,null,null,null,null,null,57,null,223]
[null,"780. Musique",null,null,2,null,30,null,null,null,null,null,null,null,null,null,null,null,null,null,null,null,null,null,null,null,null,null,null,2,null,null,null,7,null,null,null,null,null,null,null,null,null,null,null,null,1,1,null,null,null,null,null,null,null,null,null,null,null,null,null,1,null,null,null,null,null,null,null,null,null,null,null,null,null,null,null,null,null,null,null,null,null,null,null,null,null,null,null,null,null,null,null,null,null,null,null,null,1,null,null,null,10,null,55]
[null,"790. Spectacles et loisirs (généralités)",null,null,null,null,1,null,null,null,null,null,null,null,null,null,null,null,null,null,null,null,null,null,null,null,null,null,null,null,null,null,null,1,null,null,null,null,null,null,null,null,null,null,null,null,null,null,null,null,null,null,null,null,null,null,null,null,null,null,null,null,null,null,null,null,null,null,null,null,null,null,null,null,null,null,null,null,null,null,null,null,null,null,null,null,null,null,null,null,null,null,null,null,null,null,null,null,null,null,null,null,1,null,3]
[null,"791. Audiovisuel",null,null,1,null,55,null,null,null,null,null,null,null,null,null,null,null,null,null,1,null,null,null,null,null,null,null,null,null,null,null,null,7,null,null,null,null,null,null,null,null,null,null,null,null,13,null,null,null,null,null,null,null,null,null,null,null,null,null,null,null,null,null,null,null,null,null,null,null,null,null,null,null,null,null,null,null,null,null,null,null,1,null,null,null,null,null,null,null,null,null,null,null,null,null,null,null,null,null,null,null,7,null,85]
[null,"792. Représentations scéniques",null,null,2,null,3,null,null,null,null,null,null,null,null,null,null,null,null,null,1,null,null,null,null,null,null,null,null,null,null,null,null,5,null,null,null,null,null,null,null,null,null,null,null,null,2,1,null,null,null,null,null,null,null,null,null,null,null,null,null,null,null,null,null,null,null,null,null,null,null,null,null,null,null,null,null,null,null,null,null,null,null,null,null,null,null,null,null,null,null,null,null,null,null,null,null,null,null,null,null,null,6,null,20]
[null,"793. Jeux",null,null,17,null,243,null,null,null,null,null,null,null,null,null,null,null,null,null,null,null,null,null,null,null,null,null,null,5,null,null,null,2,null,null,null,null,null,null,null,null,null,null,null,null,4,9,null,null,null,null,null,null,null,null,null,null,null,null,null,null,null,null,null,null,null,null,null,null,2,null,null,null,null,null,null,null,null,1,null,null,2,null,null,null,null,null,null,null,null,null,null,null,null,null,null,null,null,null,null,null,3,null,288]
[null,"796. Sports",null,null,4,null,54,null,null,null,null,null,null,null,null,null,null,null,1,null,null,null,null,null,null,null,null,null,null,1,null,null,null,7,null,null,null,null,1,null,null,null,null,null,null,null,3,3,null,null,null,null,null,null,null,null,null,null,null,null,null,null,null,null,null,null,null,null,null,null,null,null,null,null,null,null,null,null,null,null,null,null,null,null,null,null,null,null,null,null,null,1,null,null,null,null,null,null,null,null,null,null,null,null,75]
["8XX","800. Histoire et critique littéraires",null,null,5,null,19,null,2,null,null,null,null,null,null,null,null,null,null,null,null,null,null,null,null,null,null,null,null,2,null,null,null,3,null,null,null,null,2,1,null,null,null,null,null,null,5,1,null,null,null,null,null,null,null,null,null,null,null,null,null,2,null,null,null,null,null,null,null,null,null,null,null,null,null,null,null,null,null,null,1,1,2,null,null,null,null,null,null,null,null,null,null,null,null,null,null,null,null,null,null,null,69,null,115]
[null,"801. Poésie",null,2,13,2,53,1,25,null,null,null,null,null,1,1,1,2,6,null,1,1,1,3,2,null,null,null,null,27,1,null,1,48,null,2,null,3,5,2,null,1,1,null,1,null,18,10,null,null,null,null,null,null,null,null,1,null,null,null,1,12,null,null,1,1,null,null,1,null,4,null,1,null,17,1,null,null,5,5,10,15,23,null,1,null,null,null,null,1,1,2,null,1,2,1,null,null,3,null,null,null,60,1,406]
[null,"802. Théâtre",null,2,14,2,30,null,6,null,null,null,null,null,null,2,null,1,null,null,null,null,null,2,1,1,2,null,null,15,null,null,null,9,null,null,null,null,5,1,null,null,null,null,null,null,9,1,null,null,null,1,null,null,null,null,null,null,null,null,null,2,null,null,null,null,null,null,null,null,null,null,null,null,1,null,null,null,2,2,1,1,6,null,1,null,null,null,null,null,null,1,null,null,null,null,null,null,1,null,null,1,6,null,129]
[null,"803. Romans et fiction romanesque",3,2,192,6,3268,null,33,1,5,null,null,1,null,1,3,3,28,null,17,1,2,null,21,null,null,null,null,138,null,1,11,40,1,1,null,15,5,13,1,13,null,2,null,28,137,52,null,1,null,1,1,1,4,null,null,null,1,null,null,1,null,1,null,null,null,1,1,null,26,null,25,null,8,null,1,null,5,18,44,15,68,null,1,2,3,null,1,3,null,70,null,null,1,2,2,1,11,3,6,2,42,null,4418]
[null,"804. Essais littéraires et écrits divers",null,null,17,1,77,null,3,null,null,null,null,null,null,null,null,null,1,null,null,1,1,null,1,null,null,null,null,13,null,null,null,6,null,null,null,null,3,1,null,1,null,null,null,null,13,null,1,null,null,1,null,null,null,null,null,null,null,null,null,2,null,null,null,null,null,1,null,null,1,null,null,null,4,null,null,null,null,null,3,2,9,null,2,null,null,null,null,null,null,1,null,null,null,1,null,null,null,1,null,null,39,1,208]
[null,"805. Bandes dessinées",null,null,11,null,951,null,null,null,null,null,null,null,null,null,null,null,33,null,9,1,null,4,3,null,null,null,null,51,null,null,6,15,null,null,null,null,null,null,null,null,null,null,null,1,62,1487,null,null,null,null,null,null,null,null,null,null,null,1,null,null,null,null,null,null,null,null,null,null,4,null,2,null,null,null,null,null,null,null,11,null,1,null,null,null,null,null,null,1,null,4,null,null,null,null,null,null,1,null,null,null,5,null,2664]
[null,"809. Littérature pour la jeunesse",null,null,65,2,1468,null,8,null,null,null,null,null,null,1,2,6,5,null,15,2,3,null,8,null,null,null,null,66,null,2,3,111,null,null,null,1,null,1,null,null,null,null,5,2,75,71,null,null,null,null,null,null,null,1,null,null,null,null,null,null,1,1,null,1,null,null,null,null,44,1,9,null,null,null,null,null,3,2,6,null,5,null,null,null,null,null,null,null,null,29,null,1,null,6,null,null,null,null,null,null,80,null,2112]
["9XX","900. Histoire et géographie (généralités)",null,null,2,null,18,null,1,null,null,null,null,null,null,null,null,null,null,null,null,null,null,null,null,null,null,null,null,null,null,null,null,2,null,null,null,null,null,1,null,null,null,null,null,null,null,null,null,null,null,null,null,null,null,null,null,null,null,null,null,null,null,null,null,null,null,null,null,null,null,null,null,null,null,null,null,null,null,null,null,null,null,null,null,null,null,null,null,null,null,null,null,null,null,null,null,null,null,null,null,null,3,null,27]
[null,"910. Géographie, tourisme (guides) et voyages",null,null,3,null,139,null,1,null,null,null,null,null,null,null,null,1,1,null,null,null,null,null,1,null,null,null,null,4,null,null,null,54,null,null,null,null,null,null,null,null,null,null,null,1,16,null,null,null,null,null,null,null,null,null,null,null,null,null,null,null,null,null,null,null,null,null,null,null,2,null,null,null,null,null,null,null,null,null,2,null,2,null,null,null,null,null,null,null,null,null,null,null,null,null,null,null,null,null,null,null,12,null,239]
[null,"920. Biographies et généalogie",null,1,71,null,452,null,3,null,1,null,null,1,null,null,null,null,6,null,1,null,1,null,2,null,null,null,null,36,null,null,1,29,null,null,null,3,1,4,2,null,null,null,null,null,44,12,null,null,null,null,null,null,null,null,null,null,null,null,null,3,1,1,null,null,null,null,null,null,10,null,3,1,2,null,null,null,1,8,12,2,28,null,null,null,1,null,1,null,null,1,null,null,null,2,null,2,4,null,2,2,20,null,778]
[null,"930. Préhistoire et histoire ancienne",null,null,1,null,12,null,null,null,null,null,null,null,null,null,null,null,null,null,null,null,null,null,null,null,null,null,null,null,null,null,null,7,null,null,null,null,6,null,null,null,null,null,null,null,8,null,null,null,null,null,null,null,null,null,null,null,null,null,null,3,null,null,null,null,null,null,null,null,null,null,null,null,null,null,null,null,null,null,null,null,null,null,null,null,null,null,null,null,null,null,null,null,null,null,null,null,null,null,null,null,15,null,52]
[null,"940. Histoire médiévale, moderne et contemporaine (sauf la France)",null,null,16,2,54,null,1,null,1,null,null,null,null,null,null,null,1,null,null,null,null,null,null,null,1,null,null,6,null,null,null,10,null,null,1,null,1,2,null,2,null,null,null,1,8,2,null,null,null,null,null,null,null,null,null,null,null,null,null,2,null,null,null,null,null,null,null,null,2,null,null,null,null,null,null,null,null,1,3,null,9,null,null,null,4,null,null,null,null,2,null,null,null,null,null,null,null,1,null,null,41,null,174]
[null,"944. Histoire de la France (depuis 486)",null,null,2,null,14,null,null,null,null,null,1,null,null,null,null,null,null,null,null,null,null,null,null,null,null,null,null,null,null,null,null,16,2,null,null,null,null,null,null,null,null,null,null,null,1,null,null,null,null,null,null,null,null,null,null,null,null,null,null,1,null,null,null,null,null,null,null,null,1,null,null,null,null,null,null,null,null,null,null,null,null,null,null,null,null,null,null,null,null,null,null,null,null,null,null,null,null,null,null,null,16,null,54,{"$f":"SUM(DB125:DB193)","v":0}]
["Total",null,3,7,847,16,8983,1,137,1,7,1,1,2,1,5,6,14,107,2,50,6,8,9,47,1,3,1,1,518,1,3,26,1094,4,3,1,30,78,76,8,18,1,2,6,33,634,1741,1,1,1,3,1,1,4,1,1,1,1,2,1,114,2,3,1,2,2,2,2,5,144,1,47,1,33,1,1,1,18,52,114,42,195,2,15,2,8,1,2,5,3,122,3,2,6,14,4,17,23,7,9,6,1393,3,16993]
[]
[]
[null,null,2017]
["Classe","Indice","Afrikaans","Akkadien","Albanais","Arabe","Arménien","Basque","Bengali","Langues berbères","Breton","Bulgare","Catalan","Chinois","Slavon","Corse","Créole","Tchèque","Danois","Néerlandais","Egyptien","Anglais","Estonien","Finnois","Dialecte français","Français","Français moyen","Français ancien","Peul","Géorgien","Allemand","Galician","Allemand moyen haut","Grec ancien","Grec","Alsacien","Hébreux","Croate","Hongrois","Islandais","Indonésien","Italien","Japonais","Coréen","Latin","Mandingue","Langues austronésiennes","Malgache","Maltais","Langues multiples","Multilingue","Norvégien","Occitan","Persan","Polonais","Portugais","Roumain","Russe","Sanskrit","Slovène","Espagnol","Serbe","Suisse","Syriaque","Tamoul","Tibétain","Turc","Ukrainien","Vietnamien","Yiddish","Anglais moyen","Copte","Avestique","Ourdou","Vieux norrois","Sarde","Pendjabi","Langue maya","Tatar de Crimée","Fon ","Langue iranienne","Slovaque","Lituanien","Mongol","Guèze","Rwandais"]
["0XX","000. Généralités",null,null,null,null,null,null,null,null,null,null,null,null,null,null,null,null,null,null,null,null,null,null,null,null,null,null,null,null,null,null,null,null,null,null,null,null,null,null,null,null,null,null,null,null,null,null,null,null,null,null,null,null,null,null,null,null,null,null,null,null,null,null,null,null,null,null,null,null,null,null,null,null,null,null,null,null,null,null,null,null,null,null,null,null,{"$f":"SUM(C200:CH200)","v":0}]
[null,"004. Informatique",null,null,null,null,null,null,null,null,null,null,null,null,null,null,null,null,null,null,null,52,null,null,null,30,null,null,null,null,null,null,null,null,null,null,null,null,null,null,null,null,null,null,null,null,null,null,null,null,null,null,null,null,null,null,null,null,null,null,null,null,null,null,null,null,null,null,null,null,null,null,null,null,null,null,null,null,null,null,null,null,null,null,null,null,{"$f":"SUM(C201:CH201)","v":82}]
[null,"020. Sciences de l'information",null,null,null,null,null,null,null,null,null,null,null,null,null,null,null,null,null,null,null,null,null,null,null,1,null,null,null,null,null,null,null,null,null,null,null,null,null,null,null,1,null,null,null,null,null,null,null,null,null,null,null,null,null,null,null,null,null,null,null,null,null,null,null,null,null,null,null,null,null,null,null,null,null,null,null,null,null,null,null,null,null,null,null,null,{"$f":"SUM(C202:CH202)","v":2}]
[null,"030. Encyclopédies générales",null,null,null,null,null,null,null,null,null,null,null,null,null,null,null,null,null,null,null,11,null,null,null,null,null,null,null,null,null,null,null,null,null,null,null,null,null,null,null,null,null,null,1,null,null,null,null,null,null,null,null,null,null,null,null,null,null,null,null,null,null,null,null,null,null,null,null,null,null,null,null,null,null,null,null,null,null,null,null,null,null,null,null,null,{"$f":"SUM(C203:CH203)","v":12}]
[null,"060. Organisations à vocation savante",null,null,null,null,null,null,null,null,null,null,null,null,null,null,null,null,null,null,null,null,null,null,null,null,null,null,null,null,null,null,null,null,null,null,null,null,null,null,null,null,null,null,null,null,null,null,null,null,null,null,null,null,null,null,null,null,null,null,null,null,null,null,null,null,null,null,null,null,null,null,null,null,null,null,null,null,null,null,null,null,null,null,null,null,{"$f":"SUM(C204:CH204)","v":0}]
[null,"070. Presse et édition",null,null,null,null,null,null,null,null,null,null,null,null,null,null,null,null,null,null,null,3,null,null,null,null,null,null,null,null,1,null,null,null,null,null,null,null,null,null,null,null,null,null,null,null,null,null,null,null,null,null,null,null,null,null,null,null,null,null,null,null,null,null,null,null,null,null,null,null,null,null,null,null,null,null,null,null,null,null,null,null,null,null,null,null,{"$f":"SUM(C205:CH205)","v":4}]
[null,"090. Bibliophilie",null,null,null,null,null,null,null,null,null,null,null,null,null,null,null,null,null,null,null,null,null,null,null,null,null,null,null,null,null,null,null,null,null,null,null,null,null,null,null,null,null,null,null,null,null,null,null,null,null,null,null,null,null,null,null,null,null,null,null,null,null,null,null,null,null,null,null,null,null,null,null,null,null,null,null,null,null,null,null,null,null,null,null,null,{"$f":"SUM(C206:CH206)","v":0}]
["1XX","100. Philosophie",null,null,null,1,null,null,null,null,null,null,null,null,null,null,null,null,null,2,1,31,null,null,null,6,null,null,null,null,39,null,null,12,null,null,1,null,null,null,null,17,4,null,22,null,null,null,null,null,null,1,null,null,1,1,1,2,null,null,1,1,null,null,null,null,null,null,null,null,null,null,null,null,null,null,null,null,null,null,null,null,null,null,null,null,{"$f":"SUM(C207:CH207)","v":144}]
[null,"130. Esotérisme, phénomènes paranormaux",null,null,null,1,null,null,null,null,null,null,null,null,null,null,null,null,null,null,null,156,null,null,null,6,1,null,null,1,24,null,1,null,null,null,null,null,null,null,null,21,1,null,1,null,null,null,null,2,null,1,null,null,null,null,null,11,null,null,3,null,1,null,null,null,null,null,null,null,null,null,null,null,null,null,null,null,null,null,null,null,null,null,null,null,{"$f":"SUM(C208:CH208)","v":231}]
[null,"150. Psychologie, psychanalyse",null,null,null,null,null,null,null,null,null,null,null,null,null,null,null,null,3,3,null,168,null,null,null,6,null,null,null,null,16,null,null,null,null,null,2,null,null,null,null,6,2,null,null,null,null,null,null,null,null,null,null,null,null,null,null,null,null,null,9,null,2,null,null,null,null,null,null,null,null,null,null,null,null,null,null,null,null,null,null,null,null,null,null,null,{"$f":"SUM(C209:CH209)","v":217}]
["2XX","200. Religion (ouvrages généraux et comparatifs)",null,null,null,null,null,null,null,null,null,null,null,null,null,null,null,null,null,null,null,16,null,null,null,1,null,null,null,null,2,null,null,null,null,null,null,null,null,null,null,null,null,null,null,null,null,null,null,null,null,null,null,null,null,null,null,null,null,null,null,null,null,null,null,null,null,null,null,null,null,null,null,null,null,null,null,null,null,null,null,null,null,null,null,null,{"$f":"SUM(C210:CH210)","v":19}]
[null,"220. Bible, judaïsme, christianisme",null,null,null,1,null,null,null,null,null,null,1,null,4,null,null,null,null,4,null,153,null,null,null,26,1,null,null,null,56,null,1,29,null,null,20,null,null,null,null,69,null,null,46,null,null,null,null,null,1,null,null,null,2,1,1,3,null,null,32,1,1,1,null,null,null,null,null,2,1,2,null,null,null,null,null,null,null,null,null,null,null,null,null,null,{"$f":"SUM(C211:CH211)","v":459}]
[null,"290. Islam, religions orientales et anciennes, autres religions",null,null,null,42,null,null,1,null,null,null,null,7,null,null,null,null,null,null,4,68,null,null,null,2,null,null,null,null,6,null,null,null,null,null,1,null,null,null,null,1,3,null,1,null,null,null,null,null,null,null,null,1,null,null,null,null,4,null,1,null,null,null,1,5,null,null,1,null,null,null,1,1,1,null,null,null,null,null,null,null,null,null,null,null,{"$f":"SUM(C212:CH212)","v":152}]
["3XX","300. Sciences sociales",null,null,null,1,null,null,null,null,null,null,null,null,null,null,null,null,null,null,null,67,null,null,null,4,null,null,null,null,8,null,null,null,null,null,null,null,null,null,null,14,null,null,null,null,null,null,null,null,null,null,null,null,null,1,1,1,null,1,3,null,null,null,null,null,null,null,null,null,null,null,null,null,null,null,null,null,null,null,null,null,null,null,null,null,101]
[null,"320. Sciences politiques",null,null,null,3,null,null,null,null,null,null,null,null,null,null,null,1,null,null,null,49,null,null,null,5,null,null,null,null,19,null,null,null,null,null,null,null,null,null,null,15,null,null,1,null,null,null,null,null,null,1,null,null,null,null,null,3,null,null,6,null,null,null,null,null,null,null,null,null,null,null,null,null,null,null,null,null,null,null,null,null,null,null,null,null,103]
[null,"330. Economie",null,null,null,1,null,null,null,null,null,null,null,2,null,null,null,null,null,1,null,49,null,null,null,8,null,null,null,null,5,null,null,null,null,null,null,null,null,null,null,2,null,null,null,null,null,null,null,null,null,null,null,null,null,null,1,null,null,null,null,null,null,null,null,null,null,null,null,null,null,null,null,null,null,null,null,null,null,null,null,null,null,null,null,null,69]
[null,"340. Droit",null,null,null,null,null,null,null,null,null,null,null,null,null,null,null,null,null,null,null,3,null,null,null,3,null,null,null,null,2,null,null,null,null,null,null,null,null,null,null,null,null,null,null,null,null,null,null,null,null,null,null,null,null,null,null,null,null,null,2,null,null,null,null,null,null,null,null,null,null,null,null,null,null,null,null,null,null,null,null,null,null,null,null,null,10]
[null,"350. Administration publique",null,null,null,null,null,null,null,null,null,null,null,null,null,null,null,null,null,null,null,null,null,null,null,1,null,null,null,null,null,null,null,null,null,null,null,null,null,null,null,null,null,null,null,null,null,null,null,null,null,null,null,null,null,null,null,null,null,null,null,null,null,null,null,null,null,null,null,null,null,null,null,null,null,null,null,null,null,null,null,null,null,null,null,null,1]
[null,"355. Art et science militaires",null,null,null,null,null,null,null,null,null,null,null,2,null,null,null,null,null,null,null,10,null,null,null,4,null,null,null,null,2,null,null,null,null,null,null,null,null,null,null,null,null,null,null,null,null,null,null,null,null,null,null,null,null,null,null,null,null,null,2,null,null,null,null,null,null,null,null,null,null,null,null,null,null,null,null,null,null,null,null,null,null,null,null,null,20]
[null,"360. Problèmes et services sociaux",null,null,null,null,null,null,null,null,null,null,null,null,null,null,null,null,null,null,null,24,null,null,null,8,null,null,null,null,5,null,null,null,null,null,null,null,null,null,null,3,null,null,null,null,null,null,null,null,null,null,null,null,null,1,null,null,null,null,2,null,null,null,null,null,null,null,null,null,null,null,null,null,null,null,null,null,null,null,null,null,null,null,null,null,43]
[null,"370. Education et enseignement",null,null,null,null,null,null,null,null,null,null,null,null,null,null,null,null,null,null,null,7,null,null,null,1,null,null,null,null,11,null,null,null,null,null,null,null,null,null,null,2,null,null,null,null,null,null,null,null,null,null,null,null,null,null,null,1,null,null,1,null,null,null,null,null,null,null,null,null,null,null,null,null,null,null,null,null,null,null,null,null,null,null,null,null,23]
[null,"380. Commerce, communication, transports",null,null,null,null,null,null,null,null,null,null,null,null,null,null,null,null,null,null,null,1,null,null,null,4,null,null,null,null,1,null,null,null,null,null,null,null,null,null,null,null,null,null,null,null,null,null,null,null,null,null,null,null,null,null,null,null,null,null,null,null,null,null,null,null,null,null,null,null,null,null,null,null,null,null,null,null,null,null,null,null,null,null,null,null,6]
[null,"390. Ethnologie, anthropologie, folklore",null,null,null,null,null,null,null,null,null,null,null,null,null,null,null,null,null,null,null,13,null,null,null,2,null,null,null,null,1,null,null,null,null,null,null,null,null,null,null,3,null,null,null,null,null,null,null,null,null,null,null,null,null,null,null,null,null,null,3,null,null,null,null,null,null,null,null,null,null,null,null,null,null,null,null,null,null,null,null,null,null,null,null,null,22]
["4XX","400. Langues et linguistique",null,null,null,1,null,null,null,null,null,null,null,null,null,null,null,null,2,null,null,26,null,null,null,6,null,null,null,null,2,null,null,null,null,null,null,null,null,null,null,3,null,null,null,null,null,null,null,null,null,null,1,null,1,null,null,null,1,null,2,null,null,null,null,null,null,null,null,null,null,null,null,null,null,null,null,null,null,null,null,null,null,null,null,null,45]
["5XX","500. Sciences (généralités)",null,null,null,null,null,null,null,null,null,null,null,null,null,null,null,null,null,null,null,16,null,null,null,1,null,null,null,null,2,null,null,1,null,null,null,null,null,null,null,1,null,null,null,null,null,null,null,null,null,null,null,null,null,null,null,null,null,null,1,null,null,null,null,null,null,null,null,null,null,null,null,null,null,null,null,null,null,null,null,null,null,null,null,null,22]
[null,"510. Mathématiques",null,null,null,null,null,null,null,null,null,null,null,null,null,null,null,null,null,null,null,12,null,null,null,null,null,null,null,null,null,null,null,2,null,null,null,null,null,null,null,null,null,null,null,null,null,null,null,null,null,null,null,null,null,null,null,1,null,null,null,null,null,null,null,null,null,null,null,null,null,null,null,null,null,null,null,null,null,null,null,null,null,null,null,null,15]
[null,"520. Astronomie",null,null,null,null,null,null,null,null,null,null,null,null,null,null,null,null,null,null,null,14,null,null,null,null,null,null,null,null,null,null,null,null,null,null,null,null,null,null,null,1,null,null,null,null,null,null,null,null,null,null,null,null,null,null,null,null,null,null,null,null,null,null,null,null,null,null,null,null,null,null,null,null,null,null,null,null,null,null,null,null,null,null,null,null,15]
[null,"530. Physique",null,null,null,null,null,null,null,null,null,null,null,null,null,null,null,null,null,null,null,6,null,null,null,null,null,null,null,null,null,null,null,null,null,null,null,null,null,null,null,1,1,null,null,null,null,null,null,null,null,null,null,null,null,null,null,null,null,null,null,null,null,null,null,null,null,null,null,null,null,null,null,null,null,null,null,null,null,null,null,null,null,null,null,null,8]
[null,"540. Chimie, minéralogie, cristallographie",null,null,null,null,null,null,null,null,null,null,null,null,null,null,null,null,null,null,null,5,null,null,null,null,null,null,null,null,null,null,null,null,null,null,null,null,null,null,null,null,null,null,null,null,null,null,null,null,null,null,null,null,null,null,null,null,null,null,null,null,null,null,null,null,null,null,null,null,null,null,null,null,null,null,null,null,null,null,null,null,null,null,null,null,5]
[null,"550. Sciences de la Terre",null,null,null,null,null,null,null,null,null,null,null,null,null,null,null,null,null,1,null,9,null,null,null,1,null,null,null,null,1,null,null,null,null,null,null,null,null,null,null,1,null,null,null,null,null,null,null,null,null,null,null,null,null,null,null,null,null,null,null,null,null,null,null,null,null,null,null,null,null,null,null,null,null,null,null,null,null,null,null,null,null,null,null,null,13]
[null,"560. Paléontologie",null,null,null,null,null,null,null,null,null,null,null,null,null,null,null,null,null,null,null,10,null,null,null,null,null,null,null,null,1,null,null,null,null,null,null,null,null,null,null,null,null,null,null,null,null,null,null,null,null,null,null,null,null,null,null,null,null,null,null,null,null,null,null,null,null,null,null,null,null,null,null,null,null,null,null,null,null,null,null,null,null,null,null,null,11]
[null,"570. Sciences de la vie",null,null,null,null,null,null,null,null,null,null,null,null,null,null,null,null,null,2,null,28,null,null,null,null,null,null,null,null,4,null,null,null,null,null,null,null,null,null,null,null,1,null,null,null,null,null,null,null,null,null,null,null,null,null,null,null,null,null,null,null,null,null,null,null,null,null,null,null,null,null,null,null,null,null,null,null,null,null,null,null,null,null,null,null,35]
[null,"580. Botanique",null,null,null,null,null,null,null,null,null,null,null,null,null,null,null,null,null,null,null,3,null,null,null,null,null,null,null,null,6,null,null,1,null,null,null,null,null,null,null,null,null,null,null,null,null,null,null,null,null,null,null,null,null,null,null,null,null,null,null,null,null,null,null,null,null,null,null,null,null,null,null,null,null,null,null,null,null,null,null,null,null,null,null,null,10]
[null,"590. Zoologie",null,null,null,null,null,null,null,null,null,null,null,null,null,null,null,null,null,null,null,38,null,null,null,null,null,null,null,null,6,null,null,null,null,null,null,null,null,null,null,1,null,null,null,null,null,null,null,null,null,null,null,null,null,null,null,null,null,null,null,null,null,null,null,null,null,null,null,null,null,null,null,null,null,null,null,null,null,null,null,null,null,null,null,null,45]
["6XX","600. Sciences appliquées",null,null,null,null,null,null,null,null,null,null,null,null,null,null,null,null,null,null,null,3,null,null,null,null,null,null,null,null,null,null,null,null,null,null,null,null,null,null,null,null,null,null,null,null,null,null,null,null,null,null,null,null,null,null,null,null,null,null,1,null,null,null,null,null,null,null,null,null,null,null,null,null,null,null,null,null,null,null,null,null,null,null,null,null,4]
[null,"610. Sciences médicales et paramédicales",null,null,null,null,null,null,null,null,null,null,null,null,null,null,null,null,null,5,null,148,null,null,null,9,null,null,null,null,33,null,null,2,null,null,null,null,null,null,null,10,2,null,null,null,null,null,null,null,null,null,null,null,null,null,null,2,null,null,4,null,2,null,null,null,null,null,null,null,null,null,null,null,null,null,null,null,null,null,null,null,null,null,null,null,217]
[null,"620. Sciences de l'ingénieur",null,null,null,null,null,null,null,null,null,null,null,null,null,null,null,1,null,null,null,35,null,null,null,13,null,null,null,null,6,null,null,null,null,null,null,null,null,null,null,2,null,null,null,null,null,null,null,null,null,null,null,null,null,null,null,null,null,null,1,null,null,null,null,null,null,null,null,null,null,null,null,null,null,null,null,null,null,null,null,null,null,null,null,null,58]
[null,"630. Agriculture, élevage",null,null,null,null,null,null,null,null,null,null,null,null,null,null,null,null,null,1,null,61,null,null,null,6,null,null,null,null,24,null,null,null,null,null,null,null,null,null,null,4,null,null,null,null,null,null,null,null,null,1,null,null,null,null,null,null,null,1,1,null,null,null,null,null,null,null,null,null,null,null,null,null,null,null,null,null,null,null,null,null,null,null,null,null,99]
[null,"640. Economie domestique, hôtellerie",null,null,null,null,null,null,null,null,null,null,null,null,null,null,null,null,2,2,null,172,null,null,null,11,null,1,null,null,78,null,null,null,null,null,null,null,null,null,null,5,1,null,null,null,null,null,null,null,1,1,1,null,null,null,null,null,null,null,1,null,7,null,null,null,null,null,null,null,null,null,null,null,null,null,null,null,null,null,null,null,null,null,null,null,283]
[null,"650. Gestion et organisation de l'entreprise",null,null,null,null,null,null,null,null,null,null,null,null,null,null,null,null,null,1,null,46,null,null,null,6,null,null,null,null,null,null,null,null,null,null,null,null,null,null,null,null,null,null,null,null,null,null,null,null,null,null,null,null,null,null,null,null,null,null,null,null,null,null,null,null,null,null,null,null,null,null,null,null,null,null,null,null,null,null,null,null,null,null,null,null,53]
[null,"660. Génie chimique et technologies connexes",null,null,null,null,null,null,null,null,null,null,null,null,null,null,null,null,null,null,null,null,null,null,null,1,null,null,null,null,null,null,null,null,null,null,null,null,null,null,null,1,null,null,null,null,null,null,null,null,null,null,null,null,null,null,null,null,null,null,null,null,null,null,null,null,null,null,null,null,null,null,null,null,null,null,null,null,null,null,null,null,null,null,null,null,2]
[null,"670. Industries",null,null,null,null,null,null,null,null,null,null,null,1,null,null,null,null,null,null,null,1,null,null,null,1,null,null,null,null,null,null,null,null,null,null,null,null,null,null,null,null,null,null,null,null,null,null,null,null,null,null,null,null,null,null,null,null,null,null,null,null,null,null,null,null,null,null,null,null,null,null,null,null,null,null,null,null,null,null,null,null,null,null,null,null,3]
[null,"680. Métiers divers",null,null,null,null,null,null,null,null,null,null,null,null,null,null,null,null,null,null,null,4,null,null,null,null,null,null,null,null,null,null,null,null,null,null,null,null,null,null,null,null,null,null,null,null,null,null,null,null,null,null,null,null,null,null,null,null,null,null,null,null,null,null,null,null,null,null,null,null,null,null,null,null,null,null,null,null,null,null,null,null,null,null,null,null,4]
[null,"690. Bâtiment",null,null,null,null,null,null,null,null,null,null,null,null,null,null,null,null,null,null,null,1,null,null,null,1,null,null,null,null,1,null,null,null,null,null,null,null,null,null,null,null,null,null,null,null,null,null,null,null,null,null,null,null,null,null,null,null,null,null,null,null,null,null,null,null,null,null,null,null,null,null,null,null,null,null,null,null,null,null,null,null,null,null,null,null,3]
["7XX","700. Arts",null,null,null,null,null,null,null,null,null,null,null,null,null,null,null,null,null,null,null,51,null,null,null,153,null,null,null,null,18,null,null,null,null,null,null,null,null,null,null,4,2,null,null,null,null,null,null,null,1,null,null,null,1,null,null,4,null,null,4,null,1,null,null,null,null,null,null,null,null,null,null,null,null,null,null,null,null,null,null,null,null,null,null,null,239]
[null,"710. Urbanisme",null,null,null,null,null,null,null,null,null,null,null,null,null,null,null,null,null,null,null,4,null,null,null,5,null,null,null,null,null,null,null,null,null,null,null,null,null,null,null,2,null,null,null,null,null,null,null,null,null,null,null,null,null,null,null,null,null,null,null,null,null,null,null,null,null,null,null,null,null,null,null,null,null,null,null,null,null,null,null,null,null,null,null,null,11]
[null,"720. Architecture",null,null,null,null,null,null,null,null,null,null,null,null,null,null,null,null,null,null,null,20,null,null,null,45,null,null,null,null,5,null,null,null,null,null,null,null,null,null,null,8,null,null,null,null,null,null,null,null,null,null,null,null,null,null,null,null,null,null,4,null,null,null,null,null,null,null,null,null,null,null,null,null,null,null,null,null,null,null,null,null,null,null,null,null,82]
[null,"730. Arts plastiques, sculpture",null,null,null,null,null,null,null,null,null,null,null,2,null,null,null,null,null,null,null,12,null,null,null,40,null,null,null,null,3,null,null,null,null,null,null,null,null,null,null,2,2,null,null,null,null,null,null,null,null,null,null,null,null,null,null,null,null,null,1,null,1,null,null,null,null,null,null,null,null,null,null,null,null,null,null,null,null,null,null,null,null,null,null,null,63]
[null,"740. Dessin, arts décoratifs, artisanat d'art",null,null,null,null,null,null,null,null,null,1,null,2,null,null,null,null,1,2,null,158,null,2,null,53,null,null,null,null,30,null,null,null,null,null,null,null,null,null,null,15,46,null,null,null,null,null,null,null,null,2,null,null,null,2,null,2,null,null,11,null,6,null,null,null,null,null,null,null,null,null,null,null,null,null,null,null,null,null,null,null,null,null,null,null,333]
[null,"750. Peinture",null,null,null,null,null,null,null,null,null,null,null,2,null,null,null,null,null,null,null,35,null,null,null,85,null,null,null,null,35,null,null,null,null,null,null,null,null,null,null,6,1,null,null,null,null,null,null,null,null,null,null,null,null,1,null,null,null,null,12,null,null,null,null,null,null,null,null,null,null,null,null,null,null,null,null,null,null,null,null,null,null,null,null,null,177]
[null,"760. Arts graphiques",null,null,null,null,null,null,null,null,null,null,null,null,null,null,null,1,null,null,null,4,null,null,null,2,null,null,null,null,5,null,null,null,null,null,null,null,null,null,null,1,1,null,null,null,null,null,null,null,null,null,null,null,null,null,null,null,null,null,null,null,null,null,null,null,null,null,null,null,null,null,null,null,null,null,null,null,null,null,null,null,null,null,null,null,14]
[null,"770. Photographie",null,null,null,null,null,null,null,null,null,null,null,null,null,null,null,null,null,1,null,67,null,1,null,106,null,null,null,null,6,null,null,null,null,null,null,null,null,null,null,2,1,null,null,null,null,null,null,null,null,null,null,null,null,5,1,null,null,null,3,null,null,null,null,null,null,null,null,null,null,null,null,null,null,null,null,null,null,null,null,null,null,null,null,null,193]
[null,"780. Musique",null,null,null,null,null,null,null,null,1,null,1,null,null,null,null,null,null,null,null,47,null,null,null,1,null,null,null,null,3,null,null,null,null,null,null,null,null,null,null,2,null,null,null,null,null,null,null,null,1,null,null,null,null,null,null,null,null,null,null,null,null,null,null,null,null,null,null,null,null,null,null,null,null,null,null,null,null,null,null,null,null,null,null,null,56]
[null,"790. Spectacles et loisirs (généralités)",null,null,null,null,null,null,null,null,null,null,null,null,null,null,null,null,null,null,null,null,null,null,null,null,null,null,null,null,null,null,null,null,null,null,null,null,null,null,null,null,null,null,null,null,null,null,null,null,null,null,null,null,null,null,null,null,null,null,2,null,null,null,null,null,null,null,null,null,null,null,null,null,null,null,null,null,null,null,null,null,null,null,null,null,2]
[null,"791. Audiovisuel",null,null,null,null,null,null,null,null,null,null,null,null,null,null,null,null,null,null,null,113,null,null,null,7,null,null,null,null,2,null,null,null,null,null,null,null,null,null,null,7,1,null,null,null,null,null,null,null,null,null,null,null,1,null,null,1,null,null,2,null,null,null,null,null,null,null,null,null,null,null,null,null,null,null,null,null,null,null,null,null,null,null,null,null,134]
[null,"792. Représentations scéniques",null,null,null,null,null,null,null,null,null,null,null,null,null,null,null,null,null,null,null,4,null,null,null,1,null,null,null,null,null,null,null,null,null,null,null,null,null,null,null,1,null,null,null,null,null,null,null,null,null,1,null,null,null,1,null,null,null,null,null,null,null,null,null,null,null,null,null,null,null,null,null,null,null,1,null,null,null,null,null,null,null,null,null,null,9]
[null,"793. Jeux",null,null,null,null,null,null,null,null,null,null,null,null,null,null,null,null,null,2,null,139,null,null,null,4,null,null,null,null,14,null,null,null,null,null,null,null,null,null,null,8,3,null,null,null,null,null,null,null,null,1,null,null,1,1,null,1,null,null,3,null,null,null,null,null,null,null,null,null,null,null,null,null,null,null,null,null,null,null,null,null,null,null,null,null,177]
[null,"796. Sports",null,null,null,null,null,null,null,null,null,null,null,null,null,null,null,null,null,null,null,38,null,null,null,9,null,null,null,null,9,null,null,null,null,null,null,null,null,null,null,1,null,null,null,null,null,null,null,null,null,null,null,null,null,1,null,null,null,null,2,null,null,null,null,null,null,null,null,null,null,null,null,null,null,null,null,null,null,null,null,null,null,null,null,null,60]
["8XX","800. Histoire et critique littéraires",null,null,null,null,null,null,null,null,null,null,null,1,null,null,null,null,null,null,null,21,null,null,null,1,null,null,null,null,7,null,null,1,null,null,null,null,null,null,null,5,null,null,null,null,null,null,null,null,null,null,null,null,null,1,null,3,null,null,7,null,null,null,null,null,null,null,null,null,null,null,null,null,null,null,null,null,null,null,null,null,null,null,null,null,47]
[null,"801. Poésie",null,1,3,21,1,null,null,1,1,1,3,3,null,2,null,6,5,3,null,57,1,null,1,34,1,5,null,null,16,null,null,9,11,2,3,4,2,3,null,16,12,3,7,null,null,1,1,null,null,1,11,3,2,6,8,15,null,1,40,null,1,null,null,null,4,null,null,null,null,null,null,1,null,null,1,1,null,null,null,null,null,null,null,null,335]
[null,"802. Théâtre",null,null,null,2,null,null,null,null,null,1,null,null,null,null,null,null,null,null,null,33,null,null,null,13,3,1,null,null,13,null,null,6,null,null,null,2,null,null,null,12,1,null,1,null,null,null,null,null,null,4,2,null,3,4,null,7,null,null,17,1,3,null,null,null,null,null,null,null,null,null,null,null,null,null,null,null,null,null,null,null,null,null,null,null,129]
[null,"803. Romans et fiction romanesque",1,null,3,27,null,null,null,1,null,2,11,16,null,null,1,4,16,20,null,2941,4,12,null,27,1,9,null,2,179,1,null,2,19,null,12,null,11,23,6,123,49,21,2,1,1,null,1,null,null,36,8,1,12,41,13,74,null,2,153,6,85,null,null,null,5,2,null,6,null,null,null,null,null,null,null,null,1,1,1,1,null,null,null,null,3997]
[null,"804. Essais littéraires et écrits divers",null,null,null,2,null,null,null,null,1,null,null,1,null,1,null,null,null,2,null,79,null,null,null,8,1,1,null,null,16,null,null,5,1,null,null,null,1,null,null,9,3,2,null,null,null,null,null,null,null,null,5,null,null,3,null,6,null,1,9,null,null,null,null,null,2,null,null,null,null,null,null,null,null,null,null,null,null,null,null,null,1,null,null,null,160]
[null,"805. Bandes dessinées",null,null,null,null,null,null,null,null,null,null,null,5,null,null,null,null,null,11,null,732,null,4,null,13,null,null,null,null,8,null,null,null,null,null,null,1,null,null,null,68,1387,8,null,null,null,null,null,null,null,1,null,1,null,4,1,null,null,null,43,1,8,null,null,null,null,null,null,null,null,null,null,null,null,null,null,null,null,null,null,null,null,null,null,null,2296]
[null,"809. Littérature pour la jeunesse",null,null,null,5,null,null,null,null,1,3,3,13,null,null,2,3,13,47,null,1299,2,6,null,101,null,null,null,null,89,null,1,2,null,null,6,null,1,1,null,80,58,5,null,null,3,3,null,1,null,8,null,null,2,18,null,3,null,null,48,null,23,null,null,null,2,1,1,null,null,null,null,null,null,null,null,null,null,null,null,null,null,1,null,null,1855]
["9XX","900. Histoire et géographie (généralités)",null,null,null,null,null,null,null,null,null,null,null,null,null,null,null,null,null,null,null,8,null,null,null,1,null,null,null,null,2,null,null,null,null,null,1,null,null,null,null,null,null,null,null,null,null,null,null,null,null,null,null,null,null,null,null,null,null,null,1,null,null,null,null,null,null,null,null,null,null,null,null,null,null,null,null,null,null,null,null,null,null,null,null,null,13]
[null,"910. Géographie, tourisme (guides) et voyages",null,null,null,null,null,null,null,null,null,null,null,null,null,null,null,null,null,1,null,86,null,null,null,64,null,2,null,null,2,null,null,null,null,null,null,1,null,null,null,13,null,null,null,null,null,null,null,null,null,null,null,null,null,2,null,null,null,null,27,null,null,null,null,null,null,null,null,null,null,null,null,null,null,null,null,null,null,null,null,null,null,null,null,null,198]
[null,"920. Biographies et généalogie",null,null,1,5,1,null,null,null,1,1,2,4,null,null,null,1,1,9,null,294,null,null,null,27,null,null,1,null,51,null,null,1,1,null,4,null,4,null,null,37,6,null,9,null,null,null,null,null,null,3,5,null,2,7,3,19,null,3,19,1,3,null,null,null,6,null,1,5,null,null,null,null,null,null,null,null,null,null,1,null,1,1,1,2,544]
[null,"930. Préhistoire et histoire ancienne",null,null,null,null,null,null,null,null,1,null,null,null,null,null,null,null,null,null,null,17,null,null,null,3,null,null,null,null,null,null,null,6,null,null,null,null,null,null,null,2,2,null,6,null,null,null,null,null,null,null,null,null,null,null,null,null,null,null,null,null,null,null,null,null,null,null,null,null,null,null,null,null,null,null,null,null,null,null,null,null,null,null,null,null,37]
[null,"940. Histoire médiévale, moderne et contemporaine (sauf la France)",null,null,null,1,null,1,null,null,null,1,3,3,null,null,null,null,null,1,null,75,null,null,null,15,null,null,null,null,14,null,null,null,null,null,1,null,null,null,null,8,null,null,2,null,null,null,null,1,null,null,null,1,null,3,null,5,null,null,4,null,1,null,null,null,null,null,null,null,null,null,null,null,null,null,null,null,null,null,null,null,null,null,null,null,140]
[null,"944. Histoire de la France (depuis 486)",null,null,null,null,null,null,null,null,null,null,null,null,null,null,null,null,null,null,null,8,null,null,null,14,null,null,null,null,4,null,null,null,null,null,1,null,null,null,null,4,null,null,null,null,null,null,null,null,null,null,2,null,null,null,null,null,null,null,null,null,null,null,null,null,null,null,null,null,null,null,null,null,null,null,null,null,null,null,null,null,null,null,null,null,33]
["Total",null,{"$f":"SUM(C200:C270)","v":1},{"$f":"SUM(D200:D270)","v":1},{"$f":"SUM(E200:E270)","v":7},{"$f":"SUM(F200:F270)","v":114},{"$f":"SUM(G200:G270)","v":2},{"$f":"SUM(H200:H270)","v":1},{"$f":"SUM(I200:I270)","v":1},{"$f":"SUM(J200:J270)","v":2},{"$f":"SUM(K200:K270)","v":6},{"$f":"SUM(L200:L270)","v":10},{"$f":"SUM(M200:M270)","v":24},{"$f":"SUM(N200:N270)","v":64},{"$f":"SUM(O200:O270)","v":4},{"$f":"SUM(P200:P270)","v":3},{"$f":"SUM(Q200:Q270)","v":3},{"$f":"SUM(R200:R270)","v":17},{"$f":"SUM(S200:S270)","v":43},{"$f":"SUM(T200:T270)","v":121},{"$f":"SUM(U200:U270)","v":5},{"$f":"SUM(V200:V270)","v":7861},{"$f":"SUM(W200:W270)","v":7},{"$f":"SUM(X200:X270)","v":25},{"$f":"SUM(Y200:Y270)","v":1},{"$f":"SUM(Z200:Z270)","v":1006},{"$f":"SUM(AA200:AA270)","v":8},{"$f":"SUM(AB200:AB270)","v":19},{"$f":"SUM(AC200:AC270)","v":1},{"$f":"SUM(AD200:AD270)","v":3},{"$f":"SUM(AE200:AE270)","v":893},{"$f":"SUM(AF200:AF270)","v":1},{"$f":"SUM(AG200:AG270)","v":3},{"$f":"SUM(AH200:AH270)","v":79},{"$f":"SUM(AI200:AI270)","v":32},{"$f":"SUM(AJ200:AJ270)","v":2},{"$f":"SUM(AK200:AK270)","v":52},{"$f":"SUM(AL200:AL270)","v":8},{"$f":"SUM(AM200:AM270)","v":19},{"$f":"SUM(AN200:AN270)","v":27},{"$f":"SUM(AO200:AO270)","v":6},{"$f":"SUM(AP200:AP270)","v":620},{"$f":"SUM(AQ200:AQ270)","v":1590},39,99,1,4,4,2,4,4,62,35,7,28,104,30,164,5,9,488,11,145,1,1,5,19,3,3,13,1,2,1,2,1,1,1,1,1,1,2,1,2,2,1,2,{"$f":"SUM(CI200:CI270)","v":14004},{"$f":"SUM(CJ200:CJ270)","v":0},0,0,0,0,0,0,0,0,0,0,0,0,0,0,0,0,null,{"$f":"SUM(DB200:DB270)","v":0}]
["Source : Bibliographie nationale française - Livres"]
[]
[null,null,"Traduction",null,null,null,null,null,null,null,null,null,null,null,null,null,null,null,null,null,null,null,null,null,null,null,null,null,null,null,null,null,null,null,null,null,null,null,null,null,null,null,null,null,null,null,null,null,null,null,null,null,null,null,null,null,null,null,null,null,null,null,null,null,null,null,null,null,null,null,null,null,null,null,null,null,null,null,null,null,null,null,null,null,null,null,null,null,null,null,null,null,null,null,null,null,null,null,null,null,null,null,null,null,null,"Total"]
[null,null,2016]
["Classe","Indice","Anglais","Japonais","Autres","Français","Allemand","Italien","Espagnol","Néerlandais","Suisse","Russe","Coréen","Arabe","Latin","Chinois","Portugais","Hébreux","Norvégien","Grec","Polonais","Grec ancien","Danois","Finnois","Islandais","Roumain","Occitan","Hongrois","Français ancien","Sanskrit","Catalan","Turc","Bulgare","Tchèque","Tibétain","Persan","Egyptien","Créole","Croate","Vietnamien","Estonien","Yiddish","Serbe","Corse","Ukrainien","Slovène","Arménien","Breton","Alsacien","Langues multiples","Multilingue","Indonésien","Espéranto","Basque","Français moyen","Langues austronésiennes","Tamoul","Hindi","Malgache","Albanais","Allemand moyen haut","Dialecte français","Afrikaans","Judeo-espagnol","Syriaque","Akkadien","Tagalog","Maltais","Bengali","Azéri","Bantou","Norvégien nynorsk","Géorgien","Macédonien","Kurde","Douala","Langues nigéro-kordofaniennes","Pahlavi","Dialectes allemands","Peul","Swahili","Ewé","Hittite","Irlandais","Lingala","Langues romanes","Dialecte espagnol","Tsigane","Sérère","Langues afro-asiatiques","Langues berbères","Ouszbek","Néerlandais moyen","Mandingue","Thaï","Langues nahuatl","Letton","Langues slaves","indéterminée","Slavon","Newari","Rundi","Araméen d'empire","Galician","Kabyle"]
["0XX","000. Généralités",2,null,1,4,null,null,1,null,null,null,null,null,null,null,null,null,null,null,null,null,null,null,null,null,null,null,null,null,null,null,null,null,null,null,null,null,null,null,null,null,null,null,null,null,null,null,null,null,null,null,null,null,null,null,null,null,null,null,null,null,null,null,null,null,null,null,null,null,null,null,null,null,null,null,null,null,null,null,null,null,null,null,null,null,null,null,null,null,null,null,null,null,null,null,null,null,null,null,null,null,null,null,null,8]
[null,"004. Informatique",68,null,1,25,null,null,null,null,null,null,null,null,null,null,null,null,null,null,null,null,null,null,null,null,null,null,null,null,null,null,null,null,null,null,null,null,null,null,null,null,null,null,null,null,null,null,null,null,null,null,null,null,null,null,null,null,null,null,null,null,null,null,null,null,null,null,null,null,null,null,null,null,null,null,null,null,null,null,null,null,null,null,null,null,null,null,null,null,null,null,null,null,null,null,null,null,null,null,null,null,null,null,null,94]
[null,"020. Sciences de l'information"]
[null,"030. Encyclopédies générales",1,null,null,null,null,null,null,null,null,null,null,null,null,null,null,null,null,null,null,null,null,null,null,null,null,null,null,null,null,null,null,null,null,null,null,null,null,null,null,null,null,null,null,null,null,null,null,null,null,null,null,null,null,null,null,null,null,null,null,null,null,null,null,null,null,null,null,null,null,null,null,null,null,null,null,null,null,null,null,null,null,null,null,null,null,null,null,null,null,null,null,null,null,null,null,null,null,null,null,null,null,null,null,1]
[null,"060. Organisations à vocation savante",null,null,2,null,null,null,null,null,null,null,null,null,null,null,null,null,null,null,null,null,null,null,null,null,null,null,null,null,null,null,null,null,null,null,null,null,null,null,null,null,null,null,null,null,null,null,null,null,null,null,null,null,null,null,null,null,null,null,null,null,null,null,null,null,null,null,null,null,null,null,null,null,null,null,null,null,null,null,null,null,null,null,null,null,null,null,null,null,null,null,null,null,null,null,null,null,null,null,null,null,null,null,null,2]
[null,"070. Presse et édition",3,null,1,null,1,null,null,null,null,null,null,null,null,null,null,null,null,null,null,null,null,null,null,null,null,null,null,null,null,null,null,null,null,null,null,null,null,null,null,null,null,null,null,null,null,null,null,null,null,null,null,null,null,null,null,null,null,null,null,null,null,null,null,null,null,null,null,null,null,null,null,null,null,null,null,null,null,null,null,null,null,null,null,null,null,null,null,null,null,null,null,null,null,null,null,null,null,null,null,null,null,null,null,5]
[null,"090. Bibliophilie",1,null,5,null,1,null,null,null,null,null,null,null,null,null,null,null,null,null,null,null,null,null,null,null,null,null,null,null,null,null,null,null,null,null,null,null,null,null,null,null,null,null,null,null,null,null,null,null,null,null,null,null,null,null,null,null,null,null,null,null,null,null,null,null,null,null,null,null,null,null,null,null,null,null,null,null,null,null,null,null,null,null,null,null,null,null,null,null,null,null,null,null,null,null,null,null,null,null,null,null,null,null,null,7]
["1XX","100. Philosophie",32,1,10,3,25,16,2,null,null,3,null,null,14,1,1,null,null,null,1,10,1,null,null,1,null,null,null,null,1,null,null,1,null,null,null,null,null,null,null,null,1,null,null,null,null,null,null,null,null,null,null,null,null,null,null,null,null,null,null,null,null,null,null,null,null,null,null,null,null,null,null,null,null,null,null,null,null,null,null,null,null,null,null,null,null,null,null,null,null,null,null,null,null,null,null,null,null,null,null,null,null,null,null,124]
[null,"130. Esotérisme, phénomènes paranormaux",175,5,4,7,25,4,2,null,1,4,null,null,11,1,2,null,null,null,null,1,null,null,null,null,null,null,null,null,null,null,null,null,null,null,null,null,null,null,null,null,null,null,null,null,null,null,null,null,null,null,null,null,null,null,null,null,null,null,2,null,null,null,null,null,null,null,null,null,null,null,null,null,null,null,null,null,null,null,null,null,null,null,null,null,null,null,null,null,null,null,null,null,null,null,null,null,null,null,null,null,null,null,null,244]
[null,"150. Psychologie, psychanalyse",162,1,2,3,16,11,9,5,null,1,null,null,null,null,2,null,null,null,null,null,2,null,null,null,null,null,null,null,null,null,null,1,null,null,null,null,null,null,null,null,null,null,null,null,null,null,null,null,null,1,null,null,null,null,null,null,null,null,null,null,null,null,null,null,null,null,null,null,null,null,null,null,null,null,null,null,null,null,null,null,null,null,null,null,null,null,null,null,null,null,null,null,null,null,null,null,null,null,null,null,null,null,null,216]
["2XX","200. Religion (ouvrages généraux et comparatifs)",14,null,4,null,3,null,null,null,null,null,null,2,null,null,null,null,null,null,null,null,null,null,null,null,null,null,null,null,null,null,null,null,null,null,null,null,null,null,null,null,null,null,null,null,null,null,null,null,null,null,null,null,null,null,null,null,null,null,null,null,null,null,null,null,null,null,null,null,null,null,null,null,null,null,null,null,null,null,null,null,null,null,null,null,null,null,null,null,null,null,null,null,null,null,null,null,null,null,null,null,null,null,null,23]
[null,"220. Bible, judaïsme, christianisme",211,null,12,12,45,73,18,2,1,6,null,null,32,null,1,51,null,null,5,15,1,null,null,null,1,null,null,null,1,null,null,null,null,null,null,null,null,null,null,null,null,null,null,null,1,null,null,null,null,null,null,1,null,null,null,null,null,null,1,null,null,null,1,null,null,null,null,null,null,null,1,null,null,null,null,null,null,null,null,null,null,null,null,null,null,null,null,1,null,null,1,null,null,null,null,null,1,1,null,null,1,null,null,497]
[null,"290. Islam, religions orientales et anciennes, autres religions",80,12,16,4,3,1,1,3,null,null,null,35,null,14,null,null,null,null,null,null,null,null,null,null,null,null,null,14,null,null,null,null,12,3,6,null,null,1,null,null,null,null,null,null,null,null,null,null,null,null,null,null,null,null,1,2,null,null,null,null,null,null,null,null,null,null,null,null,null,null,null,null,null,null,null,1,null,null,null,null,1,null,null,null,null,null,null,null,null,null,null,null,1,null,null,null,null,null,1,null,null,null,null,212]
["3XX","300. Sciences sociales",48,null,23,4,3,5,4,null,1,1,null,null,null,1,2,2,null,null,null,null,null,null,null,null,null,null,null,null,null,null,null,null,null,null,null,null,null,null,null,null,null,null,null,null,1,null,null,null,null,null,null,null,null,null,null,null,null,null,null,null,null,null,null,null,null,null,null,null,null,null,null,null,null,null,null,null,null,null,null,null,null,null,null,null,null,null,null,null,null,null,null,null,null,null,null,null,null,null,null,null,null,null,null,95]
[null,"320. Sciences politiques",37,null,17,2,5,11,4,4,null,5,null,3,4,1,2,1,null,null,3,null,null,null,null,null,null,null,null,null,null,null,null,null,null,null,null,null,null,null,null,null,null,null,null,null,null,null,null,null,null,null,null,null,null,null,null,null,null,null,null,null,null,null,null,null,null,null,null,null,null,null,1,null,null,null,null,null,null,null,null,null,null,null,null,null,null,null,null,null,null,null,null,null,null,null,null,null,null,null,null,null,null,null,null,100]
[null,"330. Economie",44,null,18,11,7,6,1,1,null,null,null,null,null,1,null,null,null,2,null,null,null,null,null,null,null,null,null,null,null,null,null,null,null,null,null,null,null,null,null,null,null,null,null,null,null,null,null,null,null,null,null,null,null,null,null,null,null,null,null,null,null,null,null,null,null,null,null,null,null,null,null,null,null,null,null,null,null,null,null,null,null,null,null,null,null,null,null,null,null,null,null,null,null,null,null,null,null,null,null,null,null,null,null,91]
[null,"340. Droit",1,1,26,9,null,null,null,null,null,null,null,null,1,null,null,null,null,null,null,null,null,null,null,null,null,null,null,null,null,null,null,null,null,null,null,null,null,null,null,null,null,null,null,null,null,null,null,null,null,null,null,null,null,null,null,null,null,null,null,null,null,null,null,null,null,null,null,null,null,null,null,null,null,null,null,null,null,null,null,null,null,null,null,null,null,null,null,null,null,null,null,null,null,null,null,null,null,null,null,null,null,null,null,38]
[null,"350. Administration publique"]
[null,"355. Art et science militaires",3,1,4,3,null,1,1,null,null,null,null,null,null,2,null,null,null,null,null,null,null,null,null,null,null,null,null,null,null,null,null,null,null,null,null,null,null,null,null,null,null,null,null,null,null,null,null,null,null,null,null,null,null,null,null,null,null,null,null,null,null,null,null,null,null,null,null,null,null,null,null,null,null,null,null,null,null,null,null,null,null,null,null,null,null,null,null,null,null,null,null,null,null,null,null,null,null,null,null,null,null,null,null,15]
[null,"360. Problèmes et services sociaux",16,1,16,6,4,4,null,1,null,1,null,null,null,1,1,null,null,null,null,null,null,1,null,null,null,null,null,null,null,null,null,null,null,null,null,null,null,null,null,null,null,null,null,null,null,null,null,null,null,null,null,null,null,null,null,null,null,null,null,null,null,null,null,null,null,null,null,null,null,null,null,null,null,null,null,null,null,null,null,null,null,null,null,null,null,null,null,null,null,null,null,null,null,null,null,null,null,null,null,null,null,null,null,52]
[null,"370. Education et enseignement",11,null,8,8,3,4,null,1,null,null,null,null,null,null,1,null,null,null,null,null,null,null,null,null,null,null,null,null,null,null,null,null,null,null,null,null,null,null,null,null,null,null,null,null,null,null,null,null,null,null,null,null,null,null,null,null,null,null,null,null,null,null,null,null,null,null,null,null,1,null,null,null,null,null,null,null,null,null,null,null,null,null,null,null,null,null,null,null,null,null,null,null,null,null,null,null,null,null,null,null,null,null,null,37]
[null,"380. Commerce, communication, transports",2,null,8,1,null,null,1,null,null,null,null,null,null,null,null,null,null,null,null,null,null,null,null,null,null,null,null,null,null,null,null,null,null,null,null,null,null,null,null,null,null,null,null,null,null,null,null,null,null,null,null,null,null,null,null,null,null,null,null,null,null,null,null,null,null,null,null,null,null,null,null,null,null,null,null,null,null,null,null,null,null,null,null,null,null,null,null,null,null,null,null,null,null,null,null,null,null,null,null,null,null,null,null,12]
[null,"390. Ethnologie, anthropologie, folklore",4,1,7,1,3,1,null,null,null,null,null,null,null,null,null,null,null,null,null,null,null,null,null,null,null,null,null,null,null,null,null,null,null,null,null,null,null,null,null,null,null,null,null,null,null,null,null,null,null,null,null,null,null,3,null,null,null,null,null,null,null,null,null,null,null,null,null,null,null,null,null,null,null,null,null,null,null,null,null,null,null,null,null,null,null,1,null,null,null,null,null,null,null,null,null,null,null,null,null,null,null,null,null,21]
["4XX","400. Langues et linguistique",26,null,290,3,1,3,null,1,null,null,null,null,null,null,null,null,null,null,null,null,null,null,null,null,1,null,null,null,null,null,null,null,null,null,null,null,null,null,null,null,null,1,null,null,null,1,1,1,null,null,2,1,null,null,null,null,null,null,null,1,null,null,null,null,null,null,null,null,null,null,null,null,null,null,1,null,null,null,null,null,null,null,null,null,null,null,null,null,null,null,null,null,null,null,null,null,null,null,null,null,null,null,null,334]
["5XX","500. Sciences (généralités)",10,null,1,1,1,null,null,null,null,null,null,null,1,null,null,null,null,null,null,null,null,null,null,null,null,null,null,null,null,null,null,null,null,null,null,null,null,null,null,null,null,null,null,null,null,null,null,null,null,null,null,null,null,null,null,null,null,null,null,null,null,null,null,null,null,null,null,null,null,null,null,null,null,null,null,null,null,null,null,null,null,null,null,null,null,null,null,null,null,null,null,null,null,null,null,null,null,null,null,null,null,null,null,14]
[null,"510. Mathématiques",11,null,8,2,null,null,null,null,null,1,null,null,1,null,null,null,null,null,null,null,null,null,null,null,null,null,null,null,null,null,null,null,null,null,null,null,null,null,null,null,null,null,null,null,null,null,null,null,null,null,null,null,null,null,null,null,null,null,null,null,null,null,null,null,null,null,null,null,null,null,null,null,null,null,null,null,null,null,null,null,null,null,null,null,null,null,null,null,null,null,null,null,null,null,null,null,null,null,null,null,null,null,null,23]
[null,"520. Astronomie",14,null,null,null,1,1,null,null,null,null,null,null,1,null,null,null,null,null,null,1,null,null,null,null,null,null,null,null,null,null,null,null,null,null,null,null,null,null,null,null,null,null,null,null,null,null,null,null,null,null,null,null,null,null,null,null,null,null,null,null,null,null,null,null,null,null,null,null,null,null,null,null,null,null,null,null,null,null,null,null,null,null,null,null,null,null,null,null,null,null,null,null,null,null,null,null,null,null,null,null,null,null,null,18]
[null,"530. Physique",11,null,1,3,1,null,null,1,null,null,null,null,1,null,null,null,null,null,null,null,null,null,null,null,null,null,null,null,null,null,null,null,null,null,null,null,null,null,null,null,null,null,null,null,null,null,null,null,null,null,null,null,null,null,null,null,null,null,null,null,null,null,null,null,null,null,null,null,null,null,null,null,null,null,null,null,null,null,null,null,null,null,null,null,null,null,null,null,null,null,null,null,null,null,null,null,null,null,null,null,null,null,null,18]
[null,"540. Chimie, minéralogie, cristallographie",4,null,null,null,null,null,null,null,null,null,null,null,1,null,null,null,null,null,null,null,null,null,null,null,null,null,null,null,null,null,null,null,null,null,null,null,null,null,null,null,null,null,null,null,null,null,null,null,null,null,null,null,null,null,null,null,null,null,null,null,null,null,null,null,null,null,null,null,null,null,null,null,null,null,null,null,null,null,null,null,null,null,null,null,null,null,null,null,null,null,null,null,null,null,null,null,null,null,null,null,null,null,null,5]
[null,"550. Sciences de la Terre",9,null,2,null,4,null,null,null,null,null,null,null,null,null,null,null,null,null,1,null,null,null,null,null,null,null,null,null,null,null,null,null,null,null,null,null,null,null,null,null,null,null,null,null,null,null,null,null,null,null,null,null,null,null,null,null,null,null,null,null,null,null,null,null,null,null,null,null,null,null,null,null,null,null,null,null,null,null,null,null,null,null,null,null,null,null,null,null,null,null,null,null,null,null,null,null,null,null,null,null,null,null,null,16]
[null,"560. Paléontologie",6,null,null,1,1,null,null,null,null,null,1,null,null,null,null,null,1,null,null,null,null,null,null,null,null,null,null,null,null,null,null,null,null,null,null,null,null,null,null,null,null,null,null,null,null,null,null,null,null,null,null,null,null,null,null,null,null,null,null,null,null,null,null,null,null,null,null,null,null,null,null,null,null,null,null,null,null,null,null,null,null,null,null,null,null,null,null,null,null,null,null,null,null,null,null,null,null,null,null,null,null,null,null,10]
[null,"570. Sciences de la vie",12,2,null,2,null,null,1,null,null,null,1,null,null,null,null,null,null,null,null,null,null,null,null,null,null,null,null,null,null,null,null,null,null,null,null,null,null,null,null,null,null,null,null,null,null,null,null,null,null,null,null,null,null,null,null,null,null,null,null,null,null,null,null,null,null,null,null,null,null,null,null,null,null,null,null,null,null,null,null,null,null,null,null,null,null,null,null,null,null,null,null,null,null,null,null,null,null,null,null,null,null,null,null,18]
[null,"580. Botanique",2,null,3,1,3,2,1,null,null,null,null,null,null,null,null,null,null,null,null,null,null,null,null,null,null,null,null,null,null,null,null,null,null,null,null,null,null,null,null,null,null,null,null,null,null,null,null,null,null,null,null,null,null,null,null,null,null,null,null,null,null,null,null,null,null,null,null,null,null,null,null,null,null,null,null,null,null,null,null,null,null,null,null,null,null,null,null,null,null,null,null,null,null,null,null,null,null,null,null,null,null,null,null,12]
[null,"590. Zoologie",34,null,6,2,7,3,null,1,1,null,null,null,null,null,null,null,null,null,null,null,2,null,null,null,null,null,null,null,null,null,null,null,null,null,null,null,null,null,null,null,null,null,null,null,null,null,null,null,null,null,null,null,null,null,null,null,null,null,null,null,null,null,null,null,null,null,null,null,null,null,null,null,null,null,null,null,null,null,null,null,null,null,null,null,null,null,null,null,null,null,null,null,null,null,null,null,null,null,null,null,null,null,null,56]
["6XX","600. Sciences appliquées",2,null,1,null,null,null,null,null,null,null,null,null,null,null,null,null,null,null,null,null,null,null,null,null,null,null,null,null,null,null,null,null,null,null,null,null,null,null,null,null,null,null,null,null,null,null,null,null,null,null,null,null,null,null,null,null,null,null,null,null,null,null,null,null,null,null,null,null,null,null,null,null,null,null,null,null,null,null,null,null,null,null,null,null,null,null,null,null,null,null,null,null,null,null,null,null,null,null,null,null,null,null,null,3]
[null,"610. Sciences médicales et paramédicales",160,2,14,8,34,6,2,5,2,null,null,null,2,1,1,1,null,null,null,2,null,null,null,null,null,null,null,null,null,null,null,null,null,null,null,null,null,null,null,null,null,null,null,null,null,null,null,null,null,null,null,null,null,null,null,null,null,null,null,null,null,null,null,null,null,null,null,null,null,null,null,null,null,null,null,null,null,null,null,null,null,null,null,null,null,null,null,null,null,null,null,null,null,null,null,null,null,null,null,null,null,null,null,240]
[null,"620. Sciences de l'ingénieur",46,null,18,null,9,1,2,2,null,null,null,null,null,null,null,null,null,null,null,null,null,null,null,null,null,null,null,null,null,null,null,null,null,null,null,null,null,null,null,null,null,null,null,null,null,null,null,null,null,null,null,null,null,null,null,null,null,null,null,null,null,null,null,null,null,null,null,null,null,null,null,null,null,null,null,null,null,null,null,null,null,null,null,null,null,null,null,null,null,null,null,null,null,null,null,null,null,null,null,null,null,null,null,78]
[null,"630. Agriculture, élevage",24,1,6,2,12,null,1,1,null,1,null,null,null,null,null,null,1,null,1,null,null,null,null,null,null,null,null,null,null,null,null,null,null,null,null,null,null,null,null,null,null,null,null,null,null,null,null,null,null,null,null,null,null,null,null,null,null,null,null,null,null,null,null,null,null,null,null,null,null,null,null,null,null,null,null,null,null,null,null,null,null,null,null,null,null,null,null,null,null,null,null,null,null,null,null,null,null,null,null,null,null,null,null,50]
[null,"640. Economie domestique, hôtellerie",109,3,14,10,24,1,2,2,2,null,null,null,null,null,null,null,1,null,null,null,null,null,null,null,null,null,null,null,null,null,null,null,null,null,null,null,null,null,null,null,null,null,null,null,null,null,null,null,null,null,null,null,null,null,null,null,null,null,null,null,null,null,null,null,null,null,null,null,null,null,null,null,null,null,null,null,null,null,null,null,null,null,null,null,null,null,null,null,null,null,null,null,null,null,null,null,null,null,null,null,null,null,null,168]
[null,"650. Gestion et organisation de l'entreprise",41,null,12,6,1,1,2,null,null,null,null,null,null,null,null,null,null,null,null,null,null,null,null,null,null,null,null,null,null,null,null,null,null,null,null,null,null,null,null,null,null,null,null,null,null,null,null,null,null,null,null,null,null,null,null,null,null,null,null,null,null,null,null,null,null,null,null,null,null,null,null,null,null,null,null,null,null,null,null,null,null,null,null,null,null,null,null,null,null,null,null,null,null,null,null,null,null,null,null,null,null,null,null,63]
[null,"660. Génie chimique et technologies connexes",1,null,1,null,null,null,null,null,null,null,null,null,null,null,null,null,null,null,null,null,null,null,null,null,null,null,null,null,null,null,null,null,null,null,null,null,null,null,null,null,null,null,null,null,null,null,null,null,null,null,null,null,null,null,null,null,null,null,null,null,null,null,null,null,null,null,null,null,null,null,null,null,null,null,null,null,null,null,null,null,null,null,null,null,null,null,null,null,null,null,null,null,null,null,null,null,null,null,null,null,null,null,null,2]
[null,"670. Industries",1,null,2,null,1,null,null,null,null,null,null,null,null,null,null,null,null,null,null,null,null,null,null,null,null,null,null,null,null,null,null,null,null,null,null,null,null,null,null,null,null,null,null,null,null,null,null,null,null,null,null,null,null,null,null,null,null,null,null,null,null,null,null,null,null,null,null,null,null,null,null,null,null,null,null,null,null,null,null,null,null,null,null,null,null,null,null,null,null,null,null,null,null,null,null,null,null,null,null,null,null,null,null,4]
[null,"680. Métiers divers",1,null,1,3,null,null,null,null,null,null,null,null,null,null,null,null,null,null,null,null,null,null,null,null,null,null,null,null,null,null,null,null,null,null,null,null,null,null,null,null,null,null,null,null,null,null,null,null,null,null,null,null,null,null,null,null,null,null,null,null,null,null,null,null,null,null,null,null,null,null,null,null,null,null,null,null,null,null,null,null,null,null,null,null,null,null,null,null,null,null,null,null,null,null,null,null,null,null,null,null,null,null,null,5]
[null,"690. Bâtiment",3,null,1,null,2,null,null,null,null,null,null,null,null,null,null,null,null,null,null,null,null,null,null,null,null,null,null,null,null,null,null,null,null,null,null,null,null,null,null,null,null,null,null,null,null,null,null,null,null,null,null,null,null,null,null,null,null,null,null,null,null,null,null,null,null,null,null,null,null,null,null,null,null,null,null,null,null,null,null,null,null,null,null,null,null,null,null,null,null,null,null,null,null,null,null,null,null,null,null,null,null,null,null,6]
["7XX","700. Arts",56,3,57,154,22,8,2,null,null,2,null,null,null,null,1,null,null,1,2,null,null,1,null,null,null,null,null,null,null,1,null,null,null,null,null,null,null,null,null,null,null,null,null,null,null,null,null,null,null,null,null,null,null,null,null,null,null,null,null,null,null,null,null,null,null,null,null,null,null,null,null,null,null,null,null,null,null,null,null,null,null,null,null,null,null,null,null,null,null,null,null,null,null,null,null,null,null,null,null,null,null,null,null,310]
[null,"710. Urbanisme",2,null,1,9,1,null,1,1,null,null,null,null,null,null,null,null,null,null,null,null,null,null,null,null,null,null,null,null,null,null,null,null,null,null,null,null,null,null,null,null,null,null,null,null,null,null,null,null,null,null,null,null,null,null,null,null,null,null,null,null,null,null,null,null,null,null,null,null,null,null,null,null,null,null,null,null,null,null,null,null,null,null,null,null,null,null,null,null,null,null,null,null,null,null,null,null,null,null,null,null,null,null,null,15]
[null,"720. Architecture",33,1,12,44,14,7,null,null,null,1,null,null,null,null,null,null,null,null,null,null,null,null,null,null,null,null,null,null,null,null,null,null,null,null,null,null,null,null,null,null,null,null,null,null,null,null,null,null,null,null,null,null,null,null,null,null,null,null,null,null,null,null,null,null,null,null,null,null,null,null,null,null,null,null,null,null,null,null,null,null,null,null,null,null,null,null,null,null,null,null,null,null,null,null,null,null,null,null,null,null,null,null,null,112]
[null,"730. Arts plastiques, sculpture",13,1,14,25,3,null,2,2,null,1,null,null,null,null,1,null,null,null,null,null,null,null,null,null,null,null,null,null,null,null,null,null,null,null,null,null,null,null,null,null,null,null,null,null,null,null,null,null,null,null,null,null,null,null,null,null,null,null,null,null,null,null,null,null,null,null,null,null,null,null,null,null,null,null,null,null,null,null,null,null,null,null,null,null,null,null,null,null,null,null,null,null,null,null,null,null,null,null,null,null,null,null,null,62]
[null,"740. Dessin, arts décoratifs, artisanat d'art",159,46,23,60,31,8,4,1,2,4,null,1,1,2,null,null,4,null,null,null,null,null,null,null,null,null,null,null,1,null,null,null,null,null,null,null,null,null,null,null,null,null,null,null,null,null,null,null,1,null,null,null,null,null,null,null,null,null,null,null,null,null,null,null,null,null,null,null,null,null,null,null,null,null,null,null,null,null,null,null,null,null,null,null,null,null,null,null,null,null,null,null,null,null,null,null,null,null,null,null,null,null,null,348]
[null,"750. Peinture",47,null,19,104,45,6,3,3,null,null,null,null,null,5,2,null,null,null,null,null,null,null,null,null,null,null,null,null,null,null,null,null,null,null,null,null,null,null,null,null,null,null,null,null,null,null,null,null,null,null,null,null,null,null,null,null,null,null,null,null,null,null,null,null,null,null,null,1,null,null,null,null,null,null,null,null,null,null,null,null,null,null,null,null,null,null,null,null,null,null,null,null,null,null,null,null,null,null,null,null,null,null,null,235]
[null,"760. Arts graphiques",3,2,1,7,2,null,null,null,null,null,null,null,null,null,null,null,null,null,null,null,null,null,null,null,null,null,null,null,null,null,null,null,null,null,null,null,null,null,null,null,null,null,null,null,null,null,null,null,null,null,null,null,null,null,null,null,null,null,null,null,null,null,null,null,null,null,null,null,null,null,null,null,null,null,null,null,null,null,null,null,null,null,null,null,null,null,null,null,null,null,null,null,null,null,null,null,null,null,null,null,null,null,null,15]
[null,"770. Photographie",78,3,58,117,8,5,3,2,1,3,null,null,null,null,null,null,null,1,1,null,1,null,1,null,null,null,null,null,null,null,null,null,null,null,null,null,null,null,null,null,null,null,null,null,null,null,null,null,null,null,null,null,null,null,null,null,null,null,null,null,null,null,null,null,null,null,null,null,null,null,null,null,null,null,null,null,null,null,null,null,null,null,null,null,null,null,null,null,null,null,null,null,null,null,null,null,null,null,null,null,null,null,null,282]
[null,"780. Musique",34,null,9,3,5,4,1,null,null,null,null,null,2,null,null,null,null,null,1,null,null,null,null,null,null,null,null,null,null,null,null,null,null,null,null,null,null,null,null,null,null,null,null,null,null,null,null,null,1,null,null,null,null,null,null,null,null,null,null,null,null,null,null,null,null,null,null,null,null,null,null,null,null,null,null,null,null,null,null,null,null,null,null,null,null,null,null,null,null,null,null,null,null,null,null,null,null,null,null,null,null,null,null,60]
[null,"790. Spectacles et loisirs (généralités)",3,null,1,1,null,null,null,null,null,null,null,null,null,null,null,null,null,null,null,null,null,null,null,null,null,null,null,null,null,null,null,null,null,null,null,null,null,null,null,null,null,null,null,null,null,null,null,null,null,null,null,null,null,null,null,null,null,null,null,null,null,null,null,null,null,null,null,null,null,null,null,null,null,null,null,null,null,null,null,null,null,null,null,null,null,null,null,null,null,null,null,null,null,null,null,null,null,null,null,null,null,null,null,5]
[null,"791. Audiovisuel",31,null,5,14,3,3,null,null,null,2,null,null,null,1,1,null,null,null,2,null,null,null,null,null,null,null,null,null,null,null,null,null,null,null,null,null,null,null,null,null,null,null,null,null,null,null,null,null,null,null,null,null,null,null,null,null,null,null,null,null,null,null,null,null,null,null,null,null,null,null,null,null,null,null,null,null,null,null,null,null,null,null,null,null,null,null,null,null,null,null,null,null,null,null,null,null,null,null,null,null,null,null,null,62]
[null,"792. Représentations scéniques",1,null,3,3,1,1,null,null,null,null,null,null,null,null,null,null,null,null,2,null,null,null,null,1,null,null,null,null,null,null,null,null,null,null,null,null,null,null,null,null,null,null,null,null,null,null,null,null,null,null,null,null,null,null,null,null,null,null,null,null,null,null,null,null,null,null,null,null,null,null,null,null,null,null,null,null,null,null,null,null,null,null,null,null,null,null,null,null,null,null,null,null,null,null,null,null,null,null,null,null,null,null,null,12]
[null,"793. Jeux",111,4,3,5,2,1,4,1,null,null,null,null,null,null,1,null,null,null,null,null,null,null,null,null,null,null,null,null,1,null,null,null,null,null,null,null,null,null,null,null,null,null,null,null,null,null,null,null,null,null,null,null,null,null,null,null,null,null,null,null,null,null,null,null,null,null,null,null,null,null,null,null,null,null,null,null,null,null,null,null,null,null,null,null,null,null,null,null,null,null,null,null,null,null,null,null,null,null,null,null,null,null,null,133]
[null,"796. Sports",29,3,5,6,2,2,2,null,null,null,null,null,null,null,null,null,null,null,null,null,null,null,null,null,null,null,null,null,null,null,null,null,null,null,null,null,null,null,null,null,null,null,null,1,null,null,null,null,null,null,null,null,null,null,null,null,null,null,null,null,null,null,null,null,null,null,null,null,null,null,null,null,null,null,null,null,null,null,null,null,null,null,null,null,null,null,null,null,null,null,null,null,null,null,null,null,null,null,null,null,null,null,null,50]
["8XX","800. Histoire et critique littéraires",27,1,82,2,5,10,2,null,null,null,2,2,2,null,1,null,null,null,null,null,null,null,null,null,null,1,null,null,null,null,null,null,null,null,null,null,null,null,null,null,null,null,null,null,null,null,null,null,null,null,null,null,null,null,null,null,null,null,null,null,null,null,null,null,null,null,null,null,null,null,null,null,null,null,null,null,null,null,null,null,null,null,null,null,null,null,null,null,null,null,null,null,null,null,null,null,null,null,null,null,null,null,null,137]
[null,"801. Poésie",58,9,47,34,10,15,32,4,2,12,4,33,13,14,12,1,null,19,1,5,1,null,2,8,10,2,3,4,1,1,2,null,null,9,null,2,2,3,4,null,1,1,1,1,2,null,1,1,1,3,2,2,1,null,1,null,null,null,null,1,null,null,null,null,null,null,1,null,null,null,null,1,1,null,null,null,null,null,null,null,null,null,null,null,null,null,1,null,null,1,null,null,null,1,null,null,null,null,null,1,null,null,1,406]
[null,"802. Théâtre",60,null,7,5,13,16,7,1,4,4,null,4,null,null,4,2,1,1,1,4,1,null,null,2,1,null,null,null,null,1,3,1,null,null,null,null,2,null,null,2,null,1,2,null,null,null,1,null,null,null,null,null,null,null,null,null,null,1,null,null,null,null,null,null,null,null,null,null,1,null,null,null,null,null,null,null,null,null,null,null,null,null,null,null,null,null,null,null,null,null,null,null,null,null,null,null,null,null,null,null,null,null,null,153]
[null,"803. Romans et fiction romanesque",3263,62,23,39,203,146,166,30,89,58,32,23,1,25,35,20,37,24,17,1,16,17,24,7,7,14,14,null,10,10,3,3,1,1,2,2,2,4,2,5,1,3,2,3,1,3,3,1,null,null,null,null,1,null,1,null,null,2,null,1,3,null,null,1,1,1,1,1,null,2,null,1,null,null,null,null,null,1,null,1,null,1,1,null,1,null,null,null,null,null,null,1,null,null,1,1,null,null,null,null,null,1,null,4480]
[null,"804. Essais littéraires et écrits divers",79,3,30,10,10,17,10,null,null,3,1,4,4,2,6,null,null,4,1,1,null,null,null,3,4,1,null,1,null,1,null,2,null,null,1,2,1,null,null,null,1,null,null,null,null,null,null,null,null,null,null,null,1,null,null,null,null,null,null,null,null,null,null,null,null,1,null,null,null,null,null,null,null,1,null,null,null,null,null,null,null,null,null,null,null,null,null,null,1,null,null,null,null,null,null,null,null,null,null,null,null,null,null,206]
[null,"805. Bandes dessinées",806,1686,2,5,10,58,57,8,1,null,80,1,null,19,4,3,1,2,2,null,2,3,null,null,null,null,null,null,null,null,null,null,null,null,null,1,2,null,null,null,2,null,null,1,null,null,null,null,null,null,null,null,null,null,null,null,null,null,null,null,null,null,null,null,null,null,null,null,null,null,null,null,null,null,null,null,null,null,null,null,null,null,null,null,null,null,null,null,null,null,null,null,null,null,null,null,null,null,null,null,null,null,null,2756]
[null,"809. Littérature pour la jeunesse",1431,59,70,115,88,54,64,47,26,4,7,11,1,13,11,4,8,1,3,2,13,7,1,null,1,null,3,null,2,null,3,3,null,null,null,4,1,null,2,null,null,1,1,null,null,1,null,null,1,null,null,null,null,null,null,null,3,null,null,null,null,2,null,1,null,null,null,null,null,null,null,null,null,null,null,null,null,null,null,null,null,null,null,null,null,null,null,null,null,null,null,null,null,null,null,null,null,null,null,null,null,null,null,2069]
["9XX","900. Histoire et géographie (généralités)",11,null,1,null,1,2,null,null,null,null,null,null,null,null,null,1,null,null,null,null,null,null,null,null,null,null,null,null,null,null,null,null,null,null,null,null,null,null,null,null,null,null,null,null,null,null,null,null,null,null,null,null,null,null,null,null,null,null,null,null,null,null,null,null,null,null,null,null,null,null,null,null,null,null,null,null,null,null,null,null,null,null,null,null,null,null,null,null,null,null,null,null,null,null,null,null,null,null,null,null,null,null,null,16]
[null,"910. Géographie, tourisme (guides) et voyages",124,null,13,49,3,12,1,1,null,null,null,null,null,null,null,null,null,null,null,null,null,null,null,null,null,null,1,null,null,null,null,null,null,null,null,null,null,null,null,null,null,null,null,null,null,null,null,null,null,null,null,null,null,null,null,null,null,null,null,null,null,null,null,null,null,null,null,null,null,null,null,null,null,null,null,null,null,null,null,null,null,null,null,null,null,null,null,null,null,null,null,null,null,null,null,null,null,null,null,null,null,null,null,204]
[null,"920. Biographies et généalogie",294,8,28,20,66,38,22,9,null,12,2,4,12,1,6,5,3,2,12,1,3,null,null,null,null,4,null,null,1,1,1,2,null,null,null,null,1,1,null,1,null,null,1,null,null,1,null,null,null,null,null,null,null,null,null,1,null,null,null,null,null,1,1,null,null,null,null,null,null,null,null,null,null,null,null,null,1,null,1,null,null,null,null,null,null,null,null,null,null,null,null,null,null,null,null,null,null,null,null,null,null,null,null,567]
[null,"930. Préhistoire et histoire ancienne",17,null,35,3,null,4,null,null,null,1,null,null,6,1,null,null,null,null,null,9,null,null,null,null,null,null,null,null,null,null,null,null,null,null,2,null,null,null,null,null,null,null,null,null,null,null,null,null,null,null,null,null,null,null,null,null,null,null,null,null,null,null,null,null,1,null,null,null,null,null,null,null,null,null,null,null,null,null,null,null,null,null,null,null,null,null,null,null,null,null,null,null,null,null,null,null,null,null,null,null,null,null,null,79]
[null,"940. Histoire médiévale, moderne et contemporaine (sauf la France)",55,null,49,13,5,8,8,null,null,2,null,null,2,null,1,3,null,null,1,1,null,null,null,3,null,null,null,null,1,null,1,null,null,null,null,null,null,null,null,null,1,null,null,null,1,null,null,1,null,null,null,null,null,null,null,null,null,null,null,null,null,null,null,null,null,null,null,null,null,null,null,null,null,null,null,null,null,null,null,null,null,null,null,1,null,null,null,null,null,null,null,null,null,null,null,null,null,null,null,null,null,null,null,157]
[null,"944. Histoire de la France (depuis 486)",10,null,12,18,1,2,null,null,null,null,null,null,2,null,null,null,null,null,null,null,null,null,null,null,null,null,null,null,null,null,null,null,null,null,null,null,null,null,null,null,null,null,null,null,null,null,null,null,null,null,null,null,null,null,null,null,null,null,null,null,null,null,null,null,null,null,null,null,null,null,null,null,null,null,null,null,null,null,null,null,null,null,null,null,null,null,null,null,null,null,null,null,null,null,null,null,null,null,null,null,null,null,null,45]
["Total",null,8277,1922,1176,1012,800,582,446,140,133,132,130,123,115,106,99,94,57,57,57,53,43,29,28,25,25,22,21,19,19,15,13,13,13,13,11,11,11,9,8,8,7,7,7,6,6,6,6,4,4,4,4,4,3,3,3,3,3,3,3,3,3,3,2,2,2,2,2,2,2,2,2,2,1,1,1,1,1,1,1,1,1,1,1,1,1,1,1,1,1,1,1,1,1,1,1,1,1,1,1,1,1,1,1,16013]
["Source : Bibliographie nationale française - Livres"]